Workbook

Sheet IIG Coverpage
A3: Infill Infrastructure Grant Program
A6: Notice of Funding Availability (NOFA) May 12, 2021
A9: Qualifying Infill Area (QIA) and Qualifying Infill Project (QIP) Application
A11: Rev. | B11: 2021-06-21
A25: State of California
A26: Governor Gavin Newsom
A28: Lourdes Castro Ramirez, Secretary
A29: Business, Consumer Services and Housing Agency
A31: Gustavo Velasquez, Director
A32: Department of Housing and Community Development
A35: 2020 West El Camino Avenue, Suite 150
A36: Sacramento, CA 95833
A37: Phone: (916) 263-2771
A38: Email: infill@hcd.ca.gov

Sheet Overview
A1: =CONCATENATE(Overview!D5," Overview") -> Overview | AJ1: ='IIG Coverpage'!B11 -> 2021-06-21
A2: When opening this file, a yellow banner at the top may appear with a button that says "Enable Editing". It is essential that you click this box so that the macros are enabled. Enabling macros is necessary for full worksheet functionality. Macros may not work with Microsoft's Excel version for Apple Mac.
A3: Orange shaded areas are documents that must be submitted to HCD and/or uploaded to FAAST. Click here for FAAST upload instructions and user manual.
A4: Are you applying for funds for a Capital Improvement Project (CIP) within a Qualifying Infill Area (QIA) or for a Qualified Infill Project (QIP)? | AM4: QIA
A5: =IF(AJ4="QIA","QIA Name:","QIP Name:") -> QIP Name: | U5: =IF(AJ4="QIA","County QIA is located:","County QIP is located:") -> County QIP is located: | AE5: Geographic Region: | AK5: =IF(AA5="","",VLOOKUP(Overview!AA5,Dropdowns!F1:G58,2)) ->  | AM5: QIP
A6: =IF(AJ4="QIA","If QIA or QIP is also known under another name(s) or was formerly known under another name(s), provide the name(s).","If the QIP is also known under another name(s) or was formerly known under another name(s), provide the name(s).") -> If the QIP is also known under another name(s) or was formerly known under another name(s), provide the name(s).
A7: Have you applied, do you plan to apply, or has the CIP, QIA or QIP been awarded other HCD program funds?
A8: Other HCD Program(s) Name(s): | O8: Funding Amount | T8: Funding Status | AB8: NOFA Date | AE8: Award Date/Expected Award Date
A12: Project or Area Information | AN12: =IF(AJ4="QIA","§302(aa)",IF(AJ4="QIP","§302(bb)","")) -> 
A13: =IF(AJ4="","",CONCATENATE("Does the ",AJ4," meet the definition and requirements in ",AN12," - ",AN13)) ->  | AN13: =IF(AN12="§302(z)",Dropdowns!M1,IF(AN12="§302(aa)",Dropdowns!M2,"")) -> 
A14: File Name | D14: Site Plan | L14: =CONCATENATE("§308(a)(1) Provide documentation of compliance with ",AN12," certified by a California State-licensed professional such as an engineer, surveyor, or landscape architect.") -> §308(a)(1) Provide documentation of compliance with certified by a California State-licensed professional such as an engineer, surveyor, or landscape architect. | AF14: Uploaded to HCD?
A15: QIA - Provide the description of the Project Area including the designated housing within the QIA.
AN16: =IF(AN12="d1",Dropdowns!M1,IF(AN12="d2",Dropdowns!M2,IF(AN12="31",Dropdowns!M3,IF(AN12="d2",Dropdowns!M4,"")))) -> 
A17: QIA - include all info for all QIPs. | I17: For all QIA attachments, clearly identify and label the "Required QIP" documents | AD17: Docs identified for Required QIP?
B18: QIP Name | H18: QIP (Describe unit mix and tenant population) | U18: QIP Address | AA18: QIP City | AD18: QIP Zip | AG18: Census Tract | AJ18: APN
A19: =IF(AJ4="QIP","QIP","Required QIP #1") -> Required QIP #1
A23: QIP #2
A27: QIP #3
A31: QIP #4
AN34: (1) Nonprofit Developer of a QIP
A35: QIP #5 | AN35: (1) Black, Indigenous, and Other People of Color - Nonprofit Developer of a QIP
AN36: (1) For-profit Developer of a QIP
AN37: (2) City that has jurisdiction over the QIA
AN38: (2) County that has jurisdiction over the QIA
B39: QIP(s) Names that CIP will support | M39: Related CIP Description and Scope §304 | AN39: (2) City and county that have jurisdiction over the QIA
A40: CIP(s) (identify all if more than one) | AN40: (2) Public housing authority that has jurisdiction over the QIA
AN41: (2) Redevelopment agency and/or successor agency that has jurisdiction over the QIA
AN42: (3) City that has jurisdiction over the QIA applying jointly with an "owners' association".
AN43: (3) County that has jurisdiction over the QIA applying jointly with an "owners' association".
AN44: (3) City and county that have jurisdiction over the QIA applying jointly with an "owners' association".
AN45: (3) Public housing authority that has jurisdiction over the QIA applying jointly with an "owners' association".
AN46: (3) Redevelopment agency and/or successor agency that has jurisdiction over the QIA applying jointly with an "owners' association".
AN47: (4) Duly constituted governing body of an Indian reservation or rancheria that has jurisdiction over the QIA
AN48: (4) Tribally Designated Housing Entity that is the Developer of the QIP
A60: =IF(AJ4="QIP","Is the QIP a scattered site project?","Is the required QIP a scattered site project?") -> Is the required QIP a scattered site project? | N60: If yes, complete the section below:
A61: Site Address | AD61: Homeowner or Rental
A64: =IF(AJ4="QIA","Required QIP - Total Land Area in Acres:","QIP - Total Land Area in Acres:") -> QIP - Total Land Area in Acres: | T64: =IF(AJ4="QIA","Other QIP(s) - Total Land Area in Acres:","") -> 
A65: =IF(AJ4="QIA","Required QIP - Commercial Square Feet","QIP - Commercial Square Feet") -> QIP - Commercial Square Feet | T65: =IF(AJ4="QIA","Other QIP(s) - Commercial Square Feet","") -> 
A66: =IF(AJ4="QIP","Amenities within the QIP","Amenities within the required QIP") -> Amenities within the required QIP
A67: Number of parking spaces | I67: Gated site entry | P67: Community room | W67: Fitness room | AD67: Other amenity (specify)
A68: Number of laundry rooms | I68: Building card key | P68: Community kitchen | W68: Picnic/BBQ area | AD68: Other amenity (specify)
A69: Swimming pool | I69: Security patrol | P69: Computer room | W69: Tot lot or playground | AD69: Other amenity (specify)
A70: Jacuzzi/Sauna | I70: Security cameras | P70: High speed internet | W70: Sports/tennis court | AD70: Other amenity (specify)
A71: Eligible Applicant (Applicant) §302(k)
A72: Applicant #1
A73: Entity Name | W73: Applicant Type
A74: Address | V74: City | AC74: State | AH74: Zip
A75: Auth Rep | M75: Title | T75: Authorized Rep. Email | AF75: Phone
A76: Contact | M76: Title | U76: Email | AE76: Phone
A77: Address | V77: City | AC77: State | AH77: Zip
A78: File Name | D78: App1 Cert of BIPOC | L78: See Applicant Documents worksheet. | AF78: Uploaded to HCD?
A79: File Name | D79: App1 Cert & Legal | L79: See Certification & Legal worksheet. | AF79: Uploaded to HCD?
A80: File Name | D80: App1 Resolution | L80: Signature required; see Applicant Documents worksheet. | AF80: Uploaded to HCD?
A81: File Name | D81: App1 OrgDoc1, OrgDoc2, etc… | L81: See Applicant Documents worksheet. | AF81: Uploaded to HCD?
A82: File Name | D82: App1 OrgChart | L82: See Applicant Documents worksheet. | AF82: Uploaded to HCD?
A83: File Name | D83: App1 Signature Block | L83: See Applicant Documents worksheet. | AF83: Uploaded to HCD?
A84: File Name | D84: App1 Payee Data Record | L84: See Applicant Documents worksheet. | AF84: Uploaded to HCD?
A85: File Name | D85: App1 FISCAL TIN Form | L85: See Applicant Documents worksheet. | AF85: Uploaded to HCD?
A86: File Name | D86: App1 Cert of Good Standing | L86: Certificate of Good Standing certified by Secretary of State prior to application due date. | AF86: Uploaded to HCD?
A87: File Name | D87: App1 Tax-Exempt Status | L87: Evidence of tax-exempt status from IRS and from Franchise Tax Board for Corporations. | AF87: Uploaded to HCD?
A88: Applicant #2
A89: Entity Name | W89: Applicant Type
A90: Address | V90: City | AC90: State | AH90: Zip
A91: Auth Rep | M91: Title | T91: Authorized Rep. Email | AF91: Phone
A92: Contact | M92: Title | U92: Email | AE92: Phone
A93: Address | V93: City | AC93: State | AH93: Zip
A94: File Name | D94: App2 Cert of BIPOC | L94: See Applicant Documents worksheet. | AF94: Uploaded to HCD?
A95: File Name | D95: App2 Cert & Legal | L95: See Certification & Legal worksheet. | AF95: Uploaded to HCD?
A96: File Name | D96: App2 Resolution | L96: Signature required; see Applicant Documents worksheet. | AF96: Uploaded to HCD?
A97: File Name | D97: App2 OrgDoc1, OrgDoc2, etc… | L97: See Applicant Documents worksheet. | AF97: Uploaded to HCD?
A98: File Name | D98: App2 OrgChart | L98: See Applicant Documents worksheet. | AF98: Uploaded to HCD?
A99: File Name | D99: App2 Signature Block | L99: See Applicant Documents worksheet. | AF99: Uploaded to HCD?
A100: File Name | D100: App2 Payee Data Record | L100: See Applicant Documents worksheet. | AF100: Uploaded to HCD?
A101: File Name | D101: App2 FISCAL TIN Form | L101: See Applicant Documents worksheet. | AF101: Uploaded to HCD?
A102: File Name | D102: App2 Cert of Good Standing | L102: Certificate of Good Standing certified by Secretary of State prior to application due date. | AF102: Uploaded to HCD?
A103: File Name | D103: App2 Tax-Exempt Status | L103: Evidence of tax-exempt status from IRS and from Franchise Tax Board for Corporations. | AF103: Uploaded to HCD?

Sheet Applicant Documents
A1: Required Applicant Documentation | AK1: ='IIG Coverpage'!B11 -> 2021-06-21
A2: Black, Indigenous, and Other People of Color - Nonprofit Developer of a QIP
A3: A completed and signed letter of self-certification by authorized signatory is required for each Joint Applicant identifying as black, indigenous or other person of color. Each applicable Joint Applicant must sign an individual Certification.
A4: Certifications & Legal Disclosure
A5: A completed and signed Certification is required for each Joint Applicant. Each Joint Applicant must sign an individual Certification form. A completed and signed Legal Disclosure is also required for each Joint Applicant. The hard copy Certifications & Legal Disclosure should be submitted with the application as detailed in the NOFA.
A6: Resolutions
A7: Applicant may use their own Resolution format as long as it contains ALL of the authorizations as in the sample. The person attesting to the resolution signing cannot be the same person authorized to execute the documents in the name of the applicant. If more than one authorized signatory is identified, state whether both signatories are required or only one signatory is required to submit and execute Program docs. If the application is being signed by a designee of the authorized signatory, the applicant must also submit a designee letter or other proof of signing authority.
A8: A resolution is required of each Joint Applicant - both private and public entities. A sample resolution template is available on IIG website.
A9: Organizational Documents
A10: Organizational documents are required for all Applicants, except where a joint applicant is a governmental entity. Governmental entities are not required to submit organizational documents with the application.
A11: Submit organizational documents supporting the Resolution submitted with the application.
A12: Corporation organizational documents
A13: Articles of Incorporation (Corp. Code §154, 200 and 202) as certified by the CA Secretary of State. Bylaws and any amendments thereto (Corp. Code §207(b), 211 and 212) Certificate of Amendment of Articles of Incorporation (Corp. Code §900-910 (general stock), §5810-5820 (public benefit and religious corporations), §7810-7820 (mutual benefit corporations), or §12500-12510 (general cooperative corporations)) as applicable. Restated Articles of Incorporation (Corp. Code §901, 906, 910 (general stock), §5811, 5815, 5819 (public benefit and religious corporations), §7811, 7815 and 7819 (mutual benefit corporations) and §12501, 12506 and 12510 (general cooperative corporations)) as applicable. Statement of Information (CA Secretary of State form SI-100 or SI-200) Shareholder Agreements (Corp. Code §186) if applicable. Certificate of Good Standing certified by Secretary of State.
A14: Any other CA Secretary of State filings applicable to revivals, conversions or mergers.
A15: Limited Liability Company organizational documents
A16: Articles of Organization (CA Secretary of State form LLC-1) Certificate of Amendment (CA Secretary of State form LLC-2) if applicable. Restated Articles of Organization (CA Secretary of State form LLC-10) if applicable. Certificate of Correction (CA Secretary of State form LLC-11) if applicable. Statement of Information (CA Secretary of State form LLC-12 or LLC-12NC) Operating Agreement (Corp. Code §17707.02(s) and 17701.10.) Certificate of Good Standing certified by Secretary of State.
A17: Any other CA Secretary of State filings applicable to revivals, conversions or mergers.
A18: Limited Partnership organizational documents
A19: Certificate of Limited Partnership (CA Secretary of State form LP-1) Amendment to Certificate of Limited Partnership (CA Secretary of State form LP-2) if applicable. Certificate of Correction (CA Secretary of State form LP-2) if applicable. Limited Partnership Agreement (CA Corp. Code §15901.02(x) and 15901.10) Certificate of Good Standing certified by Secretary of State.
A20: Any other CA Secretary of State filings applicable to revivals, conversions or mergers.
A21: Organizational Chart
A22: The Organizational chart must depict the organizational structure of the entities in relation to the applicant.
A23: Signature Block
A24: All Applicants must submit a Signature Block in a Microsoft Word Document that will be used in the HCD legal documents such as the Standard Agreement.
A25: Payee Data Record STD-204 or Taxpayer Identification Number (TIN)
A26: The TIN must be submitted by all governmental entity Applicants. All other Applicants must submit the STD-204 Payee Data Record. Forms available on IIG website.

Sheet Narrative
A1: =CONCATENATE(Overview!D5," Project Narrative") -> Project Narrative | AK1: ='IIG Coverpage'!B11 -> 2021-06-21
A2: 1. Summarize the scope of work for the CIP(s). Describe the distinct infrastructure improvements relating to utilities, surface improvements, landscape and amenities, environmental mitigation and remediation, replacement transit, residential parking and/or transit, etc. §304:
A4: =IF(Overview!AJ4="QIP","2. Describe all on-site services that will be provided at the QIP:","2. Describe all on-site services that will be provided at the required QIP:") -> 2. Describe all on-site services that will be provided at the required QIP:
A6: =IF(Overview!AJ4="QIP","3. Explain any specific development issues (relocation, environmental, historical, topography, etc.) at the QIP and/or CIP(s):","3. Explain any specific development issues (relocation, environmental, historical, topography, etc.) at the required QIP and/or CIP(s):") -> 3. Explain any specific development issues (relocation, environmental, historical, topography, etc.) at the required QIP and/or CIP(s):
A8: =IF(Overview!AJ4="QIP","4. Explain any required demolition at the QIP:","4. Explain any required demolition at the required QIP:") -> 4. Explain any required demolition at the required QIP:
A10: =IF(Overview!AJ4="QIP","5. Identify the Developer(s) for the QIP. Describe Developer(s) experience with affordable housing:","5. Identify the Developer(s) for the required QIP. Describe Developer(s) experience with affordable housing:") -> 5. Identify the Developer(s) for the required QIP. Describe Developer(s) experience with affordable housing:

Sheet Max Funds and Unit Mix
A1: =CONCATENATE(Overview!D5," Max Grant Amount and Unit Mix") -> Max Grant Amount and Unit Mix | AL1: ='IIG Coverpage'!B11 -> 2021-06-21
A2: Maximum Grant Amount
A3: =IF(Overview!AJ4="QIP","QIP Units: Base Grant Limit","Required QIP Units: Base Grant Limit") -> Required QIP Units: Base Grant Limit | M3: =AK50 -> 0 | P3: Housing Units per Acre (Net Density) | S3: =IF('Eligibility and Threshold'!J25=0,0,SUM('Eligibility and Threshold'!AF19:AF24)/'Eligibility and Threshold'!J25) -> 0 | U3: Net Density Adjustment Factor | X3: =INDEX(AN37:AN50,MATCH(S3,AO37:AO50,1)) -> 1 | Z3: Base Grant Limit with Adjustment Factor | AD3: =IF(Overview!AJ4="QIA",MIN(30000000,(M3+M4)*X3),MIN(7500000,M3*X3)) -> 0 | AG3: Maximum CIP Grant Amount | AJ3: =IF(Overview!AJ4="QIP",MIN('Dev Budget'!B198,'Dev Sources'!M59,AD3,7500000),MIN('Dev Budget'!B198,'Dev Sources'!M59,AD3,30000000)) -> 0
A4: Other QIP Units Base Grant Limit -excluding required QIP: | M4: =AK95 -> 0 | AZ4: Subsidy Program Name | BE4: Subsidy Program Name | BV4: Total Monthly Subsidy Revenue
A5: =IF(Overview!AJ4="QIP","QIP Units","Required QIP Units") -> Required QIP Units | AN5: =IF(Overview!AA5="","",Overview!AA5) -> 
A6: # of Bedrms | C6: Unit Type | F6: Unit's Income Restricted Level | K6: Total Units | M6: Rental Units | P6: Homeowner (HO) Units | S6: Total Restricted Units | V6: Total Unrestricted Units | Y6: Restricted Affordable Rental Units | AB6: Restricted Affordable HO Units | AE6: Manager Units | AG6: Special Needs Units | AI6: Supportive Housing Units | AL6: Senior Units | AN6: Restricted Monthly 2021 Rent | AP6: 200%+ FMR Rent | AS6: Unrestricted Monthly Rent | AV6: Proposed Monthly Rent | AX6: 1Monthly Utility Allowance | AZ6: Monthly Rent Subsidy Amount | BC6: Subsidy Units | BE6: Monthly Rent Subsidy Amount | BH6: Subsidy Units | BJ6: # of Baths | BL6: Square Feet | BN6: Building Type | BS6: Total Net Monthly Restricted Rent | BT6: Total Net Monthly Proposed Rent | BU6: Total Monthly Unrestricted Rent | BV6: =AZ4 -> Subsidy Program Name | BW6: =BE4 -> Subsidy Program Name
M7: =IF(C7="Rental",K7,"") ->  | P7: =IF(C7="Homeowner",K7,"") ->  | S7: =IF(OR(F7="",F7="none"),0,K7) -> 0 | V7: =IF(OR(F7="",F7="none"),K7,0) -> 0 | Y7: =IF(OR(C7="Homeowner",K7=0),"",IF(OR(F7="none",F7="",F7="HO Lower"),"",K7)) ->  | AB7: =IF(OR(C7="Rental",K7=0),"",IF(OR(F7="none",F7=""),"",IF(F7="HO Lower",K7,""))) ->  | AN7: =IFERROR(INDEX('Rent Limits'!$B$1:$P$1045,MATCH(BX7,'Rent Limits'!$B$1:$B$1045,0),MATCH(A7,'Rent Limits'!$B$1:$P$1,0)),0) -> 0 | BS7: =(AN7+AP7-AX7)*S7 -> 0 | BT7: =(AV7-AX7)*S7 -> 0 | BU7: =V7*AS7 -> 0 | BV7: =AZ7*BC7 -> 0 | BW7: =BE7*BH7 -> 0 | BX7: =CONCATENATE($AN$5,'Max Funds and Unit Mix'!F7) -> 
S8: =IF(OR(F8="",F8="none"),0,K8) -> 0 | V8: =IF(OR(F8="",F8="none"),K8,0) -> 0 | AN8: =IFERROR(INDEX('Rent Limits'!$B$1:$P$1045,MATCH(BX8,'Rent Limits'!$B$1:$B$1045,0),MATCH(A8,'Rent Limits'!$B$1:$P$1,0)),0) -> 0 | BS8: =(AN8+AP8-AX8)*S8 -> 0 | BT8: =(AV8-AX8)*S8 -> 0 | BU8: =V8*AS8 -> 0 | BV8: =AZ8*BC8 -> 0 | BW8: =BE8*BH8 -> 0 | BX8: =CONCATENATE($AN$5,'Max Funds and Unit Mix'!F8) -> 
S9: 0 | V9: 0 | AN9: =IFERROR(INDEX('Rent Limits'!$B$1:$P$1045,MATCH(BX9,'Rent Limits'!$B$1:$B$1045,0),MATCH(A9,'Rent Limits'!$B$1:$P$1,0)),0) -> 0 | BS9: 0 | BT9: 0 | BU9: 0 | BV9: 0 | BW9: 0 | BX9: =CONCATENATE($AN$5,'Max Funds and Unit Mix'!F9) -> 
S10: 0 | V10: 0 | AN10: =IFERROR(INDEX('Rent Limits'!$B$1:$P$1045,MATCH(BX10,'Rent Limits'!$B$1:$B$1045,0),MATCH(A10,'Rent Limits'!$B$1:$P$1,0)),0) -> 0 | BS10: 0 | BT10: 0 | BU10: 0 | BV10: 0 | BW10: 0 | BX10: =CONCATENATE($AN$5,'Max Funds and Unit Mix'!F10) -> 
M11: =IF(C11="Rental",K11,"") ->  | S11: =IF(OR(F11="",F11="none"),0,K11) -> 0 | V11: 0 | AB11: =IF(OR(C11="Rental",K11=0),"",IF(OR(F11="none",F11=""),"",IF(F11="HO Lower",K11,""))) ->  | AN11: =IFERROR(INDEX('Rent Limits'!$B$1:$P$1045,MATCH(BX11,'Rent Limits'!$B$1:$B$1045,0),MATCH(A11,'Rent Limits'!$B$1:$P$1,0)),0) -> 0 | BS11: 0 | BT11: 0 | BU11: 0 | BV11: 0 | BW11: 0 | BX11: =CONCATENATE($AN$5,'Max Funds and Unit Mix'!F11) -> 
S12: 0 | V12: 0 | AN12: =IFERROR(INDEX('Rent Limits'!$B$1:$P$1045,MATCH(BX12,'Rent Limits'!$B$1:$B$1045,0),MATCH(A12,'Rent Limits'!$B$1:$P$1,0)),0) -> 0 | BS12: 0 | BT12: 0 | BU12: 0 | BV12: 0 | BW12: 0 | BX12: =CONCATENATE($AN$5,'Max Funds and Unit Mix'!F12) -> 
S13: 0 | V13: 0 | AN13: =IFERROR(INDEX('Rent Limits'!$B$1:$P$1045,MATCH(BX13,'Rent Limits'!$B$1:$B$1045,0),MATCH(A13,'Rent Limits'!$B$1:$P$1,0)),0) -> 0 | BS13: 0 | BT13: 0 | BU13: 0 | BV13: 0 | BW13: 0 | BX13: =CONCATENATE($AN$5,'Max Funds and Unit Mix'!F13) -> 
S14: 0 | V14: 0 | AN14: =IFERROR(INDEX('Rent Limits'!$B$1:$P$1045,MATCH(BX14,'Rent Limits'!$B$1:$B$1045,0),MATCH(A14,'Rent Limits'!$B$1:$P$1,0)),0) -> 0 | BS14: 0 | BT14: 0 | BU14: 0 | BV14: 0 | BW14: 0 | BX14: =CONCATENATE($AN$5,'Max Funds and Unit Mix'!F14) -> 
S15: 0 | V15: 0 | AN15: =IFERROR(INDEX('Rent Limits'!$B$1:$P$1045,MATCH(BX15,'Rent Limits'!$B$1:$B$1045,0),MATCH(A15,'Rent Limits'!$B$1:$P$1,0)),0) -> 0 | BS15: 0 | BT15: 0 | BU15: 0 | BV15: 0 | BW15: 0 | BX15: =CONCATENATE($AN$5,'Max Funds and Unit Mix'!F15) -> 
S16: 0 | V16: 0 | AN16: =IFERROR(INDEX('Rent Limits'!$B$1:$P$1045,MATCH(BX16,'Rent Limits'!$B$1:$B$1045,0),MATCH(A16,'Rent Limits'!$B$1:$P$1,0)),0) -> 0 | BS16: 0 | BT16: 0 | BU16: 0 | BV16: 0 | BW16: 0 | BX16: =CONCATENATE($AN$5,'Max Funds and Unit Mix'!F16) -> 
S17: 0 | V17: 0 | AN17: =IFERROR(INDEX('Rent Limits'!$B$1:$P$1045,MATCH(BX17,'Rent Limits'!$B$1:$B$1045,0),MATCH(A17,'Rent Limits'!$B$1:$P$1,0)),0) -> 0 | BS17: 0 | BT17: 0 | BU17: 0 | BV17: 0 | BW17: 0 | BX17: =CONCATENATE($AN$5,'Max Funds and Unit Mix'!F17) -> 
S18: 0 | V18: 0 | AN18: =IFERROR(INDEX('Rent Limits'!$B$1:$P$1045,MATCH(BX18,'Rent Limits'!$B$1:$B$1045,0),MATCH(A18,'Rent Limits'!$B$1:$P$1,0)),0) -> 0 | BS18: 0 | BT18: 0 | BU18: 0 | BV18: 0 | BW18: 0 | BX18: =CONCATENATE($AN$5,'Max Funds and Unit Mix'!F18) -> 
S19: 0 | V19: 0 | AN19: =IFERROR(INDEX('Rent Limits'!$B$1:$P$1045,MATCH(BX19,'Rent Limits'!$B$1:$B$1045,0),MATCH(A19,'Rent Limits'!$B$1:$P$1,0)),0) -> 0 | BS19: 0 | BT19: 0 | BU19: 0 | BV19: 0 | BW19: 0 | BX19: =CONCATENATE($AN$5,'Max Funds and Unit Mix'!F19) -> 
S20: 0 | V20: 0 | AN20: =IFERROR(INDEX('Rent Limits'!$B$1:$P$1045,MATCH(BX20,'Rent Limits'!$B$1:$B$1045,0),MATCH(A20,'Rent Limits'!$B$1:$P$1,0)),0) -> 0 | BS20: 0 | BT20: 0 | BU20: 0 | BV20: 0 | BW20: 0 | BX20: =CONCATENATE($AN$5,'Max Funds and Unit Mix'!F20) -> 
S21: 0 | V21: 0 | AN21: =IFERROR(INDEX('Rent Limits'!$B$1:$P$1045,MATCH(BX21,'Rent Limits'!$B$1:$B$1045,0),MATCH(A21,'Rent Limits'!$B$1:$P$1,0)),0) -> 0 | BS21: 0 | BT21: 0 | BU21: 0 | BV21: 0 | BW21: 0 | BX21: =CONCATENATE($AN$5,'Max Funds and Unit Mix'!F21) -> 
S22: 0 | V22: 0 | AN22: =IFERROR(INDEX('Rent Limits'!$B$1:$P$1045,MATCH(BX22,'Rent Limits'!$B$1:$B$1045,0),MATCH(A22,'Rent Limits'!$B$1:$P$1,0)),0) -> 0 | BS22: 0 | BT22: 0 | BU22: 0 | BV22: 0 | BW22: 0 | BX22: =CONCATENATE($AN$5,'Max Funds and Unit Mix'!F22) -> 
S23: 0 | V23: 0 | AN23: =IFERROR(INDEX('Rent Limits'!$B$1:$P$1045,MATCH(BX23,'Rent Limits'!$B$1:$B$1045,0),MATCH(A23,'Rent Limits'!$B$1:$P$1,0)),0) -> 0 | BS23: 0 | BT23: 0 | BU23: 0 | BV23: 0 | BW23: 0 | BX23: =CONCATENATE($AN$5,'Max Funds and Unit Mix'!F23) -> 
S24: 0 | V24: 0 | AN24: =IFERROR(INDEX('Rent Limits'!$B$1:$P$1045,MATCH(BX24,'Rent Limits'!$B$1:$B$1045,0),MATCH(A24,'Rent Limits'!$B$1:$P$1,0)),0) -> 0 | BS24: 0 | BT24: 0 | BU24: 0 | BV24: 0 | BW24: 0 | BX24: =CONCATENATE($AN$5,'Max Funds and Unit Mix'!F24) -> 
S25: 0 | V25: 0 | AN25: =IFERROR(INDEX('Rent Limits'!$B$1:$P$1045,MATCH(BX25,'Rent Limits'!$B$1:$B$1045,0),MATCH(A25,'Rent Limits'!$B$1:$P$1,0)),0) -> 0 | BS25: 0 | BT25: 0 | BU25: 0 | BV25: 0 | BW25: 0 | BX25: =CONCATENATE($AN$5,'Max Funds and Unit Mix'!F25) -> 
S26: 0 | V26: 0 | AN26: =IFERROR(INDEX('Rent Limits'!$B$1:$P$1045,MATCH(BX26,'Rent Limits'!$B$1:$B$1045,0),MATCH(A26,'Rent Limits'!$B$1:$P$1,0)),0) -> 0 | BS26: 0 | BT26: 0 | BU26: 0 | BV26: 0 | BW26: 0 | BX26: =CONCATENATE($AN$5,'Max Funds and Unit Mix'!F26) -> 
S27: 0 | V27: 0 | AN27: =IFERROR(INDEX('Rent Limits'!$B$1:$P$1045,MATCH(BX27,'Rent Limits'!$B$1:$B$1045,0),MATCH(A27,'Rent Limits'!$B$1:$P$1,0)),0) -> 0 | BS27: 0 | BT27: 0 | BU27: 0 | BV27: 0 | BW27: 0 | BX27: =CONCATENATE($AN$5,'Max Funds and Unit Mix'!F27) -> 
S28: 0 | V28: 0 | AN28: =IFERROR(INDEX('Rent Limits'!$B$1:$P$1045,MATCH(BX28,'Rent Limits'!$B$1:$B$1045,0),MATCH(A28,'Rent Limits'!$B$1:$P$1,0)),0) -> 0 | BS28: 0 | BT28: 0 | BU28: 0 | BV28: 0 | BW28: 0 | BX28: =CONCATENATE($AN$5,'Max Funds and Unit Mix'!F28) -> 
S29: 0 | V29: 0 | AN29: =IFERROR(INDEX('Rent Limits'!$B$1:$P$1045,MATCH(BX29,'Rent Limits'!$B$1:$B$1045,0),MATCH(A29,'Rent Limits'!$B$1:$P$1,0)),0) -> 0 | BS29: 0 | BT29: 0 | BU29: 0 | BV29: 0 | BW29: 0 | BX29: =CONCATENATE($AN$5,'Max Funds and Unit Mix'!F29) -> 
S30: 0 | V30: 0 | AN30: =IFERROR(INDEX('Rent Limits'!$B$1:$P$1045,MATCH(BX30,'Rent Limits'!$B$1:$B$1045,0),MATCH(A30,'Rent Limits'!$B$1:$P$1,0)),0) -> 0 | BS30: 0 | BT30: 0 | BU30: 0 | BV30: 0 | BW30: 0 | BX30: =CONCATENATE($AN$5,'Max Funds and Unit Mix'!F30) -> 
S31: 0 | V31: 0 | AN31: =IFERROR(INDEX('Rent Limits'!$B$1:$P$1045,MATCH(BX31,'Rent Limits'!$B$1:$B$1045,0),MATCH(A31,'Rent Limits'!$B$1:$P$1,0)),0) -> 0 | BS31: 0 | BT31: 0 | BU31: 0 | BV31: 0 | BW31: 0 | BX31: =CONCATENATE($AN$5,'Max Funds and Unit Mix'!F31) -> 
S32: 0 | V32: 0 | AN32: =IFERROR(INDEX('Rent Limits'!$B$1:$P$1045,MATCH(BX32,'Rent Limits'!$B$1:$B$1045,0),MATCH(A32,'Rent Limits'!$B$1:$P$1,0)),0) -> 0 | BS32: 0 | BT32: 0 | BU32: 0 | BV32: 0 | BW32: 0 | BX32: =CONCATENATE($AN$5,'Max Funds and Unit Mix'!F32) -> 
K33: =SUM(K7:L32) -> 0 | M33: =SUM(M7:O32) -> 0 | P33: =SUM(P7:R32) -> 0 | S33: =SUM(S7:U32) -> 0 | V33: =SUM(V7:X32) -> 0 | Y33: =SUM(Y7:AA32) -> 0 | AB33: =SUM(AB7:AD32) -> 0 | AE33: =SUM(AE7:AF32) -> 0 | AG33: =SUM(AG7:AH32) -> 0 | AI33: =SUM(AI7:AK32) -> 0 | AL33: =SUM(AL7:AM32) -> 0 | AN33: =SUM(AN7:AO32) -> 0 | AP33: =SUM(AP7:AR32) -> 0 | AS33: =SUM(AS7:AU32) -> 0 | AV33: =SUM(AV7:AW32) -> 0 | BC33: =SUM(BC7:BD32) -> 0 | BH33: =SUM(BH7:BI32) -> 0 | BS33: =SUM(BS7:BS32) -> 0 | BT33: =SUM(BT7:BT32) -> 0 | BU33: =SUM(BU7:BU32) -> 0 | BV33: =SUM(BV7:BV32) -> 0 | BW33: =SUM(BW7:BW32) -> 0
A34: File Name: | D34: Utility Allowance | I34: 1Local housing authority document showing current utility allowance chart, with relevant components circled. | AH34: File uploaded? | AN34: =12*BS33 -> 0 | AQ34: Annual Net Restricted Rent
A35: =IF(Overview!AJ4="QIP","Grant Amount","Grant Amount (generated by required QIP Units)") -> Grant Amount (generated by required QIP Units) | AN35: =12*BT33 -> 0 | AQ35: Annual Net Proposed Rent
G36: =IF(Overview!AJ4="QIA","","Points §309(b)(2)") -> Points §309(b)(2) | J36: Number of Units | V36: Basic Grant Limit x Units | AN36: =12*BU33 -> 0 | AQ36: Annual Unrestricted Rent
B37: Income Level | J37: 0-Bdrm | L37: 1-Bdrm | N37: 2-Bdrm | P37: 3-Bdrm | R37: 4-Bdrm | T37: Total | V37: 0-Bdrm | Y37: 1-Bdrm | AB37: 2-Bdrm | AE37: 3-Bdrm | AH37: 4-Bdrm | AK37: Total | AN37: 1 | AO37: 0
A38: HO Unit | B38: > CalHFA | J38: =SUMPRODUCT(($A$7:$A$32=0)*($C$7:$C$32="Homeowner")*($F$7:$F$32="200%+ FMR")*($K$7:$K$32))+SUMPRODUCT(($A$7:$A$32=0)*($C$7:$C$32="Homeowner")*($F$7:$F$32="> CalHFA Sales Price")*($K$7:$K$32))+SUMPRODUCT(($A$53:$A$78=0)*($C$53:$C$78="Homeowner")*($F$53:$F$78="200%+ FMR")*($K$53:$K$78))+SUMPRODUCT(($A$53:$A$78=0)*($C$53:$C$78="Homeowner")*($F$53:$F$78="> CalHFA Sales Price")*($K$53:$K$78)) -> 0 | L38: =SUMPRODUCT(($A$7:$A$32=1)*($C$7:$C$32="Homeowner")*($F$7:$F$32="200%+ FMR")*($K$7:$K$32))+SUMPRODUCT(($A$7:$A$32=1)*($C$7:$C$32="Homeowner")*($F$7:$F$32="> CalHFA Sales Price")*($K$7:$K$32)) -> 0 | N38: =SUMPRODUCT(($A$7:$A$32=2)*($C$7:$C$32="Homeowner")*($F$7:$F$32="200%+ FMR")*($K$7:$K$32))+SUMPRODUCT(($A$7:$A$32=2)*($C$7:$C$32="Homeowner")*($F$7:$F$32="> CalHFA Sales Price")*($K$7:$K$32)) -> 0 | P38: =SUMPRODUCT(($A$7:$A$32=3)*($C$7:$C$32="Homeowner")*($F$7:$F$32="200%+ FMR")*($K$7:$K$32))+SUMPRODUCT(($A$7:$A$32=3)*($C$7:$C$32="Homeowner")*($F$7:$F$32="> CalHFA Sales Price")*($K$7:$K$32)) -> 0 | R38: =SUMPRODUCT(($A$7:$A$32=4)*($C$7:$C$32="Homeowner")*($F$7:$F$32="200%+ FMR")*($K$7:$K$32))+SUMPRODUCT(($A$7:$A$32=4)*($C$7:$C$32="Homeowner")*($F$7:$F$32="> CalHFA Sales Price")*($K$7:$K$32)) -> 0 | T38: =SUM(J38:S38) -> 0 | V38: =J38*3700 -> 0 | Y38: =L38*7400 -> 0 | AB38: =N38*11100 -> 0 | AE38: =P38*14800 -> 0 | AH38: =R38*18500 -> 0 | AK38: =SUM(V38:AJ38) -> 0 | AN38: 1.04 | AO38: 30
B39: Unrestricted | J39: =SUMPRODUCT(($A$7:$A$32=0)*($C$7:$C$32="Homeowner")*($F$7:$F$32="")*($K$7:$K$32))+SUMPRODUCT(($A$7:$A$32=0)*($C$7:$C$32="Homeowner")*($F$7:$F$32="none")*($K$7:$K$32)) -> 0 | L39: =SUMPRODUCT(($A$7:$A$32=1)*($C$7:$C$32="Homeowner")*($F$7:$F$32="")*($K$7:$K$32))+SUMPRODUCT(($A$7:$A$32=1)*($C$7:$C$32="Homeowner")*($F$7:$F$32="none")*($K$7:$K$32)) -> 0 | N39: =SUMPRODUCT(($A$7:$A$32=2)*($C$7:$C$32="Homeowner")*($F$7:$F$32="")*($K$7:$K$32))+SUMPRODUCT(($A$7:$A$32=2)*($C$7:$C$32="Homeowner")*($F$7:$F$32="none")*($K$7:$K$32)) -> 0 | P39: =SUMPRODUCT(($A$7:$A$32=3)*($C$7:$C$32="Homeowner")*($F$7:$F$32="")*($K$7:$K$32))+SUMPRODUCT(($A$7:$A$32=3)*($C$7:$C$32="Homeowner")*($F$7:$F$32="none")*($K$7:$K$32)) -> 0 | R39: =SUMPRODUCT(($A$7:$A$32=4)*($C$7:$C$32="Homeowner")*($F$7:$F$32="")*($K$7:$K$32))+SUMPRODUCT(($A$7:$A$32=4)*($C$7:$C$32="Homeowner")*($F$7:$F$32="none")*($K$7:$K$32)) -> 0 | T39: 0 | V39: =J39*24700 -> 0 | Y39: =L39*28400 -> 0 | AB39: =N39*33000 -> 0 | AE39: =P39*40800 -> 0 | AH39: =R39*44500 -> 0 | AK39: =SUM(V39:AJ39) -> 0 | AN39: 1.08 | AO39: 35
B40: <= Moderate Income | G40: =IF(Overview!AJ4="QIA",0,IF($K$33=0,0,(T40/$K$33)*100*0.3)) -> 0 | J40: =SUMPRODUCT(($A$7:$A$32=0)*($C$7:$C$32="Homeowner")*($F$7:$F$32="HO Moderate")*($K$7:$K$32)) -> 0 | L40: =SUMPRODUCT(($A$7:$A$32=1)*($C$7:$C$32="Homeowner")*($F$7:$F$32="HO Moderate")*($K$7:$K$32)) -> 0 | N40: =SUMPRODUCT(($A$7:$A$32=2)*($C$7:$C$32="Homeowner")*($F$7:$F$32="HO Moderate")*($K$7:$K$32)) -> 0 | P40: =SUMPRODUCT(($A$7:$A$32=3)*($C$7:$C$32="Homeowner")*($F$7:$F$32="HO Moderate")*($K$7:$K$32)) -> 0 | R40: =SUMPRODUCT(($A$7:$A$32=4)*($C$7:$C$32="Homeowner")*($F$7:$F$32="HO Moderate")*($K$7:$K$32)) -> 0 | T40: 0 | V40: =J40*28400 -> 0 | Y40: =L40*32100 -> 0 | AB40: =N40*38300 -> 0 | AE40: =P40*45700 -> 0 | AH40: =R40*49400 -> 0 | AK40: =SUM(V40:AJ40) -> 0 | AN40: 1.12 | AO40: 40
B41: <= Lower Income | G41: =IF(Overview!AJ4="QIA",0,IF($K$33=0,0,(T41/$K$33)*100*0.8)) -> 0 | J41: =SUMPRODUCT(($A$7:$A$32=0)*($C$7:$C$32="Homeowner")*($F$7:$F$32="HO Lower")*($K$7:$K$32)) -> 0 | L41: =SUMPRODUCT(($A$7:$A$32=1)*($C$7:$C$32="Homeowner")*($F$7:$F$32="HO Lower")*($K$7:$K$32)) -> 0 | N41: =SUMPRODUCT(($A$7:$A$32=2)*($C$7:$C$32="Homeowner")*($F$7:$F$32="HO Lower")*($K$7:$K$32)) -> 0 | P41: =SUMPRODUCT(($A$7:$A$32=3)*($C$7:$C$32="Homeowner")*($F$7:$F$32="HO Lower")*($K$7:$K$32)) -> 0 | R41: =SUMPRODUCT(($A$7:$A$32=4)*($C$7:$C$32="Homeowner")*($F$7:$F$32="HO Lower")*($K$7:$K$32)) -> 0 | T41: 0 | V41: =J41*32100 -> 0 | Y41: =L41*35800 -> 0 | AB41: =N41*43200 -> 0 | AE41: =P41*50600 -> 0 | AH41: =R41*55600 -> 0 | AK41: =SUM(V41:AJ41) -> 0 | AN41: 1.16 | AO41: 45
B42: Total Homeowner (HO) | G42: =SUM(G38:I41) -> 0 | J42: =SUM(J38:K41) -> 0 | L42: =SUM(L38:M41) -> 0 | N42: =SUM(N38:O41) -> 0 | P42: =SUM(P38:Q41) -> 0 | R42: =SUM(R38:S41) -> 0 | T42: 0 | V42: =SUM(V38:X41) -> 0 | Y42: =SUM(Y38:AA41) -> 0 | AB42: =SUM(AB38:AD41) -> 0 | AE42: =SUM(AE38:AG41) -> 0 | AH42: =SUM(AH38:AJ41) -> 0 | AK42: =SUM(AK38:AM41) -> 0 | AN42: 1.2 | AO42: 50
A43: Rental Unit | B43: 200%+FMR or > CalHFA | J43: =SUMPRODUCT(($A$7:$A$32=0)*($C$7:$C$32="Rental")*($F$7:$F$32="200%+ FMR")*($K$7:$K$32))+SUMPRODUCT(($A$7:$A$32=0)*($C$7:$C$32="Rental")*($F$7:$F$32="> CalHFA Sales Price")*($K$7:$K$32)) -> 0 | L43: =SUMPRODUCT(($A$7:$A$32=1)*($C$7:$C$32="Rental")*($F$7:$F$32="200%+ FMR")*($K$7:$K$32))+SUMPRODUCT(($A$7:$A$32=1)*($C$7:$C$32="Rental")*($F$7:$F$32="> CalHFA Sales Price")*($K$7:$K$32)) -> 0 | N43: =SUMPRODUCT(($A$7:$A$32=2)*($C$7:$C$32="Rental")*($F$7:$F$32="200%+ FMR")*($K$7:$K$32))+SUMPRODUCT(($A$7:$A$32=2)*($C$7:$C$32="Rental")*($F$7:$F$32="> CalHFA Sales Price")*($K$7:$K$32)) -> 0 | P43: =SUMPRODUCT(($A$7:$A$32=3)*($C$7:$C$32="Rental")*($F$7:$F$32="200%+ FMR")*($K$7:$K$32))+SUMPRODUCT(($A$7:$A$32=3)*($C$7:$C$32="Rental")*($F$7:$F$32="> CalHFA Sales Price")*($K$7:$K$32)) -> 0 | R43: =SUMPRODUCT(($A$7:$A$32=4)*($C$7:$C$32="Rental")*($F$7:$F$32="200%+ FMR")*($K$7:$K$32))+SUMPRODUCT(($A$7:$A$32=4)*($C$7:$C$32="Rental")*($F$7:$F$32="> CalHFA Sales Price")*($K$7:$K$32)) -> 0 | T43: 0 | V43: =J43*3700 -> 0 | Y43: =L43*7400 -> 0 | AB43: =N43*11100 -> 0 | AE43: =P43*14800 -> 0 | AH43: =R43*18500 -> 0 | AK43: =SUM(V43:AJ43) -> 0 | AN43: 1.24 | AO43: 55
B44: Unrestricted | J44: =SUMPRODUCT(($A$7:$A$32=0)*($C$7:$C$32="Rental")*($F$7:$F$32="")*($K$7:$K$32))+SUMPRODUCT(($A$7:$A$32=0)*($C$7:$C$32="Rental")*($F$7:$F$32="none")*($K$7:$K$32)) -> 0 | L44: =SUMPRODUCT(($A$7:$A$32=1)*($C$7:$C$32="Rental")*($F$7:$F$32="")*($K$7:$K$32))+SUMPRODUCT(($A$7:$A$32=1)*($C$7:$C$32="Rental")*($F$7:$F$32="none")*($K$7:$K$32)) -> 0 | N44: =SUMPRODUCT(($A$7:$A$32=2)*($C$7:$C$32="Rental")*($F$7:$F$32="")*($K$7:$K$32))+SUMPRODUCT(($A$7:$A$32=2)*($C$7:$C$32="Rental")*($F$7:$F$32="none")*($K$7:$K$32)) -> 0 | P44: =SUMPRODUCT(($A$7:$A$32=3)*($C$7:$C$32="Rental")*($F$7:$F$32="")*($K$7:$K$32))+SUMPRODUCT(($A$7:$A$32=3)*($C$7:$C$32="Rental")*($F$7:$F$32="none")*($K$7:$K$32)) -> 0 | R44: =SUMPRODUCT(($A$7:$A$32=4)*($C$7:$C$32="Rental")*($F$7:$F$32="")*($K$7:$K$32))+SUMPRODUCT(($A$7:$A$32=4)*($C$7:$C$32="Rental")*($F$7:$F$32="none")*($K$7:$K$32)) -> 0 | T44: 0 | V44: =J44*24700 -> 0 | Y44: =L44*28400 -> 0 | AB44: =N44*33000 -> 0 | AE44: =P44*40800 -> 0 | AH44: =R44*44500 -> 0 | AK44: 0 | AN44: 1.28 | AO44: 60
B45: <= 60% AMI to >50% AMI | J45: =SUMPRODUCT(($A$7:$A$32=0)*($C$7:$C$32="Rental")*($F$7:$F$32="60% AMI")*($K$7:$K$32))+SUMPRODUCT(($A$7:$A$32=0)*($C$7:$C$32="Rental")*($F$7:$F$32="55% AMI")*($K$7:$K$32)) -> 0 | L45: =SUMPRODUCT(($A$7:$A$32=1)*($C$7:$C$32="Rental")*($F$7:$F$32="60% AMI")*($K$7:$K$32))+SUMPRODUCT(($A$7:$A$32=1)*($C$7:$C$32="Rental")*($F$7:$F$32="55% AMI")*($K$7:$K$32)) -> 0 | N45: =SUMPRODUCT(($A$7:$A$32=2)*($C$7:$C$32="Rental")*($F$7:$F$32="60% AMI")*($K$7:$K$32))+SUMPRODUCT(($A$7:$A$32=2)*($C$7:$C$32="Rental")*($F$7:$F$32="55% AMI")*($K$7:$K$32)) -> 0 | P45: =SUMPRODUCT(($A$7:$A$32=3)*($C$7:$C$32="Rental")*($F$7:$F$32="60% AMI")*($K$7:$K$32))+SUMPRODUCT(($A$7:$A$32=3)*($C$7:$C$32="Rental")*($F$7:$F$32="55% AMI")*($K$7:$K$32)) -> 0 | R45: =SUMPRODUCT(($A$7:$A$32=4)*($C$7:$C$32="Rental")*($F$7:$F$32="60% AMI")*($K$7:$K$32))+SUMPRODUCT(($A$7:$A$32=4)*($C$7:$C$32="Rental")*($F$7:$F$32="55% AMI")*($K$7:$K$32)) -> 0 | T45: 0 | V45: =J45*32100 -> 0 | Y45: =L45*35800 -> 0 | AB45: =N45*43200 -> 0 | AE45: =P45*50600 -> 0 | AH45: =R45*55600 -> 0 | AK45: 0 | AN45: 1.32 | AO45: 65
B46: <= 50% AMI to >40% AMI | G46: =IF(Overview!AJ4="QIA",0,IF($K$33=0,0,(T46/$K$33)*100*0.4)) -> 0 | J46: =SUMPRODUCT(($A$7:$A$32=0)*($C$7:$C$32="Rental")*($F$7:$F$32="50% AMI")*($K$7:$K$32))+SUMPRODUCT(($A$7:$A$32=0)*($C$7:$C$32="Rental")*($F$7:$F$32="45% AMI")*($K$7:$K$32)) -> 0 | L46: =SUMPRODUCT(($A$7:$A$32=1)*($C$7:$C$32="Rental")*($F$7:$F$32="50% AMI")*($K$7:$K$32))+SUMPRODUCT(($A$7:$A$32=1)*($C$7:$C$32="Rental")*($F$7:$F$32="45% AMI")*($K$7:$K$32)) -> 0 | N46: =SUMPRODUCT(($A$7:$A$32=2)*($C$7:$C$32="Rental")*($F$7:$F$32="50% AMI")*($K$7:$K$32))+SUMPRODUCT(($A$7:$A$32=2)*($C$7:$C$32="Rental")*($F$7:$F$32="45% AMI")*($K$7:$K$32)) -> 0 | P46: =SUMPRODUCT(($A$7:$A$32=3)*($C$7:$C$32="Rental")*($F$7:$F$32="50% AMI")*($K$7:$K$32))+SUMPRODUCT(($A$7:$A$32=3)*($C$7:$C$32="Rental")*($F$7:$F$32="45% AMI")*($K$7:$K$32)) -> 0 | R46: =SUMPRODUCT(($A$7:$A$32=4)*($C$7:$C$32="Rental")*($F$7:$F$32="50% AMI")*($K$7:$K$32))+SUMPRODUCT(($A$7:$A$32=4)*($C$7:$C$32="Rental")*($F$7:$F$32="45% AMI")*($K$7:$K$32)) -> 0 | T46: 0 | V46: =J46*37100 -> 0 | Y46: =L46*42000 -> 0 | AB46: =N46*48200 -> 0 | AE46: =P46*58000 -> 0 | AH46: =R46*61800 -> 0 | AK46: 0 | AN46: 1.36 | AO46: 70
B47: <= 40% AMI to >30% AMI | G47: =IF(Overview!AJ4="QIA",0,IF($K$33=0,0,(T47/$K$33)*100*0.4)) -> 0 | J47: =SUMPRODUCT(($A$7:$A$32=0)*($C$7:$C$32="Rental")*($F$7:$F$32="40% AMI")*($K$7:$K$32))+SUMPRODUCT(($A$7:$A$32=0)*($C$7:$C$32="Rental")*($F$7:$F$32="35% AMI")*($K$7:$K$32)) -> 0 | L47: =SUMPRODUCT(($A$7:$A$32=1)*($C$7:$C$32="Rental")*($F$7:$F$32="40% AMI")*($K$7:$K$32))+SUMPRODUCT(($A$7:$A$32=1)*($C$7:$C$32="Rental")*($F$7:$F$32="35% AMI")*($K$7:$K$32)) -> 0 | N47: =SUMPRODUCT(($A$7:$A$32=2)*($C$7:$C$32="Rental")*($F$7:$F$32="40% AMI")*($K$7:$K$32))+SUMPRODUCT(($A$7:$A$32=2)*($C$7:$C$32="Rental")*($F$7:$F$32="35% AMI")*($K$7:$K$32)) -> 0 | P47: =SUMPRODUCT(($A$7:$A$32=3)*($C$7:$C$32="Rental")*($F$7:$F$32="40% AMI")*($K$7:$K$32))+SUMPRODUCT(($A$7:$A$32=3)*($C$7:$C$32="Rental")*($F$7:$F$32="35% AMI")*($K$7:$K$32)) -> 0 | R47: =SUMPRODUCT(($A$7:$A$32=4)*($C$7:$C$32="Rental")*($F$7:$F$32="40% AMI")*($K$7:$K$32))+SUMPRODUCT(($A$7:$A$32=4)*($C$7:$C$32="Rental")*($F$7:$F$32="35% AMI")*($K$7:$K$32)) -> 0 | T47: 0 | V47: =J47*37100 -> 0 | Y47: =L47*42000 -> 0 | AB47: =N47*48200 -> 0 | AE47: =P47*58000 -> 0 | AH47: =R47*61800 -> 0 | AK47: 0 | AN47: 1.4 | AO47: 75
B48: <= 30% AMI | G48: =IF(Overview!AJ4="QIA",0,IF($K$33=0,0,(T48/$K$33)*100*2)) -> 0 | J48: =SUMPRODUCT(($A$7:$A$32=0)*($C$7:$C$32="Rental")*($F$7:$F$32="30% AMI")*($K$7:$K$32))+SUMPRODUCT(($A$7:$A$32=0)*($C$7:$C$32="Rental")*($F$7:$F$32="25% AMI")*($K$7:$K$32))+SUMPRODUCT(($A$7:$A$32=0)*($C$7:$C$32="Rental")*($F$7:$F$32="20% AMI")*($K$7:$K$32))+SUMPRODUCT(($A$7:$A$32=0)*($C$7:$C$32="Rental")*($F$7:$F$32="15% AMI")*($K$7:$K$32)) -> 0 | L48: =SUMPRODUCT(($A$7:$A$32=1)*($C$7:$C$32="Rental")*($F$7:$F$32="30% AMI")*($K$7:$K$32))+SUMPRODUCT(($A$7:$A$32=1)*($C$7:$C$32="Rental")*($F$7:$F$32="25% AMI")*($K$7:$K$32))+SUMPRODUCT(($A$7:$A$32=1)*($C$7:$C$32="Rental")*($F$7:$F$32="20% AMI")*($K$7:$K$32))+SUMPRODUCT(($A$7:$A$32=1)*($C$7:$C$32="Rental")*($F$7:$F$32="15% AMI")*($K$7:$K$32)) -> 0 | N48: =SUMPRODUCT(($A$7:$A$32=2)*($C$7:$C$32="Rental")*($F$7:$F$32="30% AMI")*($K$7:$K$32))+SUMPRODUCT(($A$7:$A$32=2)*($C$7:$C$32="Rental")*($F$7:$F$32="25% AMI")*($K$7:$K$32))+SUMPRODUCT(($A$7:$A$32=2)*($C$7:$C$32="Rental")*($F$7:$F$32="20% AMI")*($K$7:$K$32))+SUMPRODUCT(($A$7:$A$32=2)*($C$7:$C$32="Rental")*($F$7:$F$32="15% AMI")*($K$7:$K$32)) -> 0 | P48: =SUMPRODUCT(($A$7:$A$32=3)*($C$7:$C$32="Rental")*($F$7:$F$32="30% AMI")*($K$7:$K$32))+SUMPRODUCT(($A$7:$A$32=3)*($C$7:$C$32="Rental")*($F$7:$F$32="25% AMI")*($K$7:$K$32))+SUMPRODUCT(($A$7:$A$32=3)*($C$7:$C$32="Rental")*($F$7:$F$32="20% AMI")*($K$7:$K$32))+SUMPRODUCT(($A$7:$A$32=3)*($C$7:$C$32="Rental")*($F$7:$F$32="15% AMI")*($K$7:$K$32)) -> 0 | R48: =SUMPRODUCT(($A$7:$A$32=4)*($C$7:$C$32="Rental")*($F$7:$F$32="30% AMI")*($K$7:$K$32))+SUMPRODUCT(($A$7:$A$32=4)*($C$7:$C$32="Rental")*($F$7:$F$32="25% AMI")*($K$7:$K$32))+SUMPRODUCT(($A$7:$A$32=4)*($C$7:$C$32="Rental")*($F$7:$F$32="20% AMI")*($K$7:$K$32))+SUMPRODUCT(($A$7:$A$32=4)*($C$7:$C$32="Rental")*($F$7:$F$32="15% AMI")*($K$7:$K$32)) -> 0 | T48: 0 | V48: =J48*43200 -> 0 | Y48: =L48*45700 -> 0 | AB48: =N48*51900 -> 0 | AE48: =P48*66700 -> 0 | AH48: =R48*70400 -> 0 | AK48: 0 | AN48: 1.44 | AO48: 80
B49: Total Rental | G49: =SUM(G43:I48) -> 0 | J49: =SUM(J43:K48) -> 0 | L49: =SUM(L43:M48) -> 0 | N49: =SUM(N43:O48) -> 0 | P49: =SUM(P43:Q48) -> 0 | R49: =SUM(R43:S48) -> 0 | T49: 0 | V49: =SUM(V43:X48) -> 0 | Y49: =SUM(Y43:AA48) -> 0 | AB49: =SUM(AB43:AD48) -> 0 | AE49: =SUM(AE43:AG48) -> 0 | AH49: =SUM(AH43:AJ48) -> 0 | AK49: =SUM(AK43:AM48) -> 0 | AN49: 1.48 | AO49: 90
B50: Total Rental & HO | G50: =MIN(60,(G42+G49)) -> 0 | J50: =J42+J49 -> 0 | L50: =L42+L49 -> 0 | N50: =N42+N49 -> 0 | P50: =P42+P49 -> 0 | R50: =R42+R49 -> 0 | T50: =T42+T49 -> 0 | V50: =V42+V49 -> 0 | X50: =X42+X49 -> 0 | Y50: =Y42+Y49 -> 0 | AA50: =AA42+AA49 -> 0 | AB50: =AB42+AB49 -> 0 | AD50: =AD42+AD49 -> 0 | AE50: =AE42+AE49 -> 0 | AG50: =AG42+AG49 -> 0 | AH50: =AH42+AH49 -> 0 | AJ50: =AJ42+AJ49 -> 0 | AK50: =AK42+AK49 -> 0 | AM50: =AM42+AM49 -> 0 | AN50: 1.52 | AO50: 100
A51: QIP Units (excluding the required QIP Units above)
A52: # of Bedrms | C52: Unit Type | F52: % of Area Median Income (AMI) | K52: Total Units | M52: Rental Units | P52: HO Units | S52: Total Restricted Units | V52: Total Unrestricted Units | Y52: Restricted Affordable Rental Units | AB52: Restricted Affordable HO Units | AE52: Manager Units | AG52: Special Needs Units | AI52: Supportive Housing Units | AL52: Senior Units
M53: =IF(C53="Rental",K53,"") ->  | P53: =IF(C53="Homeowner",K53,"") ->  | S53: =IF(OR(F53="",F53="none"),"",K53) ->  | V53: =IF(OR(F53="",F53="none"),K53,"") -> 0 | Y53: =IF(OR(C53="Homeowner",K53=0),"",IF(OR(F53="none",F53="",F53="HO Lower"),"",K53)) ->  | AB53: =IF(OR(C53="Rental",K53=0),"",IF(OR(F53="none",F53=""),"",IF(F53="HO Lower",K53,""))) -> 
V54: 0
V55: 0
V56: 0
V57: 0
V58: 0
M59: =IF(C59="Rental",K59,"") ->  | S59: =IF(OR(F59="",F59="none"),"",K59) ->  | V59: =IF(OR(F59="",F59="none"),K59,"") -> 0 | AB59: =IF(OR(C59="Rental",K59=0),"",IF(OR(F59="none",F59=""),"",IF(F59="HO Lower",K59,""))) -> 
V60: 0
V61: 0
V62: 0
V63: 0
V64: 0
V65: 0
V66: 0
V67: 0
V68: 0
V69: 0
V70: 0
V71: 0
V72: 0
V73: 0
V74: 0
V75: 0
V76: 0
V77: 0
V78: 0
K79: =SUM(K53:L78) -> 0 | M79: =SUM(M53:O78) -> 0 | P79: =SUM(P53:R78) -> 0 | S79: =SUM(S53:U78) -> 0 | V79: =SUM(V53:X78) -> 0 | Y79: =SUM(Y53:AA78) -> 0 | AB79: =SUM(AB53:AD78) -> 0 | AE79: =SUM(AE53:AF78) -> 0 | AG79: =SUM(AG53:AH78) -> 0 | AI79: =SUM(AI53:AK78) -> 0 | AL79: =SUM(AL53:AM78) -> 0
A80: Grant Amount (generated by QIP Units excluding the required QIP Units above)
G81: QIA Points §310(b)(2) | J81: Number of Units | V81: Basic Grant Limit x Units
B82: Income Level | J82: 0-Bdrm | L82: 1-Bdrm | N82: 2-Bdrm | P82: 3-Bdrm | R82: 4-Bdrm | T82: Total | V82: 0-Bdrm | Y82: 1-Bdrm | AB82: 2-Bdrm | AE82: 3-Bdrm | AH82: 4-Bdrm | AK82: Total
A83: HO Unit | B83: > CalHFA | J83: =SUMPRODUCT(($A$53:$A$78=0)*($C$53:$C$78="Homeowner")*($F$53:$F$78="200%+ FMR")*($K$53:$K$78))+SUMPRODUCT(($A$53:$A$78=0)*($C$53:$C$78="Homeowner")*($F$53:$F$78="> CalHFA Sales Price")*($K$53:$K$78)) -> 0 | L83: =SUMPRODUCT(($A$53:$A$78=1)*($C$53:$C$78="Homeowner")*($F$53:$F$78="200%+ FMR")*($K$53:$K$78))+SUMPRODUCT(($A$53:$A$78=1)*($C$53:$C$78="Homeowner")*($F$53:$F$78="> CalHFA Sales Price")*($K$53:$K$78)) -> 0 | N83: =SUMPRODUCT(($A$53:$A$78=2)*($C$53:$C$78="Homeowner")*($F$53:$F$78="200%+ FMR")*($K$53:$K$78))+SUMPRODUCT(($A$53:$A$78=2)*($C$53:$C$78="Homeowner")*($F$53:$F$78="> CalHFA Sales Price")*($K$53:$K$78)) -> 0 | P83: =SUMPRODUCT(($A$53:$A$78=3)*($C$53:$C$78="Homeowner")*($F$53:$F$78="200%+ FMR")*($K$53:$K$78))+SUMPRODUCT(($A$53:$A$78=3)*($C$53:$C$78="Homeowner")*($F$53:$F$78="> CalHFA Sales Price")*($K$53:$K$78)) -> 0 | R83: =SUMPRODUCT(($A$53:$A$78=4)*($C$53:$C$78="Homeowner")*($F$53:$F$78="200%+ FMR")*($K$53:$K$78))+SUMPRODUCT(($A$53:$A$78=4)*($C$53:$C$78="Homeowner")*($F$53:$F$78="> CalHFA Sales Price")*($K$53:$K$78)) -> 0 | T83: =SUM(J83:S83) -> 0 | V83: =J83*3700 -> 0 | Y83: =L83*7400 -> 0 | AB83: =N83*11100 -> 0 | AE83: =P83*14800 -> 0 | AH83: =R83*18500 -> 0 | AK83: =SUM(V83:AJ83) -> 0
B84: Unrestricted | J84: =SUMPRODUCT(($A$53:$A$78=0)*($C$53:$C$78="Homeowner")*($F$53:$F$78="")*($K$53:$K$78))+SUMPRODUCT(($A$53:$A$78=0)*($C$53:$C$78="Homeowner")*($F$53:$F$78="none")*($K$53:$K$78)) -> 0 | L84: =SUMPRODUCT(($A$53:$A$78=1)*($C$53:$C$78="Homeowner")*($F$53:$F$78="")*($K$53:$K$78))+SUMPRODUCT(($A$53:$A$78=1)*($C$53:$C$78="Homeowner")*($F$53:$F$78="none")*($K$53:$K$78)) -> 0 | N84: =SUMPRODUCT(($A$53:$A$78=2)*($C$53:$C$78="Homeowner")*($F$53:$F$78="")*($K$53:$K$78))+SUMPRODUCT(($A$53:$A$78=2)*($C$53:$C$78="Homeowner")*($F$53:$F$78="none")*($K$53:$K$78)) -> 0 | P84: =SUMPRODUCT(($A$53:$A$78=3)*($C$53:$C$78="Homeowner")*($F$53:$F$78="")*($K$53:$K$78))+SUMPRODUCT(($A$53:$A$78=3)*($C$53:$C$78="Homeowner")*($F$53:$F$78="none")*($K$53:$K$78)) -> 0 | R84: =SUMPRODUCT(($A$53:$A$78=4)*($C$53:$C$78="Homeowner")*($F$53:$F$78="")*($K$53:$K$78))+SUMPRODUCT(($A$53:$A$78=4)*($C$53:$C$78="Homeowner")*($F$53:$F$78="none")*($K$53:$K$78)) -> 0 | T84: 0 | V84: =J84*24700 -> 0 | Y84: =L84*28400 -> 0 | AB84: =N84*33000 -> 0 | AE84: =P84*40800 -> 0 | AH84: =R84*44500 -> 0 | AK84: =SUM(V84:AJ84) -> 0
B85: <= Moderate Income | G85: =IF($K$79+$K$33=0,0,((T85+T40)/($K$79+$K$33))*100*0.3) -> 0 | J85: =SUMPRODUCT(($A$53:$A$78=0)*($C$53:$C$78="Homeowner")*($F$53:$F$78="HO Moderate")*($K$53:$K$78)) -> 0 | L85: =SUMPRODUCT(($A$53:$A$78=1)*($C$53:$C$78="Homeowner")*($F$53:$F$78="HO Moderate")*($K$53:$K$78)) -> 0 | N85: =SUMPRODUCT(($A$53:$A$78=2)*($C$53:$C$78="Homeowner")*($F$53:$F$78="HO Moderate")*($K$53:$K$78)) -> 0 | P85: =SUMPRODUCT(($A$53:$A$78=3)*($C$53:$C$78="Homeowner")*($F$53:$F$78="HO Moderate")*($K$53:$K$78)) -> 0 | R85: =SUMPRODUCT(($A$53:$A$78=4)*($C$53:$C$78="Homeowner")*($F$53:$F$78="HO Moderate")*($K$53:$K$78)) -> 0 | T85: 0 | V85: =J85*28400 -> 0 | Y85: =L85*32100 -> 0 | AB85: =N85*38300 -> 0 | AE85: =P85*45700 -> 0 | AH85: =R85*49400 -> 0 | AK85: =SUM(V85:AJ85) -> 0
B86: <= Lower Income | G86: =IF($K$79+$K$33=0,0,((T86+T41)/($K$79+$K$33))*100*0.8) -> 0 | J86: =SUMPRODUCT(($A$53:$A$78=0)*($C$53:$C$78="Homeowner")*($F$53:$F$78="HO Lower")*($K$53:$K$78)) -> 0 | L86: =SUMPRODUCT(($A$53:$A$78=1)*($C$53:$C$78="Homeowner")*($F$53:$F$78="HO Lower")*($K$53:$K$78)) -> 0 | N86: =SUMPRODUCT(($A$53:$A$78=2)*($C$53:$C$78="Homeowner")*($F$53:$F$78="HO Lower")*($K$53:$K$78)) -> 0 | P86: =SUMPRODUCT(($A$53:$A$78=3)*($C$53:$C$78="Homeowner")*($F$53:$F$78="HO Lower")*($K$53:$K$78)) -> 0 | R86: =SUMPRODUCT(($A$53:$A$78=4)*($C$53:$C$78="Homeowner")*($F$53:$F$78="HO Lower")*($K$53:$K$78)) -> 0 | T86: 0 | V86: =J86*32100 -> 0 | Y86: =L86*35800 -> 0 | AB86: =N86*43200 -> 0 | AE86: =P86*50600 -> 0 | AH86: =R86*55600 -> 0 | AK86: =SUM(V86:AJ86) -> 0
B87: Total Homeowner (HO) | G87: =SUM(G83:I86) -> 0 | J87: =SUM(J83:K86) -> 0 | L87: =SUM(L83:M86) -> 0 | N87: =SUM(N83:O86) -> 0 | P87: =SUM(P83:Q86) -> 0 | R87: =SUM(R83:S86) -> 0 | T87: 0 | V87: =SUM(V83:X86) -> 0 | Y87: =SUM(Y83:AA86) -> 0 | AB87: =SUM(AB83:AD86) -> 0 | AE87: =SUM(AE83:AG86) -> 0 | AH87: =SUM(AH83:AJ86) -> 0 | AK87: =SUM(AK83:AM86) -> 0
A88: Rental Unit | B88: 200%+FMR or > CalHFA | J88: =SUMPRODUCT(($A$53:$A$78=0)*($C$53:$C$78="Rental")*($F$53:$F$78="200%+ FMR")*($K$53:$K$78))+SUMPRODUCT(($A$53:$A$78=0)*($C$53:$C$78="Rental")*($F$53:$F$78="> CalHFA Sales Price")*($K$53:$K$78)) -> 0 | L88: =SUMPRODUCT(($A$53:$A$78=1)*($C$53:$C$78="Rental")*($F$53:$F$78="200%+ FMR")*($K$53:$K$78))+SUMPRODUCT(($A$53:$A$78=1)*($C$53:$C$78="Rental")*($F$53:$F$78="> CalHFA Sales Price")*($K$53:$K$78)) -> 0 | N88: =SUMPRODUCT(($A$53:$A$78=2)*($C$53:$C$78="Rental")*($F$53:$F$78="200%+ FMR")*($K$53:$K$78))+SUMPRODUCT(($A$53:$A$78=2)*($C$53:$C$78="Rental")*($F$53:$F$78="> CalHFA Sales Price")*($K$53:$K$78)) -> 0 | P88: =SUMPRODUCT(($A$53:$A$78=3)*($C$53:$C$78="Rental")*($F$53:$F$78="200%+ FMR")*($K$53:$K$78))+SUMPRODUCT(($A$53:$A$78=3)*($C$53:$C$78="Rental")*($F$53:$F$78="> CalHFA Sales Price")*($K$53:$K$78)) -> 0 | R88: =SUMPRODUCT(($A$53:$A$78=4)*($C$53:$C$78="Rental")*($F$53:$F$78="200%+ FMR")*($K$53:$K$78))+SUMPRODUCT(($A$53:$A$78=4)*($C$53:$C$78="Rental")*($F$53:$F$78="> CalHFA Sales Price")*($K$53:$K$78)) -> 0 | T88: 0 | V88: =J88*3700 -> 0 | Y88: =L88*7400 -> 0 | AB88: =N88*11100 -> 0 | AE88: =P88*14800 -> 0 | AH88: =R88*18500 -> 0 | AK88: =SUM(V88:AJ88) -> 0
B89: Unrestricted | J89: =SUMPRODUCT(($A$53:$A$78=0)*($C$53:$C$78="Rental")*($F$53:$F$78="")*($K$53:$K$78))+SUMPRODUCT(($A$53:$A$78=0)*($C$53:$C$78="Rental")*($F$53:$F$78="none")*($K$53:$K$78)) -> 0 | L89: =SUMPRODUCT(($A$53:$A$78=1)*($C$53:$C$78="Rental")*($F$53:$F$78="")*($K$53:$K$78))+SUMPRODUCT(($A$53:$A$78=1)*($C$53:$C$78="Rental")*($F$53:$F$78="none")*($K$53:$K$78)) -> 0 | N89: =SUMPRODUCT(($A$53:$A$78=2)*($C$53:$C$78="Rental")*($F$53:$F$78="")*($K$53:$K$78))+SUMPRODUCT(($A$53:$A$78=2)*($C$53:$C$78="Rental")*($F$53:$F$78="none")*($K$53:$K$78)) -> 0 | P89: =SUMPRODUCT(($A$53:$A$78=3)*($C$53:$C$78="Rental")*($F$53:$F$78="")*($K$53:$K$78))+SUMPRODUCT(($A$53:$A$78=3)*($C$53:$C$78="Rental")*($F$53:$F$78="none")*($K$53:$K$78)) -> 0 | R89: =SUMPRODUCT(($A$53:$A$78=4)*($C$53:$C$78="Rental")*($F$53:$F$78="")*($K$53:$K$78))+SUMPRODUCT(($A$53:$A$78=4)*($C$53:$C$78="Rental")*($F$53:$F$78="none")*($K$53:$K$78)) -> 0 | T89: 0 | V89: =J89*24700 -> 0 | Y89: =L89*28400 -> 0 | AB89: =N89*33000 -> 0 | AE89: =P89*40800 -> 0 | AH89: =R89*44500 -> 0 | AK89: 0
B90: <= 60% AMI to >50% AMI | J90: =SUMPRODUCT(($A$53:$A$78=0)*($C$53:$C$78="Rental")*($F$53:$F$78="60% AMI")*($K$53:$K$78))+SUMPRODUCT(($A$53:$A$78=0)*($C$53:$C$78="Rental")*($F$53:$F$78="55% AMI")*($K$53:$K$78)) -> 0 | L90: =SUMPRODUCT(($A$53:$A$78=1)*($C$53:$C$78="Rental")*($F$53:$F$78="60% AMI")*($K$53:$K$78))+SUMPRODUCT(($A$53:$A$78=1)*($C$53:$C$78="Rental")*($F$53:$F$78="55% AMI")*($K$53:$K$78)) -> 0 | N90: =SUMPRODUCT(($A$53:$A$78=2)*($C$53:$C$78="Rental")*($F$53:$F$78="60% AMI")*($K$53:$K$78))+SUMPRODUCT(($A$53:$A$78=2)*($C$53:$C$78="Rental")*($F$53:$F$78="55% AMI")*($K$53:$K$78)) -> 0 | P90: =SUMPRODUCT(($A$53:$A$78=3)*($C$53:$C$78="Rental")*($F$53:$F$78="60% AMI")*($K$53:$K$78))+SUMPRODUCT(($A$53:$A$78=3)*($C$53:$C$78="Rental")*($F$53:$F$78="55% AMI")*($K$53:$K$78)) -> 0 | R90: =SUMPRODUCT(($A$53:$A$78=4)*($C$53:$C$78="Rental")*($F$53:$F$78="60% AMI")*($K$53:$K$78))+SUMPRODUCT(($A$53:$A$78=4)*($C$53:$C$78="Rental")*($F$53:$F$78="55% AMI")*($K$53:$K$78)) -> 0 | T90: 0 | V90: =J90*32100 -> 0 | Y90: =L90*35800 -> 0 | AB90: =N90*43200 -> 0 | AE90: =P90*50600 -> 0 | AH90: =R90*55600 -> 0 | AK90: 0
B91: <= 50% AMI to >40% AMI | G91: =IF($K$79+$K$33=0,0,((T91+T46)/($K$79+$K$33))*100*0.4) -> 0 | J91: =SUMPRODUCT(($A$53:$A$78=0)*($C$53:$C$78="Rental")*($F$53:$F$78="50% AMI")*($K$53:$K$78))+SUMPRODUCT(($A$53:$A$78=0)*($C$53:$C$78="Rental")*($F$53:$F$78="45% AMI")*($K$53:$K$78)) -> 0 | L91: =SUMPRODUCT(($A$53:$A$78=1)*($C$53:$C$78="Rental")*($F$53:$F$78="50% AMI")*($K$53:$K$78))+SUMPRODUCT(($A$53:$A$78=1)*($C$53:$C$78="Rental")*($F$53:$F$78="45% AMI")*($K$53:$K$78)) -> 0 | N91: =SUMPRODUCT(($A$53:$A$78=2)*($C$53:$C$78="Rental")*($F$53:$F$78="50% AMI")*($K$53:$K$78))+SUMPRODUCT(($A$53:$A$78=2)*($C$53:$C$78="Rental")*($F$53:$F$78="45% AMI")*($K$53:$K$78)) -> 0 | P91: =SUMPRODUCT(($A$53:$A$78=3)*($C$53:$C$78="Rental")*($F$53:$F$78="50% AMI")*($K$53:$K$78))+SUMPRODUCT(($A$53:$A$78=3)*($C$53:$C$78="Rental")*($F$53:$F$78="45% AMI")*($K$53:$K$78)) -> 0 | R91: =SUMPRODUCT(($A$53:$A$78=4)*($C$53:$C$78="Rental")*($F$53:$F$78="50% AMI")*($K$53:$K$78))+SUMPRODUCT(($A$53:$A$78=4)*($C$53:$C$78="Rental")*($F$53:$F$78="45% AMI")*($K$53:$K$78)) -> 0 | T91: 0 | V91: =J91*37100 -> 0 | Y91: =L91*42000 -> 0 | AB91: =N91*48200 -> 0 | AE91: =P91*58000 -> 0 | AH91: =R91*61800 -> 0 | AK91: 0
B92: <= 40% AMI to >30% AMI | G92: =IF($K$79+$K$33=0,0,((T92+T47)/($K$79+$K$33))*100*0.4) -> 0 | J92: =SUMPRODUCT(($A$53:$A$78=0)*($C$53:$C$78="Rental")*($F$53:$F$78="40% AMI")*($K$53:$K$78))+SUMPRODUCT(($A$53:$A$78=0)*($C$53:$C$78="Rental")*($F$53:$F$78="35% AMI")*($K$53:$K$78)) -> 0 | L92: =SUMPRODUCT(($A$53:$A$78=1)*($C$53:$C$78="Rental")*($F$53:$F$78="40% AMI")*($K$53:$K$78))+SUMPRODUCT(($A$53:$A$78=1)*($C$53:$C$78="Rental")*($F$53:$F$78="35% AMI")*($K$53:$K$78)) -> 0 | N92: =SUMPRODUCT(($A$53:$A$78=2)*($C$53:$C$78="Rental")*($F$53:$F$78="40% AMI")*($K$53:$K$78))+SUMPRODUCT(($A$53:$A$78=2)*($C$53:$C$78="Rental")*($F$53:$F$78="35% AMI")*($K$53:$K$78)) -> 0 | P92: =SUMPRODUCT(($A$53:$A$78=3)*($C$53:$C$78="Rental")*($F$53:$F$78="40% AMI")*($K$53:$K$78))+SUMPRODUCT(($A$53:$A$78=3)*($C$53:$C$78="Rental")*($F$53:$F$78="35% AMI")*($K$53:$K$78)) -> 0 | R92: =SUMPRODUCT(($A$53:$A$78=4)*($C$53:$C$78="Rental")*($F$53:$F$78="40% AMI")*($K$53:$K$78))+SUMPRODUCT(($A$53:$A$78=4)*($C$53:$C$78="Rental")*($F$53:$F$78="35% AMI")*($K$53:$K$78)) -> 0 | T92: 0 | V92: =J92*37100 -> 0 | Y92: =L92*42000 -> 0 | AB92: =N92*48200 -> 0 | AE92: =P92*58000 -> 0 | AH92: =R92*61800 -> 0 | AK92: 0
B93: <= 30% AMI | G93: =IF($K$79+$K$33=0,0,((T93+T48)/($K$79+$K$33))*100*2) -> 0 | J93: =SUMPRODUCT(($A$53:$A$78=0)*($C$53:$C$78="Rental")*($F$53:$F$78="30% AMI")*($K$53:$K$78))+SUMPRODUCT(($A$53:$A$78=0)*($C$53:$C$78="Rental")*($F$53:$F$78="25% AMI")*($K$53:$K$78))+SUMPRODUCT(($A$53:$A$78=0)*($C$53:$C$78="Rental")*($F$53:$F$78="20% AMI")*($K$53:$K$78))+SUMPRODUCT(($A$53:$A$78=0)*($C$53:$C$78="Rental")*($F$53:$F$78="15% AMI")*($K$53:$K$78)) -> 0 | L93: =SUMPRODUCT(($A$53:$A$78=1)*($C$53:$C$78="Rental")*($F$53:$F$78="30% AMI")*($K$53:$K$78))+SUMPRODUCT(($A$53:$A$78=1)*($C$53:$C$78="Rental")*($F$53:$F$78="25% AMI")*($K$53:$K$78))+SUMPRODUCT(($A$53:$A$78=1)*($C$53:$C$78="Rental")*($F$53:$F$78="20% AMI")*($K$53:$K$78))+SUMPRODUCT(($A$53:$A$78=1)*($C$53:$C$78="Rental")*($F$53:$F$78="15% AMI")*($K$53:$K$78)) -> 0 | N93: =SUMPRODUCT(($A$53:$A$78=2)*($C$53:$C$78="Rental")*($F$53:$F$78="30% AMI")*($K$53:$K$78))+SUMPRODUCT(($A$53:$A$78=2)*($C$53:$C$78="Rental")*($F$53:$F$78="25% AMI")*($K$53:$K$78))+SUMPRODUCT(($A$53:$A$78=2)*($C$53:$C$78="Rental")*($F$53:$F$78="20% AMI")*($K$53:$K$78))+SUMPRODUCT(($A$53:$A$78=2)*($C$53:$C$78="Rental")*($F$53:$F$78="15% AMI")*($K$53:$K$78)) -> 0 | P93: =SUMPRODUCT(($A$53:$A$78=3)*($C$53:$C$78="Rental")*($F$53:$F$78="30% AMI")*($K$53:$K$78))+SUMPRODUCT(($A$53:$A$78=3)*($C$53:$C$78="Rental")*($F$53:$F$78="25% AMI")*($K$53:$K$78))+SUMPRODUCT(($A$53:$A$78=3)*($C$53:$C$78="Rental")*($F$53:$F$78="20% AMI")*($K$53:$K$78))+SUMPRODUCT(($A$53:$A$78=3)*($C$53:$C$78="Rental")*($F$53:$F$78="15% AMI")*($K$53:$K$78)) -> 0 | R93: =SUMPRODUCT(($A$53:$A$78=4)*($C$53:$C$78="Rental")*($F$53:$F$78="30% AMI")*($K$53:$K$78))+SUMPRODUCT(($A$53:$A$78=4)*($C$53:$C$78="Rental")*($F$53:$F$78="25% AMI")*($K$53:$K$78))+SUMPRODUCT(($A$53:$A$78=4)*($C$53:$C$78="Rental")*($F$53:$F$78="20% AMI")*($K$53:$K$78))+SUMPRODUCT(($A$53:$A$78=4)*($C$53:$C$78="Rental")*($F$53:$F$78="15% AMI")*($K$53:$K$78)) -> 0 | T93: 0 | V93: =J93*43200 -> 0 | Y93: =L93*45700 -> 0 | AB93: =N93*51900 -> 0 | AE93: =P93*66700 -> 0 | AH93: =R93*70400 -> 0 | AK93: 0
B94: Total Rental | G94: =SUM(G88:I93) -> 0 | J94: =SUM(J88:K93) -> 0 | L94: =SUM(L88:M93) -> 0 | N94: =SUM(N88:O93) -> 0 | P94: =SUM(P88:Q93) -> 0 | R94: =SUM(R88:S93) -> 0 | T94: 0 | V94: =SUM(V88:X93) -> 0 | Y94: =SUM(Y88:AA93) -> 0 | AB94: =SUM(AB88:AD93) -> 0 | AE94: =SUM(AE88:AG93) -> 0 | AH94: =SUM(AH88:AJ93) -> 0 | AK94: =SUM(AK88:AM93) -> 0
B95: Total Rental & HO | G95: =MIN(60,(G87+G94)) -> 0 | J95: =J87+J94 -> 0 | L95: =L87+L94 -> 0 | N95: =N87+N94 -> 0 | P95: =P87+P94 -> 0 | R95: =R87+R94 -> 0 | T95: =T87+T94 -> 0 | V95: =V87+V94 -> 0 | X95: =X87+X94 -> 0 | Y95: =Y87+Y94 -> 0 | AA95: =AA87+AA94 -> 0 | AB95: =AB87+AB94 -> 0 | AD95: =AD87+AD94 -> 0 | AE95: =AE87+AE94 -> 0 | AG95: =AG87+AG94 -> 0 | AH95: =AH87+AH94 -> 0 | AJ95: =AJ87+AJ94 -> 0 | AK95: =AK87+AK94 -> 0 | AM95: =AM87+AM94 -> 0
A96: =IF(Overview!AJ4="QIP","§309(b)(1) QIP Affordability: Points will be awarded based on the “Lowest Income Point Table” below. 60 points max.","§310(b)(1) QIA Affordability: Points will be awarded based on the “Lowest Income Point Table” below. 60 points max.") -> §310(b)(1) QIA Affordability: Points will be awarded based on the “Lowest Income Point Table” below. 60 points max. | AL96: =MIN(SUM(AL102:AL110)*(60/35),60) -> 0 | AQ96: =IF(AP96=TRUE,"Special Needs ","") -> 
A97: Is this Project in a Rural Area as defined by H&S Code §50199.21. Applicant must use the TCAC Method for determining Rural status. Reference document on the MHP webpage and include documentation of Rural status. | AQ97: AMI | AR97: Units | AS97: %
A98: If Project is in a Rural Area, which methodology is being used to demonstrate that the project area is Rural? | AQ98: 0.6 | AR98: =SUMIF($F$7:$J$32,"60% AMI",$S$7:$U$32)+SUMIF($F$53:$J$78,"60% AMI",$S$53:$U$78) -> 0 | AS98: =IFERROR((AR98/$AR$108),0) -> 0
A99: File Name: | F99: Rural Status | N99: TCAC Method for determining Rural status. | AF99: File uploaded? | AQ99: 0.55 | AR99: =SUMIF($F$7:$J$32,"55% AMI",$S$7:$U$32)++SUMIF($F$53:$J$78,"55% AMI",$S$53:$U$78) -> 0 | AS99: =IFERROR((AR99/$AR$108),0) -> 0
A100: Red cells at right Points available to Rural set-aside projects only | C100: % AMI | E100: 0.55 | J100: 0.5 | N100: 0.45 | R100: 0.4 | V100: 0.35 | Z100: 0.3 | AD100: 0.25 | AH100: 20% and below | AL100: Total Points | AQ100: 0.5 | AR100: =SUMIF($F$7:$J$32,"50% AMI",$S$7:$U$32)+SUMIF($F$53:$J$78,"50% AMI",$S$53:$U$78) -> 0 | AS100: 0
C101: % of Units | E101: Points Available | G101: Points Awarded | J101: Points Available | L101: Points Awarded | N101: Points Available | P101: Points Awarded | R101: Points Available | T101: Points Awarded | V101: Points Available | X101: Points Awarded | Z101: Points Available | AB101: Points Awarded | AD101: Points Available | AF101: Points Awarded | AH101: Points Available | AJ101: Points Awarded | AQ101: 0.45 | AR101: =SUMIF($F$7:$J$32,"45% AMI",$S$7:$U$32)+SUMIF($F$53:$J$78,"45% AMI",$S$53:$U$78) -> 0 | AS101: 0
C102: 0.5 | E102: 5 | F102: 10 | G102: =IF(AND(AL97="Yes",AS99>=0.5),E102,"") ->  | J102: 12.5 | K102: 25 | L102: =IF(AND(AL97="Yes",AS100>=0.5),J102,"") ->  | N102: 18.75 | O102: 37.5 | P102: =IF(AS101>=0.5,N102,"") ->  | R102: 17.5 | T102: =IF(AS102>=0.5,R102,"") ->  | V102: 18.75 | X102: =IF(AS103>=0.5,V102,"") ->  | Z102: 25 | AB102: =IF(AS104>=0.5,Z102,"") ->  | AD102: 25 | AF102: =IF(AS105>=0.5,AD102,"") ->  | AH102: 25 | AJ102: =IF(AS109>=0.5,AH102,"") ->  | AL102: =SUM(G102,L102,P102,T102,X102,AB102,AF102,AJ102) -> 0 | AQ102: 0.4 | AR102: =SUMIF($F$7:$J$32,"40% AMI",$S$7:$U$32)+SUMIF($F$53:$J$78,"40% AMI",$S$53:$U$78) -> 0 | AS102: 0
C103: 0.45 | E103: 5 | F103: 10 | G103: =IF(AND(AL97="Yes",AS99>=0.45,AS99<0.5),E103,"") ->  | J103: 11.25 | K103: 22.5 | L103: =IF(AND(AL97="Yes",AS100>=0.45,AS100<0.5),J103,"") ->  | N103: 16.9 | O103: 33.8 | P103: =IF(AND(AS101>=0.45,AS101<0.5),N103,"") ->  | R103: 17.5 | T103: =IF(AND(AS102>=0.45,AS102<0.5),R103,"") ->  | V103: 18.75 | X103: =IF(AND(AS103>=0.45,AS103<0.5),V103,"") ->  | Z103: 25 | AB103: =IF(AND(AS104>=0.45,AS104<0.5),Z103,"") ->  | AD103: 25 | AF103: =IF(AND(AS105>=0.45,AS105<0.5),AD103,"") ->  | AH103: 25 | AJ103: =IF(AND(AS109>=0.45,AS109<0.5),AH103,"") ->  | AL103: 0 | AQ103: 0.35 | AR103: =SUMIF($F$7:$J$32,"35% AMI",$S$7:$U$32)+SUMIF($F$53:$J$78,"35% AMI",$S$53:$U$78) -> 0 | AS103: 0
C104: 0.4 | E104: 5 | F104: 10 | G104: =IF(AND(AL97="Yes",AS99>=0.4,AS99<0.45),E104,"") ->  | J104: 10 | K104: 20 | L104: =IF(AND(AL97="Yes",AS100>=0.4,AS100<0.45),J104,IF(AND(OR(AL97="No",AL97=""),AS100>=0.4),J104,"")) ->  | N104: 15 | O104: 30 | P104: =IF(AND(AS101>=0.4,AS101<0.45),N104,"") ->  | R104: 17.5 | T104: =IF(AND(AS102>=0.4,AS102<0.45),R104,"") ->  | V104: 18.75 | X104: =IF(AND(AS103>=0.4,AS103<0.55),V104,"") ->  | Z104: 25 | AB104: =IF(AND(AS104>=0.4,AS104<0.45),Z104,"") ->  | AD104: 25 | AF104: =IF(AND(AS105>=0.4,AS105<0.45),AD104,"") ->  | AH104: 25 | AJ104: =IF(AND(AS109>=0.4,AS109<0.45),AH104,"") ->  | AL104: 0 | AQ104: 0.3 | AR104: =SUMIF($F$7:$J$32,"30% AMI",$S$7:$U$32)+SUMIF($F$53:$J$78,"30% AMI",$S$53:$U$78) -> 0 | AS104: 0
C105: 0.35 | E105: 4.4 | F105: 8.8 | G105: =IF(AND(AL97="Yes",AS99>=0.35,AS99<0.4),E105,"") ->  | J105: 8.75 | K105: 17.5 | L105: =IF(AND(AS100>=0.35,AS100<0.4),J105,"") ->  | N105: 13.15 | O105: 26.3 | P105: =IF(AND(AS101>=0.35,AS101<0.4),N105,"") ->  | R105: 17.5 | T105: =IF(AND(AS102>=0.35,AS102<0.4),R105,"") ->  | V105: 18.75 | X105: =IF(AND(AS103>=0.35,AS103<0.4),V105,"") ->  | Z105: 25 | AB105: =IF(AND(AS104>=0.35,AS104<0.4),Z105,"") ->  | AD105: 25 | AF105: =IF(AND(AS105>=0.35,AS105<0.4),AD105,"") ->  | AH105: 25 | AJ105: =IF(AND(AS109>=0.35,AS109<0.4),AH105,"") ->  | AL105: 0 | AQ105: 0.25 | AR105: =SUMIF($F$7:$J$32,"25% AMI",$S$7:$U$32)++SUMIF($F$53:$J$78,"25% AMI",$S$53:$U$78) -> 0 | AS105: 0
C106: 0.3 | E106: 3.75 | F106: 7.5 | G106: =IF(AND(AL97="Yes",AS99>=0.3,AS99<0.35),E106,"") ->  | J106: 7.5 | K106: 15 | L106: =IF(AND(AS100>=0.3,AS100<0.35),J106,"") ->  | N106: 11.25 | O106: 22.5 | P106: =IF(AND(AS101>=0.3,AS101<0.35),N106,"") ->  | R106: 15 | T106: =IF(AND(AS102>=0.3,AS102<0.35),R106,"") ->  | V106: 18.75 | X106: =IF(AND(AS103>=0.3,AS103<0.35),V106,"") ->  | Z106: 22.5 | AB106: =IF(AND(AS104>=0.3,AS104<0.35),Z106,"") ->  | AD106: 25 | AF106: =IF(AND(AS105>=0.3,AS105<0.35),AD106,"") ->  | AH106: 25 | AJ106: =IF(AND(AS109>=0.3,AS109<0.35),AH106,"") ->  | AL106: 0 | AQ106: 0.2 | AR106: =SUMIF($F$7:$J$32,"20% AMI",$S$7:$U$32)+SUMIF($F$53:$J$78,"20% AMI",$S$53:$U$78) -> 0 | AS106: 0
C107: 0.25 | E107: 3.15 | F107: 6.3 | G107: =IF(AND(AL97="Yes",AS99>=0.25,AS99<0.3),E107,"") ->  | J107: 6.25 | K107: 12.5 | L107: =IF(AND(AS100>=0.25,AS100<0.3),J107,"") ->  | N107: 9.4 | O107: 18.8 | P107: =IF(AND(AS101>=0.25,AS101<0.3),N107,"") ->  | R107: 12.5 | T107: =IF(AND(AS102>=0.25,AS102<0.3),R107,"") ->  | V107: 15.65 | X107: =IF(AND(AS103>=0.25,AS103<0.3),V107,"") ->  | Z107: 18.75 | AB107: =IF(AND(AS104>=0.25,AS104<0.3),Z107,"") ->  | AD107: 21.9 | AF107: =IF(AND(AS105>=0.25,AS105<0.3),AD107,"") ->  | AH107: 25 | AJ107: =IF(AND(AS109>=0.25,AS109<0.3),AH107,"") ->  | AL107: 0 | AQ107: 0.15 | AR107: =SUMIF($F$7:$J$32,"15% AMI",$S$7:$U$32)+SUMIF($F$53:$J$78,"15% AMI",$S$53:$U$78) -> 0 | AS107: 0
C108: 0.2 | E108: 2.5 | F108: 5 | G108: =IF(AND(AL97="Yes",AS99>=0.2,AS99<0.25),E108,"") ->  | J108: 5 | K108: 10 | L108: =IF(AND(AS100>=0.2,AS100<0.25),J108,"") ->  | N108: 7.5 | O108: 15 | P108: =IF(AND(AS101>=0.2,AS101<0.25),N108,"") ->  | R108: 10 | T108: =IF(AND(AS102>=0.2,AS102<0.25),R108,"") ->  | V108: 12.5 | X108: =IF(AND(AS103>=0.2,AS103<0.25),V108,"") ->  | Z108: 15 | AB108: =IF(AND(AS104>=0.2,AS104<0.25),Z108,"") ->  | AD108: 17.5 | AF108: =IF(AND(AS105>=0.2,AS105<0.25),AD108,"") ->  | AH108: 20 | AJ108: =IF(AND(AS109>=0.2,AS109<0.25),AH108,"") ->  | AL108: 0 | AQ108: Total | AR108: =SUM(AR98:AR107) -> 0 | AS108: 0
C109: 0.15 | E109: 1.9 | F109: 3.8 | G109: =IF(AND(AL97="Yes",AS99>=0.15,AS99<0.2),E109,"") ->  | J109: 3.75 | K109: 7.5 | L109: =IF(AND(AS100>=0.15,AS100<0.2),J109,"") ->  | N109: 5.65 | O109: 11.3 | P109: =IF(AND(AS101>=0.15,AS101<0.2),N109,"") ->  | R109: 7.5 | T109: =IF(AND(AS102>=0.15,AS102<0.2),R109,"") ->  | V109: 9.4 | X109: =IF(AND(AS103>=0.15,AS103<0.2),V109,"") ->  | Z109: 11.25 | AB109: =IF(AND(AS104>=0.15,AS104<0.2),Z109,"") ->  | AD109: 13.1 | AF109: =IF(AND(AS105>=0.15,AS105<0.2),AD109,"") ->  | AH109: 15 | AJ109: =IF(AND(AS109>=0.15,AS109<0.2),AH109,"") ->  | AL109: 0 | AQ109: Below 20% | AS109: =SUM(AS106:AS107) -> 0
C110: 0.1 | E110: 1.25 | F110: 2.5 | G110: =IF(AND(AL97="Yes",AS99>=0.1,AS99<0.15),E110,"") ->  | J110: 2.5 | K110: 5 | L110: =IF(AND(AS100>=0.1,AS100<0.15),J110,"") ->  | N110: 3.75 | O110: 7.5 | P110: =IF(AND(AS101>=0.1,AS101<0.15),N110,"") ->  | R110: 5 | T110: =IF(AND(AS102>=0.1,AS102<0.15),R110,"") ->  | V110: 6.25 | X110: =IF(AND(AS103>=0.1,AS103<0.15),V110,"") ->  | Z110: 7.5 | AB110: =IF(AND(AS104>=0.1,AS104<0.15),Z110,"") ->  | AD110: 8.75 | AF110: =IF(AND(AS105>=0.1,AS105<0.15),AD110,"") ->  | AH110: 10 | AJ110: =IF(AND(AS109>=0.1,AS109<0.15),AH110,"") ->  | AL110: =SUM(G110,L110,P110,T110,X110,AB110,AF110,AJ110) -> 0

Sheet Eligibility and Threshold
A1: =CONCATENATE(Overview!D5," Eligibility and Threshold") -> Eligibility and Threshold | AK1: ='IIG Coverpage'!B11 -> 2021-06-21
A2: Eligible Projects §303
A3: (a) Is the CIP an integral part of, or necessary for the development of a QIP or housing designated within a QIA?
A4: File Name | D4: CIP Integral to QIP | L4: Applicant narrative and documentation evidencing the Locality requiring the CIP. | AF4: Uploaded to HCD?
A5: =CONCATENATE("(c)(1) Is ",Overview!AJ4," located in an Urbanized Area?") -> (c)(1) Is located in an Urbanized Area?
A6: File Name | D6: Urban Area | L6: Provide documentation of location in an Urbanized Area. §302(ll) | AF6: Uploaded to HCD?
A7: =CONCATENATE("(c)(2) Is ",Overview!AJ4," located in a Locality that has an adopted housing element in substantial compliance with Art. 10.6 (§65580) Ch. 3 Div. 1 of Title 7 (Gov. Code §65585)?") -> (c)(2) Is located in a Locality that has an adopted housing element in substantial compliance with Art. 10.6 (§65580) Ch. 3 Div. 1 of Title 7 (Gov. Code §65585)? | U7: A jurisdiction’s current housing element compliance status is obtainable thru HCD’s website.
A9: =CONCATENATE("(c)(2)(A) ",Overview!AJ4," located in a Locality at time of application that has submitted its housing element annual progress reports (required by Gov. Code §65400) for the current and prior year.") -> (c)(2)(A) located in a Locality at time of application that has submitted its housing element annual progress reports (required by Gov. Code §65400) for the current and prior year.
A10: =CONCATENATE("(c)(3) Does ",Overview!AJ4," include 15% or more Affordable Units (AU) excluding replacement units?") -> (c)(3) Does include 15% or more Affordable Units (AU) excluding replacement units? | V10: Total AUs (excluding replacement unit AUs) | AG10: =AF11+AF12 -> 0 | AH10: Total Units | AK10: =AL11+AL12 -> 0 | AL10: =IF(AL11=0,"No",IF(AG10/AK10<0.15,"No","Yes")) -> No
A11: =IF(Overview!AJ4="QIP:","QIP","Required QIP:") -> Required QIP: | F11: Rental AUs | I11: ='Max Funds and Unit Mix'!Y33 -> 0 | J11: HO AUs | L11: ='Max Funds and Unit Mix'!AB33 -> 0 | M11: Rental AUs to be replaced | T11: HO AUs to be replaced | AA11: Net QIP AUs | AF11: =I11+L11-S11-Z11 -> 0 | AG11: Total QIP Units | AL11: ='Max Funds and Unit Mix'!K33 -> 0
A12: Other-QIPs (QIA only) | F12: Rental AUs | I12: ='Max Funds and Unit Mix'!Y79 -> 0 | J12: HO AUs | L12: ='Max Funds and Unit Mix'!AB79 -> 0 | M12: Rental AUs to be replaced | T12: HO AUs to be replaced | AA12: Net other-QIP AUs | AF12: =I12+L12-S12-Z12 -> 0 | AG12: Total other-QIP Units | AL12: ='Max Funds and Unit Mix'!K79 -> 0
A13: File Name | D13: Replacement Housing Plan | L13: Provide the Replacement Housing Plan if there will be replacement units | AF13: Uploaded to HCD?
A14: =CONCATENATE("(c)(3) Does ",Overview!AJ4," have a disposition and development agreement or other specific agreement executed on or before August 24, 2007 between the Developer and the local agency having jurisdiction over the project that includes affordability covenants that subject the ",Overview!AJ4," to the production of Affordable Units for Very Low-, Lower- or Moderate-Income households?") -> (c)(3) Does have a disposition and development agreement or other specific agreement executed on or before August 24, 2007 between the Developer and the local agency having jurisdiction over the project that includes affordability covenants that subject the to the production of Affordable Units for Very Low-, Lower- or Moderate-Income households?
A15: File Name | D15: Development Agreement | L15: Agreement executed prior to August 24, 2007 that contains affordability covenants. | AF15: Uploaded to HCD?
A16: (c)(4) Average Net Density (dwelling units per acre)
A17: Are parcels to be developed within a Rural Area per §302(ee)? (Refer to the document entitled IIG Program, Rural Area Determination Procedures) | Y17: If yes (project is Rural), parcels to be developed must have a Net Density of 10 units per acre. | AJ17: =IF(W17="Yes",10,0) -> 0
A18: If non-Rural, enter minimum Net Density for parcels to be developed per Locality (see Appendix 1, click here): | W18: Net Density: housing units per acre | AB18: =IF('Eligibility and Threshold'!J25=0,0,SUM('Eligibility and Threshold'!AF19:AF24)/'Eligibility and Threshold'!J25) -> 0 | AD18: =CONCATENATE("Is the ",Overview!AJ4," Net Density equal to or greater than required §303(c)(4)?") -> Is the Net Density equal to or greater than required §303(c)(4)? | AL18: =IF(AB18>=MAX(U18,AJ17),"Yes","No") -> Yes
A19: =CONCATENATE("Total ",Overview!AJ4," site area in square feet") -> Total site area in square feet | J19: =(Overview!P64+Overview!AI64)*43560 -> 0 | N19: Non-qualified site deductions: utility easements, setbacks, private drives/walkways, landscaping, common areas and facilities, off street parking, drainage facilities exclusive to a development project & other related mitigation space required. | X19: 0 bedroom Net Density calculation | AF19: =((SUMIF('Max Funds and Unit Mix'!$A$7:$B$32,"0",'Max Funds and Unit Mix'!$K$7:$L$32)+(SUMIF('Max Funds and Unit Mix'!$A$53:$B$78,"0",'Max Funds and Unit Mix'!$K$53:$L$78)))*0.7) -> 0
A20: =CONCATENATE("Less ",Overview!AJ4," qualified site deductions* in square feet") -> Less qualified site deductions* in square feet | X20: 1 bedroom Net Density calculation | AF20: =(SUMIF('Max Funds and Unit Mix'!$A$7:$B$32,"1",'Max Funds and Unit Mix'!$K$7:$L$32)+(SUMIF('Max Funds and Unit Mix'!$A$53:$B$78,"1",'Max Funds and Unit Mix'!$K$53:$L$78)))*0.9 -> 0
A21: Public streets | X21: 2 bedroom Net Density calculation | AF21: =((SUMIF('Max Funds and Unit Mix'!$A$7:$B$32,"2",'Max Funds and Unit Mix'!$K$7:$L$32)+(SUMIF('Max Funds and Unit Mix'!$A$53:$B$78,"2",'Max Funds and Unit Mix'!$K$53:$L$78)))*1.2) -> 0
A22: Public sidewalks | X22: 3 bedroom Net Density calculation | AF22: =((SUMIF('Max Funds and Unit Mix'!$A$7:$B$32,"3",'Max Funds and Unit Mix'!$K$7:$L$32)+(SUMIF('Max Funds and Unit Mix'!$A$53:$B$78,"3",'Max Funds and Unit Mix'!$K$53:$L$78)))*1.6) -> 0
A23: Public Open Space | N23: =CONCATENATE("If ",Overview!AJ4," contains commercial, answer V24-25") -> If contains commercial, answer V24-25 | X23: 4 bedroom Net Density calculation | AF23: =((SUMIF('Max Funds and Unit Mix'!$A$7:$B$32,"4",'Max Funds and Unit Mix'!$K$7:$L$32)+(SUMIF('Max Funds and Unit Mix'!$A$53:$B$78,"4",'Max Funds and Unit Mix'!$K$53:$L$78)))*1.8) -> 0 | AG23: Commercial square feet | AJ23: =Overview!P65+Overview!AI65 -> 0
A24: Public drainage facilities | N24: Square ft. of largest residential unit | X24: Commercial Net Density calculation | AF24: =IF(V24=0,0,IF(AJ23<=0,0,ROUNDDOWN((AJ23/V24),0)*N25)) -> 0
A25: Net site area in acres (43,560 square feet per acre) | J25: =(J19-J21-J22-J23-J24)/43560 -> 0 | N25: =IF(V25=0,0.7,IF(V25=1,0.9,IF(V25=2,1.2,IF(V25=3,1.6,IF(V25=4,1.8))))) -> 0.7 | O25: # of bedrooms in largest unit | X25: =CONCATENATE(Overview!AJ4," adjusted Net Density as a percentage of required density §309(c)(2)") -> adjusted Net Density as a percentage of required density §309(c)(2) | AI25: =IF(J25=0,0,SUM(AF19:AF24)/MAX(U18,AJ17)/J25) -> 0
A26: =CONCATENATE("(c)(5) Is ",Overview!AJ4," located in area designated for mixed-use or residential development pursuant to one of the following plans? If Yes, select plan.") -> (c)(5) Is located in area designated for mixed-use or residential development pursuant to one of the following plans? If Yes, select plan.
A27: File Name | D27: Relevant Development Plan | L27: Provide, label and attach a copy of the relevant plan showing area designation. | AF27: Uploaded to HCD?
A28: (c)(6) Can the Applicant identify a mechanism, such as a minimum density ordinance or a recorded, binding covenant, to reliably ensure that future development will occur at an overall Net Density set forth in §303(c)(4)? This mechanism must be in effect and legally enforceable prior to the disbursement of Program funds.
A29: File Name | D29: Net Density Verification | L29: Provide a minimum density ordinance, recorded binding covenant or date stamped map and letter certified by a California State-licensed professional such as an engineer, surveyor or landscape architect confirming the Net Density. | AF29: Uploaded to HCD?
A30: (c)(7) Will the Applicant designate the proposed residential units in the QIP, and/or within the QIA (non-QIP), that the Applicant intends to utilize for the purpose of establishing the max Program grant amount pursuant to §305, and for the purpose of rating applications pursuant to §309 or §310.
A31: (c)(8) Does this application demonstrate that the percentage of Affordable Units (AUs), and units restricted to other income limits and rents as designated for the purpose of determining the max Program grant amount shall be maintained or exceeded through the completion of each proposed residential development?
A32: (c)(9) Applicant certifies construction shall not have commenced on any units designated in the application prior to the application submittal deadline?
A33: File Name | D33: Construction exception | L33: If applicable, label and attach agreement requiring AUs be built as a local approval condition. | AF33: Uploaded to HCD?
A34: Eligible Costs §304
A35: (a)(4)(A) Total number of Structured Parking spaces - that are (1) required replacement of Transit Station parking spaces or (2) public Structured Parking required as a condition of approval for the QIP within one-half mile of a Major Transit Stop or Transit Station: | AE35: Are costs less than or equal to $50,000 per parking space? | AL35: =IF(OR(AC35="",AC35=0,'Dev Budget'!R165=0),"",IF('Dev Budget'!R165/AC35>50000,"No","Yes")) -> 
A36: (a)(4)(B) Total number of residential per unit parking spaces in Structured Parking, as required by local land-use entitlement approval, not to exceed one parking space per residential unit, and not to exceed $50,000 per permitted space: | Y36: Spaces exceed one space per unit? | AC36: =IF(W36>'Max Funds and Unit Mix'!K33,"Yes","No") -> No | AE36: Are costs less than or equal to $50,000 per parking space? | AL36: =IF(OR(W36="",W36=0,'Dev Budget'!R172=""),"",IF('Dev Budget'!R172/W36>50000,"No","Yes")) -> 
A37: (a)(15) Impact fees for the CIP are required by local ordinance? | N37: If Yes, impact fees do not to exceed 5% of the total Program grant amount? Describe below the fee(s), Locality and how the impact fee(s) will be used for the CIP: | AL37: =IF('Dev Budget'!R189=0,"",IF('Dev Budget'!R189>('Dev Budget'!B198*0.05),"No","Yes")) -> 
A39: We certify the CIP funded costs do not include any of the following ineligible costs: (b)(1) Developer Fees or profit. (b)(2) Costs of site acquisition for housing and mixed use structural improvements. (b)(3) Costs of housing or mixed use structures. (b)(4) Soft costs related to ineligible costs. (b)(5) In lieu fees for local inclusionary programs.
A40: Application Threshold Requirements - §308
A41: (a)(2) We certify that construction of the CIP has not commenced as of the application deadline set forth in the NOFA?
A42: (a)(3) We certify the CIP is infeasible without Program funds, and other available funds are not and will not be supplanted by Program funds?
A43: (a)(4) Does Applicant have Site Control §302(gg) for the CIP Project? If Yes, enter form of Site Control and the most recent execution date below.
A44: Form of Site Control §302(gg): | Z44: Most recent document execution date:
A45: (a)(5) We certify all proposed uses of Program funds must be eligible pursuant to §304?
A46: (b) Is application sufficiently complete to assess feasibility of application and its compliance with Program requirements?
A47: Describe any special circumstances:
A49: File Name | D49: CIP Site Control | L49: Appropriate documentation to demonstrate the form of Site Control indicated above. | AF49: Uploaded to HCD?
A50: Does the required QIP trigger State Relocation Assistance Law (CA Gov Code §7260-7277)?
A51: If Yes, provide a narrative discussion on the number of impacted households and provided relocation assistance including what actions have or will be taken to comply with State Relocation Assistance Law? If No, provide documentation supporting relocation is not required.
A52: File Name | D52: QIP Relocation Plan | L52: Must provide a Relocation Plan or documentation supporting no relocation. | AF52: Uploaded to HCD?
A53: (c) We certify we will comply with all state and federal fair housing laws. Compliance with state law includes but is not limited to the duty to carry out the program in a manner to affirmatively further fair housing, and take no action that is materially inconsistent with Affirmatively Furthering Fair Housing pursuant to CA Gov Code §8899.50?
A54: File Name | D54: Fair Housing Self-Certification | L54: Must provide a self-certification document that is acceptable to HCD certifying that the Occupancy restrictions will be carried out in a manner that is consistent with federal fair housing laws | AF54: Uploaded to HCD?
A55: Market Study
A56: Does Market study demonstrate QIP is financially feasible? - Must submit a market study that meets the requirements specified in TCAC Regs §10322(h)(10)
A57: File Name | D57: Market Study | L57: Must provide a completed market study prepared within one year of the application due date. | AF57: Uploaded to HCD?
A58: Tax Credits (TC)
A59: Select appropriate entry for each item:
A60: Project Tax Credit Type | I60: Federal | M60: Proposed equity investor contribution ($) | AA60: Anticipated tax credit factor | AI60: App rate
I61: State | M61: Proposed equity investor contribution ($) | AA61: Anticipated tax credit factor | AI61: App rate
A62: Timeframe for applying for 4%Tax Credits | J62: Proposed month | R62: Proposed year
A63: Timeframe for applying for 9%Tax Credits | J63: Proposed round | R63: Proposed year
A64: If already awarded, date of the Tax Credit Reservation
A65: File Name | D65: Tax Credit Reservation | L65: If the Project has already received a tax credit reservation, upload documentation. | AF65: Uploaded to HCD?
A66: Milestones
A67: What covenants or regulatory agreements are already on title?
A68: What covenants or regulatory agreements are anticipated?
A69: Note: Some of the following milestones may have already been achieved. For previously met milestones, please enter the month and year completed. For those milestones not yet completed, please provide a projected completion date (MM/YY) for each of the applicable items below. If not applicable to the specific Capital Project, please indicate "NA" below.
A70: Provide the actual or anticipated completion date for the following performance milestones for the CIP. If a milestone is not applicable, please enter "N/A".
AG71: CIP Date | AJ71: QIP Date
A72: Executed binding agreement between Applicant and Developer of the proposed QIP detailing the terms and conditions of the development.
A73: Completion of all necessary environmental clearances, including those required under CEQA and NEPA.
A74: Obtaining all necessary and discretionary public land use approvals.
A75: Obtaining enforceable commitments for all construction/permanent financing described in the Sources and Uses including substantially final construction/permanent loan documents, and Tax Credit syndication documents for remaining phases of Project.
A76: Submission of Final Construction Drawings and Specifications to the appropriate local building department or permitting authority.
A77: Commencement of construction.
A78: Construction complete and the filing of the Notice of Completion.

Sheet Dev Sources
A1: =CONCATENATE(Overview!D5," ",IF(Overview!AJ4="QIP","QIP and all CIPs Sources of Funds","QIP(s) and all CIP(s) Sources of Funds")) -> QIP(s) and all CIP(s) Sources of Funds | S1: ='IIG Coverpage'!B11 -> 2021-06-21
A2: =IF(Overview!AJ4="QIP","See §309(a)(3) for an explanation of funding commitments","See §310(a)(4) for an explanation of funding commitments") -> See §310(a)(4) for an explanation of funding commitments
A3: =IF(Overview!AJ4="QIP","QIP and all CIPs Construction Period Sources of Funds","QIP (Required by QIA) and all CIPs Construction Period Sources of Funds") -> QIP (Required by QIA) and all CIPs Construction Period Sources of Funds
A4: Funding Committed by Application Due Date? | C4: Unit Type | D4: CIP or QIP #1 | E4: Source Name (listed in order of lien priority) | H4: Source Type | I4: =IF(Overview!AJ4="QIP","Local Support §309(a)(4)","Local Support §310(a)(5)") -> Local Support §310(a)(5) | J4: Lien No. | K4: Residential Amount | L4: Commercial Amount | M4: Total Amount | N4: Interest Rate | O4: Required Payment | P4: Loan Term (months) | Q4: *Details of Deferred Costs
Q5: Amount | R5: Description
A6: 1 | B6: Yes | D6: CIP | E6: IIG CIP Grant | H6: State-HCD | I6: No | J6: 1 | M6: =K6+L6 -> 0
A7: 2 | M7: =K7+L7 -> 0
A8: 3 | M8: 0
A9: 4 | M9: 0
A10: 5 | M10: 0
A11: 6 | M11: 0
A12: 7 | M12: 0
A13: 8 | M13: 0
A14: 9 | M14: 0
A15: 10 | M15: 0
A16: 11 | M16: 0
A17: 12 | M17: 0
A18: 13 | M18: 0
A19: 14 | M19: 0
A20: 15 | M20: 0
A21: 16 | M21: 0
A22: 17 | M22: 0
A23: 18 | M23: 0
A24: 19 | M24: 0
A25: 20 | D25: QIP #1 | E25: Deferred costs (detail at right) | K25: =Q27 -> 0 | M25: 0
A26: 21 | D26: QIP #1 | E26: Equity Investor | M26: 0
A27: ='Max Funds and Unit Mix'!M32 ->  | C27: =SUMPRODUCT(($B$6:$B$26="Yes")*($M$6:$M$26)) -> 0 | D27: <Total funds committed | F27: =IF($M$27=0,0,C27/($M$27-$K$25)) -> 0 | G27: <% Funds committed | J27: TOTALS | K27: =SUM(K6:K26) -> 0 | L27: =SUM(L6:L25) -> 0 | M27: =SUM(M6:M26) -> 0 | Q27: =SUM(Q6:Q25) -> 0
A28: ='Max Funds and Unit Mix'!M33 -> 0 | B28: <Rental Units | C28: =SUMPRODUCT(($B$6:$B$26="Yes")*($C$6:$C$26="Rental")*($M$6:$M$26)) -> 0 | D28: <Total Rental funds committed | F28: =IF($M$27=0,0,C28/($M$27-$K$25)) -> 0 | G28: <% Rental funds committed
A29: ='Max Funds and Unit Mix'!P33 -> 0 | B29: <HO Units | C29: =SUMPRODUCT(($B$6:$B$26="Yes")*($C$6:$C$26="Homeowner")*($M$6:$M$26)) -> 0 | D29: <Total HO funds committed | F29: =IF($M$27=0,0,C29/($M$27-$K$25)) -> 0 | G29: <% HO funds committed
C30: =SUMPRODUCT(($B$6:$B$26="Yes")*($D$6:$D$26="CIP")*($M$6:$M$26)) -> 0 | D30: <Total CIP funds committed | F30: =IF($M$27=0,0,C30/'Dev Budget'!R198) -> 0 | G30: <% Funds committed
A31: QIPs (excuding the required QIP above) Construction Period Sources of Funds
A32: Funding Committed by Application Due Date? | C32: Unit Type | D32: QIP #2, 3, 4 or 5 | E32: Source Name (listed in order of lien priority) | H32: Source Type | I32: =IF(Overview!AJ36="QIP","Local Support §309(a)(4)","Local Support §310(a)(5)") -> Local Support §310(a)(5) | J32: Lien No. | K32: Residential Amount | L32: Commercial Amount | M32: Total Amount | N32: Interest Rate | O32: Required Payment | P32: Loan Term (months) | Q32: *Details of Deferred Costs
Q33: Amount | R33: Description
A34: 1 | M34: =K34+L34 -> 0
A35: 2 | M35: =K35+L35 -> 0
A36: 3 | M36: 0
A37: 4 | M37: 0
A38: 5 | M38: 0
A39: 6 | M39: 0
A40: 7 | M40: 0
A41: 8 | M41: 0
A42: 9 | M42: 0
A43: 10 | M43: 0
A44: 11 | M44: 0
A45: 12 | M45: 0
A46: 13 | M46: 0
A47: 14 | M47: 0
A48: 15 | M48: 0
A49: 16 | M49: 0
A50: 17 | M50: 0
A51: 18 | M51: 0
A52: 19 | M52: 0
A53: 20 | D53: All QIPs | E53: Deferred costs (detail at right) | K53: =Q55 -> 0 | M53: 0
A54: 21 | D54: All QIPs | E54: Equity Investor | M54: 0
A55: ='Max Funds and Unit Mix'!M67 ->  | C55: =SUMPRODUCT(($B$34:$B$54="Yes")*($M$34:$M$54)) -> 0 | D55: <Total funds committed | F55: =IF($M$55=0,0,C55/($M$55-$K$53)) -> 0 | G55: <% Funds committed | J55: TOTALS | K55: =SUM(K34:K54) -> 0 | L55: =SUM(L34:L53) -> 0 | M55: =SUM(M34:M54) -> 0 | Q55: =SUM(Q34:Q53) -> 0
A56: =IF(Overview!AJ4="QIP","QIP and all CIPs Permanent Sources of Funds","QIP (Required by QIA) and all CIP Permanent Sources of Funds") -> QIP (Required by QIA) and all CIP Permanent Sources of Funds
A57: Funding Committed by Application Due Date? | C57: Rental vs Homeowner (HO) | D57: CIP or QIP #1 | E57: Source Name (listed in order of lien priority) | H57: Source Type | I57: =IF(Overview!AJ4="QIP","Local Support §309(a)(4)","Local Support §310(a)(5)") -> Local Support §310(a)(5) | J57: Lien No. | K57: Residential Amount | L57: Commercial Amount | M57: Total Amount | N57: Interest Rate | P57: Repayment Terms | R57: Required Residential Debt Service | S57: Required Commercial Debt Service
N58: Type | O58: Rate | P58: Type | Q58: Due in (yrs)
A59: 1 | B59: Yes | D59: CIP | E59: IIG CIP Grant | H59: State-HCD | I59: No | J59: 1 | M59: =K59+L59 -> 0 | T59: Fixed for Term
A60: 2 | M60: =K60+L60 -> 0 | T60: Fixed with Reset
A61: 3 | M61: 0 | T61: Fixed, then Variable
A62: 4 | M62: 0 | T62: Variable
A63: 5 | M63: 0 | T63: Other
A64: 6 | M64: 0
A65: 7 | M65: 0
A66: 8 | M66: 0
A67: 9 | M67: 0
A68: 10 | M68: 0
A69: 12 | M69: 0
A70: 12 | M70: 0
A71: 13 | M71: 0
A72: 14 | D72: QIP #1 | E72: Private mortgage financing | M72: 0
A73: 15 | D73: QIP #1 | E73: Deferred costs | M73: 0
A74: 16 | D74: QIP #1 | E74: Equity Investor | M74: 0
F75: TOTALS | K75: =SUM(K59:K74) -> 0 | L75: =SUM(L59:L74) -> 0 | M75: =SUM(M59:M74) -> 0 | N75: TOTALS | R75: =SUM(R59:R73) -> 0 | S75: =SUM(S59:S74) -> 0
A76: ='Max Funds and Unit Mix'!M33 -> 0 | B76: <Rental Units | C76: =SUMPRODUCT(($B$59:$B$74="Yes")*($C$59:$C$74="Rental")*($D$59:$D$74="QIP #1")*($M$59:$M$74)) -> 0 | D76: <Total QIP Rental funds committed | F76: =IF(OR($M$75=0,C76=0),0,C76/(SUMPRODUCT(($C$59:$C$74="Rental")*($D$59:$D$74="QIP #1")*($M$59:$M$74))-$M$72-$M$73)) -> 0 | G76: <% QIP Rental funds committed
A77: ='Max Funds and Unit Mix'!P33 -> 0 | B77: <HO units | C77: =SUMPRODUCT(($B$59:$B$74="Yes")*($C$59:$C$74="Homeowner")*($D$59:$D$74="QIP #1")*($M$59:$M$74)) -> 0 | D77: <Total QIP HO funds committed | F77: =IF(OR($M$75=0,C77=0),0,C77/(SUMPRODUCT(($C$59:$C$74="Homeowner")*($D$59:$D$74="QIP #1")*($M$59:$M$74))-$M$72-$M$73)) -> 0 | G77: <% QIP HO funds committed
A78: Applicant comments: Include a description of ballon payments and unusual or extraordinary circumstances that have resulted in higher than expected project costs and provide a justification as to why these costs are reasonable.

Sheet Dev Budget
A1: =CONCATENATE(Overview!D5," ",IF(Overview!AJ4="QIP","QIP Residential and all CIP Permanent Sources of Funds","QIP (Required by QIA) Residential and all CIP Permanent Sources of Funds")) -> QIP (Required by QIA) Residential and all CIP Permanent Sources of Funds | R1: ='IIG Coverpage'!B11 -> 2021-06-21 | S1: Commercial Sources
A2: USES OF FUNDS | B2: ='Dev Sources'!$E$59 -> IIG CIP Grant | C2: ='Dev Sources'!$E$60 -> 0 | D2: ='Dev Sources'!$E$61 -> 0 | E2: ='Dev Sources'!$E$62 -> 0 | F2: ='Dev Sources'!$E$63 -> 0 | G2: ='Dev Sources'!$E$64 -> 0 | H2: ='Dev Sources'!$E$65 -> 0 | I2: ='Dev Sources'!$E$66 -> 0 | J2: ='Dev Sources'!$E$67 -> 0 | K2: ='Dev Sources'!$E$68 -> 0 | L2: ='Dev Sources'!$E$69 -> 0 | M2: ='Dev Sources'!$E$70 -> 0 | N2: ='Dev Sources'!$E$71 -> 0 | O2: ='Dev Sources'!$E$72 -> Private mortgage financing | P2: ='Dev Sources'!$E$73 -> Deferred costs | Q2: ='Dev Sources'!$E$74 -> Equity Investor | R2: Total Residential Sources/Costs | S2: Total Commercial Sources/Costs | T2: Source Name: | U2: Source Name:
A4: =IF(Overview!AJ4="QIA","Required QIP (QIA applications only)","Qualifying Infill Project (QIP)") -> Qualifying Infill Project (QIP)
A5: LAND COST/ACQUISITION
A6: Land Cost or Value | R6: =SUM(C6:Q6) -> 0 | S6: =T6+U6 -> 0
A7: Demolition | R7: =SUM(C7:Q7) -> 0 | S7: =T7+U7 -> 0
A8: Legal | R8: 0 | S8: 0
A9: Land Lease Rent Prepayment | R9: 0 | S9: 0
A10: Total Land Cost or Value | C10: =SUM(C6:C9) -> 0 | D10: 0 | E10: 0 | F10: 0 | G10: 0 | H10: 0 | I10: 0 | J10: 0 | K10: 0 | L10: 0 | M10: 0 | N10: 0 | O10: 0 | P10: 0 | Q10: 0 | R10: 0 | S10: 0 | T10: =SUM(T6:T9) -> 0 | U10: 0
A11: Existing Improvements Cost or Value | R11: =SUM(C11:Q11) -> 0 | S11: 0
A12: Off-Site Improvements | R12: 0 | S12: 0
A13: Total Acquisition Cost | C13: =SUM(C11:C12) -> 0 | D13: 0 | E13: 0 | F13: 0 | G13: 0 | H13: 0 | I13: 0 | J13: 0 | K13: 0 | L13: 0 | M13: 0 | N13: 0 | O13: 0 | P13: 0 | Q13: 0 | R13: 0 | S13: 0 | T13: =SUM(T11:T12) -> 0 | U13: 0
A14: Total Land Cost / Acquisition Cost | C14: =SUM(C10+C13) -> 0 | D14: 0 | E14: 0 | F14: 0 | G14: 0 | H14: 0 | I14: 0 | J14: 0 | K14: 0 | L14: 0 | M14: 0 | N14: 0 | O14: 0 | P14: 0 | Q14: 0 | R14: 0 | S14: 0 | T14: =SUM(T10+T13) -> 0 | U14: =SUM(U10+U13) -> 0
A15: Predevelopment Interest/Holding Cost | R15: =SUM(C15:Q15) -> 0 | S15: 0
A16: Assumed, Accrued Interest on Existing Debt (Rehab/Acq) | R16: 0 | S16: 0
A17: Excess Purchase Price Over Appraisal | R17: 0 | S17: 0
A18: Total Relocation Costs | R18: =SUM(C18:Q18) -> 0 | S18: 0
A19: NEW CONSTRUCTION
A20: Site Work | R20: =SUM(C20:Q20) -> 0 | S20: =T20+U20 -> 0
A21: Structures | R21: 0 | S21: 0
A22: General Requirements | R22: 0 | S22: 0
A23: Contractor Overhead | R23: 0 | S23: 0
A24: Contractor Profit | R24: 0 | S24: 0
A25: Prevailing Wages | R25: 0 | S25: 0
A26: General Liability Insurance | R26: 0 | S26: 0
A27: Urban Greening | R27: 0 | S27: 0
A28: Other New Construction: (Specify) | R28: 0 | S28: 0
A29: Other New Construction: (Specify) | R29: 0 | S29: 0
A30: Other New Construction: (Specify) | R30: 0 | S30: 0
A31: Total New Construction | C31: =SUM(C20:C30) -> 0 | D31: =SUM(D20:D30) -> 0 | E31: 0 | F31: 0 | G31: 0 | H31: 0 | I31: 0 | J31: 0 | K31: 0 | L31: 0 | M31: 0 | N31: 0 | O31: 0 | P31: 0 | Q31: 0 | R31: 0 | S31: 0 | T31: =SUM(T20:T30) -> 0 | U31: 0
A32: ARCHITECTURAL FEES
A33: Design | R33: =SUM(C33:Q33) -> 0 | S33: =T33+U33 -> 0
A34: Supervision | R34: 0 | S34: 0
A35: Total Architectural | C35: =SUM(C32:C34) -> 0 | D35: =SUM(D32:D34) -> 0 | E35: 0 | F35: 0 | G35: 0 | H35: 0 | I35: 0 | J35: 0 | K35: 0 | L35: 0 | M35: 0 | N35: 0 | O35: 0 | P35: 0 | Q35: 0 | R35: 0 | S35: 0 | T35: =SUM(T32:T34) -> 0 | U35: 0
A36: Total Survey & Engineering | R36: 0 | S36: 0
A37: CONSTRUCTION INTEREST & FEES
A38: Construction Loan Interest | R38: =SUM(C38:Q38) -> 0 | S38: =T38+U38 -> 0
A39: Origination Fee | R39: 0 | S39: 0
A40: Credit Enhancement/Application Fee | R40: 0 | S40: 0
A41: Bond Premium | R41: 0 | S41: 0
A42: Cost of Issuance | R42: 0 | S42: 0
A43: Title & Recording | R43: 0 | S43: 0
A44: Taxes | R44: 0 | S44: 0
A45: Insurance | R45: 0 | S45: 0
A46: Employment Reporting | R46: 0 | S46: 0
A47: Other Construction Int. & Fees: (Specify) | R47: 0 | S47: 0
A48: Other Construction Int. & Fees: (Specify) | R48: =SUM(C48:Q48) -> 0 | S48: 0
A49: Other Construction Int. & Fees: (Specify) | R49: 0 | S49: 0
A50: Other Construction Int. & Fees: (Specify) | R50: 0 | S50: 0
A51: Total Construction Interest & Fees | C51: =SUM(C38:C50) -> 0 | D51: =SUM(D38:D50) -> 0 | E51: 0 | F51: 0 | G51: 0 | H51: 0 | I51: 0 | J51: 0 | K51: 0 | L51: 0 | M51: 0 | N51: 0 | O51: 0 | P51: 0 | Q51: 0 | R51: 0 | S51: 0 | T51: =SUM(T38:T50) -> 0 | U51: 0
A52: PERMANENT FINANCING
A53: Loan Origination Fee | R53: =SUM(C53:Q53) -> 0 | S53: =T53+U53 -> 0
A54: Credit Enhancement/Application Fee | R54: 0 | S54: 0
A55: Title & Recording | R55: 0 | S55: 0
A56: Taxes | R56: 0 | S56: 0
A57: Insurance | R57: 0 | S57: 0
A58: Other Perm. Financing Costs: (Specify) | R58: 0 | S58: 0
A59: Other Perm. Financing Costs: (Specify) | R59: =SUM(C59:Q59) -> 0 | S59: 0
A60: Other Perm. Financing Costs: (Specify) | R60: 0 | S60: 0
A61: Other Perm. Financing Costs: (Specify) | R61: 0 | S61: 0
A62: Total Permanent Financing | C62: =SUM(C53:C61) -> 0 | D62: 0 | E62: 0 | F62: 0 | G62: 0 | H62: 0 | I62: 0 | J62: 0 | K62: 0 | L62: 0 | M62: 0 | N62: 0 | O62: 0 | P62: 0 | Q62: 0 | R62: 0 | S62: 0 | T62: =SUM(T53:T61) -> 0 | U62: 0
A63: Subtotals Forward | C63: =SUM(C10+C13+C15+C16+C17+C18+C31+C35+C36+C51+C62) -> 0 | D63: =SUM(D10+D13+D15+D16+D17+D18+D31+D35+D36+D51+D62) -> 0 | E63: 0 | F63: 0 | G63: 0 | H63: 0 | I63: 0 | J63: 0 | K63: 0 | L63: 0 | M63: 0 | N63: 0 | O63: 0 | P63: 0 | Q63: 0 | R63: 0 | S63: 0 | T63: 0 | U63: 0
A64: LEGAL FEES
A65: Legal Paid by Applicant | R65: =SUM(C65:Q65) -> 0 | S65: 0
A66: Other Attorney Costs: (Specify) | R66: =SUM(C66:Q66) -> 0 | S66: 0
A67: Other Attorney Costs: (Specify) | R67: 0 | S67: 0
A68: Other Attorney Costs: (Specify) | R68: 0 | S68: 0
A69: Total Legal Fees | C69: =SUM(C64:C68) -> 0 | D69: =SUM(D64:D68) -> 0 | E69: 0 | F69: 0 | G69: 0 | H69: 0 | I69: 0 | J69: 0 | K69: 0 | L69: 0 | M69: 0 | N69: 0 | O69: 0 | P69: 0 | Q69: 0 | R69: 0 | S69: 0 | T69: 0 | U69: 0
A70: RESERVES
A71: Operating Reserve | R71: =SUM(C71:Q71) -> 0 | S71: =T71+U71 -> 0
A72: Replacement Reserve | R72: 0 | S72: 0
A73: Transition Reserve | R73: 0 | S73: 0
A74: Rent Reserve | R74: 0 | S74: 0
A75: Other Reserve Costs: (Specify) | R75: 0 | S75: 0
A76: Other Reserve Costs: (Specify) | R76: 0 | S76: 0
A77: Other Reserve Costs: (Specify) | R77: 0 | S77: 0
A78: Total Reserves | C78: =SUM(C71:C77) -> 0 | D78: 0 | E78: 0 | F78: 0 | G78: 0 | H78: 0 | I78: 0 | J78: 0 | K78: 0 | L78: 0 | M78: 0 | N78: 0 | O78: 0 | P78: 0 | Q78: 0 | R78: 0 | S78: 0 | T78: =SUM(T71:T77) -> 0 | U78: 0
A79: CONTINGENCY COSTS
A80: Construction Hard Cost Contingency | R80: =SUM(C80:Q80) -> 0 | S80: =T80+U80 -> 0
A81: Soft Cost Contingency | R81: 0 | S81: 0
A82: Total Contingency | C82: =SUM(C80:C81) -> 0 | D82: 0 | E82: 0 | F82: 0 | G82: 0 | H82: 0 | I82: 0 | J82: 0 | K82: 0 | L82: 0 | M82: 0 | N82: 0 | O82: 0 | P82: 0 | Q82: 0 | R82: 0 | S82: 0 | T82: =SUM(T80:T81) -> 0 | U82: 0
A83: OTHER PROJECT COSTS
A84: TCAC App/Allocation/Monitoring Fees | R84: =SUM(C84:Q84) -> 0 | S84: =T84+U84 -> 0
A85: Environmental Audit | R85: 0 | S85: 0
A86: Local Development Impact Fees | R86: 0 | S86: 0
A87: Permit Processing Fees | R87: 0 | S87: 0
A88: Capital Fees | R88: 0 | S88: 0
A89: Marketing | R89: 0 | S89: 0
A90: Furnishings | R90: 0 | S90: 0
A91: Market Study | R91: 0 | S91: 0
A92: Accounting/Reimbursable | R92: 0 | S92: 0
A93: Appraisal Costs | R93: 0 | S93: 0
A94: Other Costs: (Specify) | R94: 0 | S94: 0
A95: Other Costs: (Specify) | R95: 0 | S95: 0
A96: Other Costs: (Specify) | R96: 0 | S96: 0
A97: Other Costs: (Specify) | R97: 0 | S97: 0
A98: Other Costs: (Specify) | R98: 0 | S98: 0
A99: Other Costs: (Specify) | R99: 0 | S99: 0
A100: Total Other | C100: =SUM(C84:C99) -> 0 | D100: =SUM(D84:D99) -> 0 | E100: 0 | F100: 0 | G100: 0 | H100: 0 | I100: 0 | J100: 0 | K100: 0 | L100: 0 | M100: 0 | N100: 0 | O100: 0 | P100: 0 | Q100: 0 | R100: 0 | S100: 0 | T100: =SUM(T84:T99) -> 0 | U100: 0
A101: Subtotal Project Costs | C101: =SUM(C63+C69+C78+C82+C100) -> 0 | D101: =SUM(D63+D69+D78+D82+D100) -> 0 | E101: 0 | F101: 0 | G101: 0 | H101: 0 | I101: 0 | J101: 0 | K101: 0 | L101: 0 | M101: 0 | N101: 0 | O101: 0 | P101: 0 | Q101: 0 | R101: 0 | S101: 0 | T101: =SUM(T63+T69+T78+T82+T100) -> 0 | U101: 0
A102: DEVELOPER COSTS
A103: Developer Overhead/Profit | R103: =SUM(C103:Q103) -> 0 | S103: =T103+U103 -> 0
A104: Consultant/Processing Agent | R104: 0 | S104: 0
A105: Project Administration | R105: 0 | S105: 0
A106: Broker Fees Paid to a Related Party | R106: 0 | S106: 0
A107: Construction Oversight by Developer | R107: 0 | S107: 0
A108: Other Developer Costs: (Specify) | R108: 0 | S108: 0
A109: Total Developer Costs | B109: =SUM(B103:B108) -> 0 | C109: 0 | D109: 0 | E109: 0 | F109: 0 | G109: 0 | H109: 0 | I109: 0 | J109: 0 | K109: 0 | L109: 0 | M109: 0 | N109: 0 | O109: 0 | P109: 0 | Q109: 0 | R109: 0 | S109: 0 | T109: =SUM(T103:T108) -> 0 | U109: 0
A110: TOTAL PROJECT COST | B110: =SUM(B101+B109) -> 0 | C110: 0 | D110: 0 | E110: 0 | F110: 0 | G110: 0 | H110: 0 | I110: 0 | J110: 0 | K110: 0 | L110: 0 | M110: 0 | N110: 0 | O110: 0 | P110: 0 | Q110: 0 | R110: 0 | S110: 0 | T110: =SUM(T101+T109) -> 0 | U110: =SUM(U101+U109) -> 0
A111: Capital Improvement Project(s) (CIP)
A112: Site acquisition of CIP including easements and right of ways | R112: =SUM(B112:Q112) -> 0
A113: Other: | R113: =SUM(B113:Q113) -> 0
A114: Total Site Acquisition (not parking) | B114: =SUM(B112:B113) -> 0 | C114: =SUM(C112:C113) -> 0 | D114: =SUM(D112:D113) -> 0 | E114: 0 | F114: 0 | G114: 0 | H114: 0 | I114: 0 | J114: 0 | K114: 0 | L114: 0 | M114: 0 | N114: 0 | O114: 0 | P114: =SUM(P112:P113) -> 0 | Q114: 0 | R114: 0
A115: Clearing and Grubbing | R115: =SUM(B115:Q115) -> 0
A116: Demolition | R116: 0
A117: Excavation | R117: 0
A118: Grading | R118: 0
A119: Soil Stabilization (Lime, etc.) | R119: 0
A120: Erosion/Weed Control | R120: 0
A121: Dewatering | R121: 0
A122: Other: | R122: 0
A123: Other: | R123: 0
A124: Total Site Preparation | B124: =SUM(B115:B123) -> 0 | C124: =SUM(C115:C123) -> 0 | D124: 0 | E124: 0 | F124: 0 | G124: 0 | H124: 0 | I124: 0 | J124: 0 | K124: 0 | L124: 0 | M124: 0 | N124: 0 | O124: 0 | P124: =SUM(P115:P123) -> 0 | Q124: 0 | R124: 0
A125: Sanitary Sewer | R125: =SUM(B125:Q125) -> 0
A126: Potable Water | R126: 0
A127: Non-Potable Water | R127: 0
A128: Storm Drain | R128: 0
A129: Detention Basin/Culverts | R129: 0
A130: Joint Trench | R130: 0
A131: Other: | R131: 0
A132: Total Site Utilities | B132: =SUM(B125:B131) -> 0 | C132: =SUM(C125:C131) -> 0 | D132: 0 | E132: 0 | F132: 0 | G132: 0 | H132: 0 | I132: 0 | J132: 0 | K132: 0 | L132: 0 | M132: 0 | N132: 0 | O132: 0 | P132: =SUM(P125:P131) -> 0 | Q132: 0 | R132: 0
A133: Aggregate Base | R133: =SUM(B133:Q133) -> 0
A134: Asphalt Pavement | R134: 0
A135: Curb, Gutter, Sidewalk | R135: 0
A136: Street Lights | R136: 0
A137: Striping/Signage/Barricades | R137: 0
A138: Traffic Mitigation | R138: 0
A139: Other: | R139: 0
A140: Total Surface Improvements | B140: =SUM(B133:B139) -> 0 | C140: =SUM(C133:C139) -> 0 | D140: 0 | E140: 0 | F140: 0 | G140: 0 | H140: 0 | I140: 0 | J140: 0 | K140: 0 | L140: 0 | M140: 0 | N140: 0 | O140: 0 | P140: =SUM(P133:P139) -> 0 | Q140: 0 | R140: 0
A141: Irrigation | R141: =SUM(B141:Q141) -> 0
A142: Concrete Work | R142: 0
A143: Landscaping | R143: 0
A144: Urban Greening | R144: 0
A145: Playground Facilities and Tot Lots | R145: 0
A146: Walking/Bike Path | R146: 0
A147: Drinking Fountains | R147: 0
A148: Structures | R148: 0
A149: Lighting | R149: 0
A150: Open Space | R150: 0
A151: Other: | R151: 0
A152: Total Parks-Landscape and Amenities | B152: =SUM(B141:B151) -> 0 | C152: =SUM(C141:C151) -> 0 | D152: 0 | E152: 0 | F152: 0 | G152: 0 | H152: 0 | I152: 0 | J152: 0 | K152: 0 | L152: 0 | M152: 0 | N152: 0 | O152: 0 | P152: =SUM(P141:P151) -> 0 | Q152: 0 | R152: 0
A153: Wetland Mitigation | R153: =SUM(B153:Q153) -> 0
A154: Endangered Species | R154: =SUM(B154:Q154) -> 0
A155: Tree Mitigation | R155: =SUM(B155:Q155) -> 0
A156: Environmental Remediation | R156: =SUM(B156:Q156) -> 0
A157: Other: | R157: =SUM(B157:Q157) -> 0
A158: Total Env. Mitigation/Remediation | B158: =SUM(B153:B157) -> 0 | C158: =SUM(C153:C157) -> 0 | D158: 0 | E158: 0 | F158: 0 | G158: 0 | H158: 0 | I158: 0 | J158: 0 | K158: 0 | L158: 0 | M158: 0 | N158: 0 | O158: 0 | P158: =SUM(P153:P157) -> 0 | Q158: 0 | R158: 0
A159: Replacement Parking | R159: =SUM(B159:Q159) -> 0
A160: Grading | R160: 0
A161: Foundation Work | R161: 0
A162: Site Work | R162: 0
A163: Other: | R163: 0
A164: Other: | R164: 0
A165: Total Structured Parking §304(a)(4)(A) | B165: =SUM(B159:B164) -> 0 | C165: =SUM(C159:C164) -> 0 | D165: 0 | E165: 0 | F165: 0 | G165: 0 | H165: 0 | I165: 0 | J165: 0 | K165: 0 | L165: 0 | M165: 0 | N165: 0 | O165: 0 | P165: =SUM(P159:P164) -> 0 | Q165: 0 | R165: 0
A166: Residential Parking Structures | R166: =SUM(B166:Q166) -> 0
A167: Grading | R167: 0
A168: Foundation Work | R168: 0
A169: Site Work | R169: 0
A170: Other: | R170: 0
A171: Other: | R171: 0
A172: Total Residential Parking §304(a)(4)(B) | B172: =SUM(B166:B171) -> 0 | C172: =SUM(C166:C171) -> 0 | D172: =SUM(D166:D171) -> 0 | E172: 0 | F172: 0 | G172: 0 | H172: 0 | I172: 0 | J172: 0 | K172: 0 | L172: 0 | M172: 0 | N172: 0 | O172: 0 | P172: =SUM(P166:P171) -> 0 | Q172: 0 | R172: 0
A173: Access Plazas | R173: =SUM(B173:Q173) -> 0
A174: Pathways | R174: 0
A175: Bus Shelters | R175: 0
A176: Transit Shelters | R176: 0
A177: Pedestrian Facilities | R177: 0
A178: Bicycle Facilities | R178: 0
A179: Other: | R179: 0
A180: Total Transit | B180: =SUM(B173:B179) -> 0 | C180: =SUM(C173:C179) -> 0 | D180: 0 | E180: 0 | F180: 0 | G180: 0 | H180: 0 | I180: 0 | J180: 0 | K180: 0 | L180: 0 | M180: 0 | N180: 0 | O180: 0 | P180: =SUM(P173:P179) -> 0 | Q180: 0 | R180: 0
A181: Drainage | R181: =SUM(B181:Q181) -> 0
A182: Parks & Recreation | R182: 0
A183: Streets/Signals | R183: 0
A184: Traffic Fees | R184: 0
A185: Waste Water | R185: 0
A186: Water Facility | R186: 0
A187: Other: | R187: =SUM(B187:Q187) -> 0
A188: Other: | R188: 0
A189: Total Impact Fees | B189: =SUM(B181:B188) -> 0 | C189: =SUM(C181:C188) -> 0 | D189: 0 | E189: 0 | F189: 0 | G189: 0 | H189: 0 | I189: 0 | J189: 0 | K189: 0 | L189: 0 | M189: 0 | N189: 0 | O189: 0 | P189: =SUM(P181:P188) -> 0 | Q189: 0 | R189: 0
A190: Engineering | R190: =SUM(B190:Q190) -> 0
A191: Design | R191: =SUM(B191:Q191) -> 0
A192: Other: | R192: =SUM(B192:Q192) -> 0
A193: Other: | R193: =SUM(B193:Q193) -> 0
A194: Total Soft Costs | B194: =SUM(B190:B193) -> 0 | C194: =SUM(C190:C193) -> 0 | D194: 0 | E194: 0 | F194: 0 | G194: 0 | H194: 0 | I194: 0 | J194: 0 | K194: 0 | L194: 0 | M194: 0 | N194: 0 | O194: 0 | P194: =SUM(P190:P193) -> 0 | Q194: 0 | R194: 0
A195: Other: | R195: =SUM(B195:Q195) -> 0
A196: Other: | R196: =SUM(B196:Q196) -> 0
A197: Total Other Asset Costs | B197: =SUM(B195:B196) -> 0 | C197: =SUM(C195:C196) -> 0 | D197: 0 | E197: 0 | F197: 0 | G197: 0 | H197: 0 | I197: 0 | J197: 0 | K197: 0 | L197: 0 | M197: 0 | N197: 0 | O197: 0 | P197: =SUM(P195:P196) -> 0 | Q197: 0 | R197: 0
A198: CIP TOTAL PROJECT COSTS | B198: =SUM(B114,B124,B132,B140,B152,B158,B165,B172,B180,B189,B194,B197) -> 0 | C198: 0 | D198: 0 | E198: 0 | F198: 0 | G198: 0 | H198: 0 | I198: 0 | J198: 0 | K198: 0 | L198: 0 | M198: 0 | N198: 0 | O198: 0 | P198: =SUM(P114,P124,P132,P140,P152,P158,P165,P172,P180,P189,P194,P197) -> 0 | Q198: 0 | R198: 0
A199: QIP TOTAL PROJECT COSTS | B199: =B110 -> 0 | C199: =C110 -> 0 | D199: 0 | E199: 0 | F199: 0 | G199: 0 | H199: 0 | I199: 0 | J199: 0 | K199: 0 | L199: 0 | M199: 0 | N199: 0 | O199: 0 | P199: =P110 -> 0 | Q199: 0 | R199: 0
A200: TOTAL QIP & CIP PROJECT COSTS | B200: =B199+B198 -> 0 | C200: =C199+C198 -> 0 | D200: 0 | E200: 0 | F200: 0 | G200: 0 | H200: 0 | I200: 0 | J200: 0 | K200: 0 | L200: 0 | M200: 0 | N200: 0 | O200: 0 | P200: =P199+P198 -> 0 | Q200: 0 | R200: 0

Sheet Operating
A1: ='IIG Coverpage'!B11 -> 2021-06-21
A2: =IF(Overview!AJ4="QIP","QIP Annual Income and Expenses","Required QIP Annual Income and Expenses") -> Required QIP Annual Income and Expenses
A4: Employee Information | F4: Comments
A5: No. | B5: FTE | C5: Employee Job Title | D5: Salary/Wages | E5: Value of Free Rent
C6: On-Site Manager(s) | D6: 0 | E6: 0
C7: On-Site Assistant Manager(s) | D7: 0 | E7: 0
C8: Supportive Services Staff Supervisor(s) | D8: 0
C9: Supportive Services Coordinator, On-Site | D9: 0
C10: Other Supportive Services Staff (inc. Case Manager) | D10: 0
C11: On-Site Maintenance Employee(s) | D11: 0 | E11: 0
C12: On-Site Leasing Agent/Administrative Employee(s) | D12: 0 | E12: 0
C13: On-Site Security Employee(s) | D13: 0 | E13: 0
D14: 0 | E14: 0
D15: 0 | E15: 0
C16: Total Salaries and Value of Free Rent Units | D16: =SUM(D6:D15) -> 0 | E16: =SUM(E6:E15) -> 0
B17: 6711 | C17: Payroll Taxes | D17: 0 | E17: Show free rent as an
B18: 6722 | C18: Workers Compensation | D18: 0 | E18: expense? | H18: Count free rent as an
B19: 6723 | C19: Employee Benefits | D19: 0 | E19: Yes | H19: expense?
C20: Employee(s) Payroll Taxes, Workers Comp. & Benefits | D20: =SUM(D17:D19) -> 0 | H20: =IF(E19="Yes",1,0) -> 1
C21: Total Employee(s) Expenses | D21: =D20+D16 -> 0
A24: Employee Units
A25: Income Limit | C25: Job Title(s) of Employee(s) Living On-Site | D25: Unit Type (No. of bdrms.) | E25: Square Footage | G25: Income Limit | H25: Job Title(s) of Employee(s) Living On-Site
D26: 0 | E26: 0 | G26: 0.6 | H26: On-Site Manager(s)
D27: 0 | E27: 0 | G27: 0.55 | H27: On-Site Assistant Manager(s)
D28: 0 | E28: 0 | G28: 0.5 | H28: On-Site Maintenance Employee(s)
D29: Total Square Footage | E29: =SUM(E26:E28) -> 0 | G29: None | H29: On-Site Leasing Agent/Administrative Employee(s)
A30: Annual Operating Budget | G30: Other | H30: On-Site Security Employee(s)
A31: Acct. No. | C31: Revenue - Income | D31: Residential | E31: Commercial | F31: Comments | H31: Services Coordinator
A32: 5120/5140 | C32: Rent Revenue - Gross Potential | E32: 0
C33: Restricted Unit Rents | D33: ='Cash Flow'!D5 -> 0
C34: Unrestricted Unit Rents | D34: ='Cash Flow'!D6 -> 0
A35: 5121 | C35: Tenant Assistance Payments
C36: ='Max Funds and Unit Mix'!AZ4 -> Subsidy Program Name | D36: ='Max Funds and Unit Mix'!BV33*12 -> 0
C37: ='Max Funds and Unit Mix'!BE4 -> Subsidy Program Name | D37: ='Max Funds and Unit Mix'!BW33*12 -> 0
C38: Operating Subsidies | D38: 0
C39: Other: (specify) | D39: 0 | E39: 0
A40: 5910 | C40: Laundry and Vending Revenue | D40: 0
A41: 5170 | C41: Garage and Parking Spaces | D41: 0 | E41: 0
A42: 5990 | C42: Miscellaneous Rent Revenue | D42: 0 | E42: 0
C43: Gross Potential Income (GPI) | D43: =SUM(D32:D42) -> 0 | E43: =SUM(E32:E42) -> 0
C45: Vacancy Rate: Restricted Units | D45: 0.05
C46: Vacancy Rate: Unrestricted Units | D46: 0.05
C47: Vacancy Rate: Tenant Assistance Payments | D47: 0.05
C48: ="Vacancy Rate: " & C39 -> Vacancy Rate: Other: (specify) | D48: 0.05
C49: Vacancy Rate: Laundry & Vending & Other Income | D49: 0.05
C50: Vacancy Rate: Commercial Income | E50: 0.5
A51: 5220/5240 | C51: Vacancy Loss(es) | D51: =(D33*D45)+(D34*D46)+((D36+D37)*D47)+(D39*D48)+((D40+D41+D42)*D49) -> 0 | E51: =+E43*E50 -> 0
C52: Effective Gross Income (EGI) | D52: =+D43-D51 -> 0 | E52: =+E43-E51 -> 0
A53: Acct. No. | C53: Expenses | D53: Residential | E53: Commercial | F53: Comments
C55: Administrative Expenses: 6200/6300
A56: 6203 | C56: Conventions and Meetings | D56: 0 | E56: 0
A57: 6210 | C57: Advertising and Marketing | D57: 0 | E57: 0
A58: 6250 | C58: Other Renting Expenses | D58: 0 | E58: 0
A59: 6310 | C59: Office/Administrative Salaries -- from above | D59: =D12 -> 0 | E59: 0
A60: 6311 | C60: Office Expenses | D60: 0 | E60: 0
A61: 6312 | C61: Office or Model Apartment Rent | D61: 0 | E61: 0
A62: 6320 | C62: Management Fee | D62: 0 | E62: 0
A63: 6330 | C63: Site/Resident Manager(s) Salaries -- from above | D63: =D6+D7 -> 0 | E63: 0
A64: 6331 | C64: Administrative Free Rent Unit -- from above | D64: =IF(H20=1,E6+E7+E12,0) -> 0 | E64: 0
A65: 6340 | C65: Legal Expense -- Project | D65: 0 | E65: 0
A66: 6350 | C66: Audit Expense | D66: 0 | E66: 0
A67: 6351 | C67: Bookkeeping Fees/Accounting Services | D67: 0 | E67: 0
A68: 6390 | C68: Miscellaneous Administrative Expenses | D68: 0 | E68: 0
A69: 6263T | C69: Total Administrative Expenses | D69: =SUM(D56:D68) -> 0 | E69: =SUM(E56:E68) -> 0
A70: Acct. No. | C70: Expenses | D70: Residential | E70: Commercial | F70: Comments
C71: Utilities Expenses: 6400
A72: 6450 | C72: Electricity | D72: 0 | E72: 0
A73: 6451 | C73: Water | D73: 0 | E73: 0
A74: 6452 | C74: Gas | D74: 0 | E74: 0
A75: 6453 | C75: Sewer | D75: 0 | E75: 0
C76: Other Utilities: (specify) | D76: 0 | E76: 0
A77: 6400T | C77: Total Utilities Expenses | D77: =SUM(D72:D76) -> 0 | E77: =SUM(E72:E76) -> 0
C78: Operating and Maintenane Expenses: 6500 | F78: Comments
A79: 6510 | C79: Payroll -- from above | D79: =D11+D13+D14+D15 -> 0 | E79: 0
A80: 6515 | C80: Supplies | D80: 0 | E80: 0
A81: 6520 | C81: Contracts | D81: 0 | E81: 0
A82: 6521 | C82: Operating & Maintenance Free Rent Unit -- from above | D82: =IF(H20=1,E11+E14+E15,0) -> 0 | E82: 0
A83: 6525 | C83: Garbage and Trash Removal | D83: 0 | E83: 0
A84: 6530 | C84: Security Contract | D84: 0 | E84: 0
A85: 6531 | C85: Security Free Rent Unit -- from above | D85: =IF(H20=1,E13,0) -> 0 | E85: 0
A86: 6546 | C86: Heating/Cooling Repairs and Maintenance | D86: 0 | E86: 0
A87: 6548 | C87: Snow Removal | D87: 0 | E87: 0
A88: 6570 | C88: Vehicle & Maintenance Equipment Operation/Reports | D88: 0 | E88: 0
A89: 6590 | C89: Miscellaneous Operating and Maintenance Expenses | D89: 0 | E89: 0
A90: 6500T | C90: TOTAL Operating & Maintenance Expenses | D90: =SUM(D79:D89) -> 0 | E90: =SUM(E79:E89) -> 0
C91: Taxes and Insurance: 6700 | F91: Comments
A92: 6710 | C92: Real Estate Taxes | D92: 0 | E92: 0
A93: 6711 | C93: Payroll Taxes (Project's Share) -- from above | D93: =D17 -> 0 | E93: 0
A94: 6720 | C94: Property and Liability Insurance (Hazard) | D94: 0 | E94: 0
A95: 6729 | C95: Other Insurance (e.g. Earthquake) | D95: 0 | E95: 0
A96: 6721 | C96: Fidelity Bond Insurance | D96: 0 | E96: 0
A97: 6722 | C97: Worker's Compensation -- from above | D97: =D18 -> 0 | E97: 0
A98: 6723 | C98: Health Insurance/Other Employee Benefits--from above | D98: =D19 -> 0 | E98: 0
A99: 6790 | C99: Miscellaneous Taxes, Licenses, Permits & Insurance | D99: 0 | E99: 0
A100: 6700T | C100: Total Taxes and Insurance | D100: =SUM(D92:D99) -> 0 | E100: =SUM(E92:E99) -> 0
C101: Supportive Services Costs: 6900 | F101: Comments | G101: Max allowed
A102: 6990 | C102: Staff Supervisor(s) Salaries - from above | D102: =D8 -> 0 | E102: 0 | G102: =(D103+D104)*0.1 -> 0
A103: 6990 | C103: Services Coordinator Salaries, On-Site - from above | D103: =D9 -> 0 | E103: 0
A104: 6990 | C104: Other Supportive Services Staff Salaries - from above | D104: =D10 -> 0 | E104: 0
A105: 6990 | C105: Supportive Services Admin Overhead | D105: 0 | E105: 0 | G105: =SUM(D102:D107)*0.15 -> 0
A106: 6990 | C106: Other Supportive Services Costs: (specify) | D106: 0 | E106: 0
A107: 6990 | C107: Other Supportive Services Costs: (specify) | D107: 0 | E107: 0
A108: 6900T | C108: Total Supportive Services Costs | D108: =SUM(D102:D107) -> 0 | E108: =SUM(E102:E107) -> 0 | G108: 0
C110: Total Operating Expenses | D110: =D69+D77+D90+D100+D108 -> 0 | E110: =E69+E77+E90+E100+E108 -> 0 | F110: Comments
C111: Funded Reserves: 7200 | D111: Residential | E111: Commercial
A112: 7210 | C112: Required Replacement Reserve Deposits | D112: 0 | E112: 0
A113: 7220 | C113: Other Reserves: (specify) | D113: 0 | E113: 0
A114: 7230 | C114: Other Reserves: (specify) | D114: 0 | E114: 0
A115: 7240 | C115: Other Reserves: (specify) | D115: 0 | E115: 0
C116: Total Reserves | D116: =SUM(D112:D115) -> 0 | E116: =SUM(E112:E115) -> 0
C117: Ground Lease | D117: Residential | E117: Commercial
C118: Ground Lease | D118: 0 | E118: 0
C119: Total Ground Lease | D119: =SUM(D118:D118) -> 0 | E119: =SUM(E118:E118) -> 0
C120: Net Operating Income | D120: =D52-D110-D116-D119 -> 0 | E120: =E52-E110-E116-E119 -> 0
C122: Financial Expenses: 6800 | F122: Comments
A123: 6820 | C123: 1st Mortgage Debt Service | D123: 0 | E123: 0
A124: 6830 | C124: 2nd Mortgage Debt Service | D124: 0 | E124: 0
A125: 6840 | C125: 3rd Mortgage Debt Service | D125: 0 | E125: 0
A126: 6890 | C126: Miscellaneous Financial Expenses: (specify) | D126: 0 | E126: 0
A127: 6890 | C127: Miscellaneous Financial Expenses: (specify) | D127: 0 | E127: 0
A128: 6890 | C128: Miscellaneous Financial Expenses: (specify) | D128: 0 | E128: 0
A129: 6890 | C129: Miscellaneous Financial Expenses: (specify) | D129: 0 | E129: 0
A130: 6800T | C130: Total Financial Expenses | D130: =SUM(D123:D129) -> 0 | E130: =SUM(E123:E129) -> 0
C131: Cash Flow | D131: =+D120-D130 -> 0 | E131: =+E120-E130 -> 0
A133: 7190 | C133: Asset Management/Similar Fees | D133: 0 | E133: 0
D134: Per Year | E134: Per Month
A135: Total Operating Expenses Per Unit
A136: Without any Adjustments | D136: =IFERROR(D110/'Max Funds and Unit Mix'!K33,0) -> 0 | E136: =+D136/12 -> 0
A137: With the Value of Rent-Free Units Included | D137: =IFERROR(IF(H20=1,+(E16+D110)/'Max Funds and Unit Mix'!K33,D110/'Max Funds and Unit Mix'!K33),0) -> 0 | E137: =+D137/12 -> 0
A138: Without RE Taxes, Social Services Coordinator or Social Services/Social Programs and With the Value of Rent Fee Units Included | D138: =IFERROR((IF(H20=1,+((E16+D110)-(D92+D108))/'Max Funds and Unit Mix'!K33,(D110-(D92+D108))/'Max Funds and Unit Mix'!K33)),0) -> 0 | E138: =+D138/12 -> 0

Sheet Cash Flow
A1: ='IIG Coverpage'!B11 -> 2021-06-21
A2: =IF(Overview!AJ4="QIP","QIP Cash Flow Analysis","Required QIP Cash Flow Analysis") -> Required QIP Cash Flow Analysis
A3: Is Income from Restricted Units based on Restricted or Proposed Rents? | I3: Restricted Rents | K3: =IF(I3<>"Proposed Rents",1,0) -> 1
A4: Income From Housing Units | C4: Inflation | D4: Year 1 | E4: Year 2 | F4: Year 3 | G4: Year 4 | H4: Year 5 | I4: Year 6 | J4: Year 7 | K4: Year 8 | L4: Year 9 | M4: Year 10 | N4: Year 11 | O4: Year 12 | P4: Year 13 | Q4: Year 14 | R4: Year 15 | S4: Year 16 | T4: Year 17 | U4: Year 18 | V4: Year 19 | W4: Year 20 | X4: Year 21 | Y4: Year 22 | Z4: Year 23 | AA4: Year 24 | AB4: Year 25 | AC4: Year 26 | AD4: Year 27 | AE4: Year 28 | AF4: Year 29 | AG4: Year 30 | AH4: Year 31 | AI4: Year 32 | AJ4: Year 33 | AK4: Year 34 | AL4: Year 35 | AM4: Year 36 | AN4: Year 37 | AO4: Year 38 | AP4: Year 39 | AQ4: Year 40
A5: Restricted Unit Rents | C5: 0.025 | D5: =IF(K3=1,'Max Funds and Unit Mix'!AN34,'Max Funds and Unit Mix'!AN35) -> 0 | E5: =D5*(1+$C$5) -> 0 | F5: 0 | G5: 0 | H5: 0 | I5: 0 | J5: 0 | K5: 0 | L5: 0 | M5: 0 | N5: 0 | O5: 0 | P5: 0 | Q5: 0 | R5: =Q5*(1+$C$5) -> 0 | S5: =R5*(1+$C$5) -> 0 | T5: 0 | U5: 0 | V5: 0 | W5: 0 | X5: 0 | Y5: 0 | Z5: 0 | AA5: 0 | AB5: 0 | AC5: 0 | AD5: 0 | AE5: 0 | AF5: 0 | AG5: 0 | AH5: 0 | AI5: 0 | AJ5: 0 | AK5: 0 | AL5: 0 | AM5: 0 | AN5: 0 | AO5: 0 | AP5: 0 | AQ5: 0
A6: Unrestricted Units | C6: 0.025 | D6: ='Max Funds and Unit Mix'!AN36 -> 0 | E6: =D6*(1+$C$6) -> 0 | F6: 0 | G6: 0 | H6: 0 | I6: 0 | J6: 0 | K6: 0 | L6: 0 | M6: 0 | N6: 0 | O6: 0 | P6: 0 | Q6: 0 | R6: =Q6*(1+$C$6) -> 0 | S6: =R6*(1+$C$6) -> 0 | T6: 0 | U6: 0 | V6: 0 | W6: 0 | X6: 0 | Y6: 0 | Z6: 0 | AA6: 0 | AB6: 0 | AC6: 0 | AD6: 0 | AE6: 0 | AF6: 0 | AG6: 0 | AH6: 0 | AI6: 0 | AJ6: 0 | AK6: 0 | AL6: 0 | AM6: 0 | AN6: 0 | AO6: 0 | AP6: 0 | AQ6: 0
A7: Tenant Assistance Payments
A8: =Operating!C36 -> Subsidy Program Name | C8: 0.025 | D8: =Operating!D36 -> 0 | E8: =D8*(1+$C$8) -> 0 | F8: =E8*(1+$C$8) -> 0 | G8: =F8*(1+$C$8) -> 0 | H8: 0 | I8: 0 | J8: 0 | K8: 0 | L8: 0 | M8: 0 | N8: 0 | O8: 0 | P8: 0 | Q8: 0 | R8: =Q8*(1+$C$8) -> 0 | S8: =R8*(1+$C$8) -> 0 | T8: 0 | U8: 0 | V8: 0 | W8: 0 | X8: 0 | Y8: 0 | Z8: 0 | AA8: 0 | AB8: 0 | AC8: 0 | AD8: 0 | AE8: 0 | AF8: 0 | AG8: 0 | AH8: 0 | AI8: 0 | AJ8: 0 | AK8: 0 | AL8: 0 | AM8: 0 | AN8: 0 | AO8: 0 | AP8: 0 | AQ8: 0
A9: =Operating!C37 -> Subsidy Program Name | C9: 0.025 | D9: =Operating!D37 -> 0 | E9: =D9*(1+$C$9) -> 0 | F9: =E9*(1+$C$9) -> 0 | G9: =F9*(1+$C$9) -> 0 | H9: 0 | I9: 0 | J9: 0 | K9: 0 | L9: 0 | M9: 0 | N9: 0 | O9: 0 | P9: 0 | Q9: 0 | R9: =Q9*(1+$C$9) -> 0 | S9: =R9*(1+$C$9) -> 0 | T9: 0 | U9: 0 | V9: 0 | W9: 0 | X9: 0 | Y9: 0 | Z9: 0 | AA9: 0 | AB9: 0 | AC9: 0 | AD9: 0 | AE9: 0 | AF9: 0 | AG9: 0 | AH9: 0 | AI9: 0 | AJ9: 0 | AK9: 0 | AL9: 0 | AM9: 0 | AN9: 0 | AO9: 0 | AP9: 0 | AQ9: 0
A10: Operating Subsidies | C10: 0.02 | D10: =Operating!D38 -> 0 | E10: =D10*(1+$C$10) -> 0 | F10: =E10*(1+$C$10) -> 0 | G10: 0 | H10: 0 | I10: 0 | J10: 0 | K10: 0 | L10: 0 | M10: 0 | N10: 0 | O10: 0 | P10: 0 | Q10: 0 | R10: =Q10*(1+$C$10) -> 0 | S10: =R10*(1+$C$10) -> 0 | T10: 0 | U10: 0 | V10: 0 | W10: 0 | X10: 0 | Y10: 0 | Z10: 0 | AA10: 0 | AB10: 0 | AC10: 0 | AD10: 0 | AE10: 0 | AF10: 0 | AG10: 0 | AH10: 0 | AI10: 0 | AJ10: 0 | AK10: 0 | AL10: 0 | AM10: 0 | AN10: 0 | AO10: 0 | AP10: 0 | AQ10: 0
A11: =Operating!C39 -> Other: (specify) | C11: =C8 -> 0.025 | D11: 0 | E11: 0 | F11: 0 | G11: 0 | H11: 0 | I11: 0 | J11: 0 | K11: 0 | L11: 0 | M11: 0 | N11: 0 | O11: 0 | P11: 0 | Q11: 0 | R11: 0 | S11: 0 | T11: 0 | U11: 0 | V11: 0 | W11: 0 | X11: 0 | Y11: 0 | Z11: 0 | AA11: 0 | AB11: 0 | AC11: 0 | AD11: 0 | AE11: 0 | AF11: 0 | AG11: 0 | AH11: 0 | AI11: 0 | AJ11: 0 | AK11: 0 | AL11: 0 | AM11: 0 | AN11: 0 | AO11: 0 | AP11: 0 | AQ11: 0
A12: Gross Potential Income - Housing | D12: =SUM(D5:D11) -> 0 | E12: 0 | F12: 0 | G12: 0 | H12: 0 | I12: 0 | J12: 0 | K12: 0 | L12: 0 | M12: 0 | N12: 0 | O12: 0 | P12: 0 | Q12: 0 | R12: 0 | S12: 0 | T12: 0 | U12: 0 | V12: 0 | W12: 0 | X12: 0 | Y12: 0 | Z12: 0 | AA12: 0 | AB12: 0 | AC12: 0 | AD12: 0 | AE12: 0 | AF12: 0 | AG12: 0 | AH12: 0 | AI12: 0 | AJ12: 0 | AK12: 0 | AL12: 0 | AM12: 0 | AN12: 0 | AO12: 0 | AP12: 0 | AQ12: 0
A14: Other Income
A15: Laundry & Vending | C15: 0.025 | D15: =Operating!D40 -> 0 | E15: =D15*(1+$C$15) -> 0 | F15: 0 | G15: 0 | H15: 0 | I15: 0 | J15: 0 | K15: 0 | L15: 0 | M15: 0 | N15: 0 | O15: 0 | P15: 0 | Q15: 0 | R15: =Q15*(1+$C$15) -> 0 | S15: =R15*(1+$C$15) -> 0 | T15: 0 | U15: 0 | V15: 0 | W15: 0 | X15: 0 | Y15: 0 | Z15: 0 | AA15: 0 | AB15: 0 | AC15: 0 | AD15: 0 | AE15: 0 | AF15: 0 | AG15: 0 | AH15: 0 | AI15: 0 | AJ15: 0 | AK15: 0 | AL15: 0 | AM15: 0 | AN15: 0 | AO15: 0 | AP15: 0 | AQ15: 0
A16: Other Income | C16: 0.025 | D16: =Operating!D41+Operating!D42 -> 0 | E16: =D16*(1+$C$16) -> 0 | F16: 0 | G16: 0 | H16: 0 | I16: 0 | J16: 0 | K16: 0 | L16: 0 | M16: 0 | N16: 0 | O16: 0 | P16: 0 | Q16: 0 | R16: =Q16*(1+$C$16) -> 0 | S16: =R16*(1+$C$16) -> 0 | T16: 0 | U16: 0 | V16: 0 | W16: 0 | X16: 0 | Y16: 0 | Z16: 0 | AA16: 0 | AB16: 0 | AC16: 0 | AD16: 0 | AE16: 0 | AF16: 0 | AG16: 0 | AH16: 0 | AI16: 0 | AJ16: 0 | AK16: 0 | AL16: 0 | AM16: 0 | AN16: 0 | AO16: 0 | AP16: 0 | AQ16: 0
A17: Commercial Income | C17: 0.025 | D17: =Operating!E43 -> 0 | E17: =D17*(1+$C$17) -> 0 | F17: 0 | G17: 0 | H17: 0 | I17: 0 | J17: 0 | K17: 0 | L17: 0 | M17: 0 | N17: 0 | O17: 0 | P17: 0 | Q17: 0 | R17: =Q17*(1+$C$17) -> 0 | S17: =R17*(1+$C$17) -> 0 | T17: 0 | U17: 0 | V17: 0 | W17: 0 | X17: 0 | Y17: 0 | Z17: 0 | AA17: 0 | AB17: 0 | AC17: 0 | AD17: 0 | AE17: 0 | AF17: 0 | AG17: 0 | AH17: 0 | AI17: 0 | AJ17: 0 | AK17: 0 | AL17: 0 | AM17: 0 | AN17: 0 | AO17: 0 | AP17: 0 | AQ17: 0
A18: Gross Potential Income - Other | D18: =SUM(D15:D17) -> 0 | E18: 0 | F18: 0 | G18: 0 | H18: 0 | I18: 0 | J18: 0 | K18: 0 | L18: 0 | M18: 0 | N18: 0 | O18: 0 | P18: 0 | Q18: 0 | R18: 0 | S18: 0 | T18: 0 | U18: 0 | V18: 0 | W18: 0 | X18: 0 | Y18: 0 | Z18: 0 | AA18: 0 | AB18: 0 | AC18: 0 | AD18: 0 | AE18: 0 | AF18: 0 | AG18: 0 | AH18: 0 | AI18: 0 | AJ18: 0 | AK18: 0 | AL18: 0 | AM18: 0 | AN18: 0 | AO18: 0 | AP18: 0 | AQ18: 0
A20: Gross Potential Income - Total | D20: =D12+D18 -> 0 | E20: 0 | F20: 0 | G20: 0 | H20: 0 | I20: 0 | J20: 0 | K20: 0 | L20: 0 | M20: 0 | N20: 0 | O20: 0 | P20: 0 | Q20: 0 | R20: 0 | S20: 0 | T20: 0 | U20: 0 | V20: 0 | W20: 0 | X20: 0 | Y20: 0 | Z20: 0 | AA20: 0 | AB20: 0 | AC20: 0 | AD20: 0 | AE20: 0 | AF20: 0 | AG20: 0 | AH20: 0 | AI20: 0 | AJ20: 0 | AK20: 0 | AL20: 0 | AM20: 0 | AN20: 0 | AO20: 0 | AP20: 0 | AQ20: 0
A22: Vacancy Assumptions
A23: Restricted Units | C23: =Operating!D45 -> 0.05 | D23: =$C23*D5 -> 0 | E23: =$C23*E5 -> 0 | F23: 0 | G23: 0 | H23: 0 | I23: 0 | J23: 0 | K23: 0 | L23: 0 | M23: 0 | N23: 0 | O23: 0 | P23: 0 | Q23: 0 | R23: 0 | S23: 0 | T23: 0 | U23: 0 | V23: 0 | W23: 0 | X23: 0 | Y23: 0 | Z23: 0 | AA23: 0 | AB23: 0 | AC23: 0 | AD23: 0 | AE23: 0 | AF23: 0 | AG23: 0 | AH23: 0 | AI23: 0 | AJ23: 0 | AK23: 0 | AL23: 0 | AM23: 0 | AN23: 0 | AO23: 0 | AP23: 0 | AQ23: 0
A24: Unrestricted Units | C24: =Operating!D46 -> 0.05 | D24: =$C24*D6 -> 0 | E24: =$C24*E6 -> 0 | F24: 0 | G24: 0 | H24: 0 | I24: 0 | J24: 0 | K24: 0 | L24: 0 | M24: 0 | N24: 0 | O24: 0 | P24: 0 | Q24: 0 | R24: 0 | S24: 0 | T24: 0 | U24: 0 | V24: 0 | W24: 0 | X24: 0 | Y24: 0 | Z24: 0 | AA24: 0 | AB24: 0 | AC24: 0 | AD24: 0 | AE24: 0 | AF24: 0 | AG24: 0 | AH24: 0 | AI24: 0 | AJ24: 0 | AK24: 0 | AL24: 0 | AM24: 0 | AN24: 0 | AO24: 0 | AP24: 0 | AQ24: 0
A25: Tenant Assistance Payments | C25: =Operating!D47 -> 0.05 | D25: =$C25*(D8+D9) -> 0 | E25: =$C25*(E8+E9) -> 0 | F25: 0 | G25: 0 | H25: 0 | I25: 0 | J25: 0 | K25: 0 | L25: 0 | M25: 0 | N25: 0 | O25: 0 | P25: 0 | Q25: 0 | R25: 0 | S25: 0 | T25: 0 | U25: 0 | V25: 0 | W25: 0 | X25: 0 | Y25: 0 | Z25: 0 | AA25: 0 | AB25: 0 | AC25: 0 | AD25: 0 | AE25: 0 | AF25: 0 | AG25: 0 | AH25: 0 | AI25: 0 | AJ25: 0 | AK25: 0 | AL25: 0 | AM25: 0 | AN25: 0 | AO25: 0 | AP25: 0 | AQ25: 0
A26: =Operating!C39 -> Other: (specify) | C26: =Operating!D48 -> 0.05 | D26: =$C26*D11 -> 0 | E26: =$C26*E11 -> 0 | F26: 0 | G26: 0 | H26: 0 | I26: 0 | J26: 0 | K26: 0 | L26: 0 | M26: 0 | N26: 0 | O26: 0 | P26: 0 | Q26: 0 | R26: 0 | S26: 0 | T26: 0 | U26: 0 | V26: 0 | W26: 0 | X26: 0 | Y26: 0 | Z26: 0 | AA26: 0 | AB26: 0 | AC26: 0 | AD26: 0 | AE26: 0 | AF26: 0 | AG26: 0 | AH26: 0 | AI26: 0 | AJ26: 0 | AK26: 0 | AL26: 0 | AM26: 0 | AN26: 0 | AO26: 0 | AP26: 0 | AQ26: 0
A27: Laundry/Vending/Other Income | C27: =Operating!D49 -> 0.05 | D27: =$C27*(D15+D16) -> 0 | E27: =$C27*(E15+E16) -> 0 | F27: 0 | G27: 0 | H27: 0 | I27: 0 | J27: 0 | K27: 0 | L27: 0 | M27: 0 | N27: 0 | O27: 0 | P27: 0 | Q27: 0 | R27: 0 | S27: 0 | T27: 0 | U27: 0 | V27: 0 | W27: 0 | X27: 0 | Y27: 0 | Z27: 0 | AA27: 0 | AB27: 0 | AC27: 0 | AD27: 0 | AE27: 0 | AF27: 0 | AG27: 0 | AH27: 0 | AI27: 0 | AJ27: 0 | AK27: 0 | AL27: 0 | AM27: 0 | AN27: 0 | AO27: 0 | AP27: 0 | AQ27: 0
A28: Commercial Income | C28: =Operating!E50 -> 0.5 | D28: =$C28*D17 -> 0 | E28: =$C28*E17 -> 0 | F28: 0 | G28: 0 | H28: 0 | I28: 0 | J28: 0 | K28: 0 | L28: 0 | M28: 0 | N28: 0 | O28: 0 | P28: 0 | Q28: 0 | R28: 0 | S28: 0 | T28: 0 | U28: 0 | V28: 0 | W28: 0 | X28: 0 | Y28: 0 | Z28: 0 | AA28: 0 | AB28: 0 | AC28: 0 | AD28: 0 | AE28: 0 | AF28: 0 | AG28: 0 | AH28: 0 | AI28: 0 | AJ28: 0 | AK28: 0 | AL28: 0 | AM28: 0 | AN28: 0 | AO28: 0 | AP28: 0 | AQ28: 0
A29: Total Vacancy Loss | D29: =SUM(D23:D28) -> 0 | E29: =SUM(E23:E28) -> 0 | F29: 0 | G29: 0 | H29: 0 | I29: 0 | J29: 0 | K29: 0 | L29: 0 | M29: 0 | N29: 0 | O29: 0 | P29: 0 | Q29: 0 | R29: 0 | S29: 0 | T29: 0 | U29: 0 | V29: 0 | W29: 0 | X29: 0 | Y29: 0 | Z29: 0 | AA29: 0 | AB29: 0 | AC29: 0 | AD29: 0 | AE29: 0 | AF29: 0 | AG29: 0 | AH29: 0 | AI29: 0 | AJ29: 0 | AK29: 0 | AL29: 0 | AM29: 0 | AN29: 0 | AO29: 0 | AP29: 0 | AQ29: 0
A31: Effective Gross Income | D31: =D20-D29 -> 0 | E31: 0 | F31: 0 | G31: 0 | H31: 0 | I31: 0 | J31: 0 | K31: 0 | L31: 0 | M31: 0 | N31: 0 | O31: 0 | P31: 0 | Q31: 0 | R31: 0 | S31: 0 | T31: 0 | U31: 0 | V31: 0 | W31: 0 | X31: 0 | Y31: 0 | Z31: 0 | AA31: 0 | AB31: 0 | AC31: 0 | AD31: 0 | AE31: 0 | AF31: 0 | AG31: 0 | AH31: 0 | AI31: 0 | AJ31: 0 | AK31: 0 | AL31: 0 | AM31: 0 | AN31: 0 | AO31: 0 | AP31: 0 | AQ31: 0
A33: Operating Expenses & Reserve Deposits
A34: Residential Exp. (w/o Real Estate Taxes & Sup. Services) | C34: 0.035 | D34: =Operating!D110-Operating!D92-Operating!D108 -> 0 | E34: =(1+$C$34)*D34 -> 0 | F34: 0 | G34: 0 | H34: 0 | I34: 0 | J34: 0 | K34: 0 | L34: 0 | M34: 0 | N34: 0 | O34: 0 | P34: 0 | Q34: 0 | R34: =(1+$C$34)*Q34 -> 0 | S34: =(1+$C$34)*R34 -> 0 | T34: 0 | U34: 0 | V34: 0 | W34: 0 | X34: 0 | Y34: 0 | Z34: 0 | AA34: 0 | AB34: 0 | AC34: 0 | AD34: 0 | AE34: 0 | AF34: 0 | AG34: 0 | AH34: 0 | AI34: 0 | AJ34: 0 | AK34: 0 | AL34: 0 | AM34: 0 | AN34: 0 | AO34: 0 | AP34: 0 | AQ34: 0
A35: Real Estate Taxes | C35: 0.02 | D35: =Operating!D92 -> 0 | E35: =(1+$C$35)*D35 -> 0 | F35: =(1+$C$35)*E35 -> 0 | G35: 0 | H35: 0 | I35: 0 | J35: 0 | K35: 0 | L35: 0 | M35: 0 | N35: 0 | O35: 0 | P35: 0 | Q35: 0 | R35: =(1+$C$35)*Q35 -> 0 | S35: =(1+$C$35)*R35 -> 0 | T35: 0 | U35: 0 | V35: 0 | W35: 0 | X35: 0 | Y35: 0 | Z35: 0 | AA35: 0 | AB35: 0 | AC35: 0 | AD35: 0 | AE35: 0 | AF35: 0 | AG35: 0 | AH35: 0 | AI35: 0 | AJ35: 0 | AK35: 0 | AL35: 0 | AM35: 0 | AN35: 0 | AO35: 0 | AP35: 0 | AQ35: 0
A36: Supportive Services Costs | C36: 0.025 | D36: =Operating!D108 -> 0 | E36: =(1+$C$36)*D36 -> 0 | F36: =(1+$C$36)*E36 -> 0 | G36: =(1+$C$36)*F36 -> 0 | H36: 0 | I36: 0 | J36: 0 | K36: 0 | L36: 0 | M36: 0 | N36: 0 | O36: 0 | P36: 0 | Q36: 0 | R36: 0 | S36: 0 | T36: 0 | U36: 0 | V36: 0 | W36: 0 | X36: 0 | Y36: 0 | Z36: 0 | AA36: 0 | AB36: 0 | AC36: 0 | AD36: 0 | AE36: 0 | AF36: 0 | AG36: 0 | AH36: 0 | AI36: 0 | AJ36: 0 | AK36: 0 | AL36: 0 | AM36: 0 | AN36: 0 | AO36: 0 | AP36: 0 | AQ36: 0
A37: Replacement Reserve | C37: 0 | D37: =Operating!D112+Operating!E112 -> 0 | E37: =(1+$C$37)*D37 -> 0 | F37: 0 | G37: 0 | H37: 0 | I37: 0 | J37: 0 | K37: 0 | L37: 0 | M37: 0 | N37: 0 | O37: 0 | P37: 0 | Q37: 0 | R37: =(1+$C$37)*Q37 -> 0 | S37: =(1+$C$37)*R37 -> 0 | T37: 0 | U37: 0 | V37: 0 | W37: 0 | X37: 0 | Y37: 0 | Z37: 0 | AA37: 0 | AB37: 0 | AC37: 0 | AD37: 0 | AE37: 0 | AF37: 0 | AG37: 0 | AH37: 0 | AI37: 0 | AJ37: 0 | AK37: 0 | AL37: 0 | AM37: 0 | AN37: 0 | AO37: 0 | AP37: 0 | AQ37: 0
A38: Other Reserves | C38: 0 | D38: =Operating!D113+Operating!D114+Operating!D115+Operating!E113+Operating!E114+Operating!E115 -> 0 | E38: =(1+$C$38)*D38 -> 0 | F38: =(1+$C$38)*E38 -> 0 | G38: 0 | H38: 0 | I38: 0 | J38: 0 | K38: 0 | L38: 0 | M38: 0 | N38: 0 | O38: 0 | P38: 0 | Q38: 0 | R38: =(1+$C$38)*Q38 -> 0 | S38: =(1+$C$38)*R38 -> 0 | T38: 0 | U38: 0 | V38: 0 | W38: 0 | X38: 0 | Y38: 0 | Z38: 0 | AA38: 0 | AB38: 0 | AC38: 0 | AD38: 0 | AE38: 0 | AF38: 0 | AG38: 0 | AH38: 0 | AI38: 0 | AJ38: 0 | AK38: 0 | AL38: 0 | AM38: 0 | AN38: 0 | AO38: 0 | AP38: 0 | AQ38: 0
A39: Ground Lease | C39: 0.02 | D39: =Operating!D118+Operating!E118 -> 0 | E39: =(1+$C$39)*D39 -> 0 | F39: =(1+$C$39)*E39 -> 0 | G39: 0 | H39: 0 | I39: 0 | J39: 0 | K39: 0 | L39: 0 | M39: 0 | N39: 0 | O39: 0 | P39: 0 | Q39: 0 | R39: =(1+$C$39)*Q39 -> 0 | S39: =(1+$C$39)*R39 -> 0 | T39: 0 | U39: 0 | V39: 0 | W39: 0 | X39: 0 | Y39: 0 | Z39: 0 | AA39: 0 | AB39: 0 | AC39: 0 | AD39: 0 | AE39: 0 | AF39: 0 | AG39: 0 | AH39: 0 | AI39: 0 | AJ39: 0 | AK39: 0 | AL39: 0 | AM39: 0 | AN39: 0 | AO39: 0 | AP39: 0 | AQ39: 0
A40: Commercial Expenses | C40: 0.035 | D40: =Operating!E110 -> 0 | E40: =(1+$C$40)*D40 -> 0 | F40: 0 | G40: 0 | H40: 0 | I40: 0 | J40: 0 | K40: 0 | L40: 0 | M40: 0 | N40: 0 | O40: 0 | P40: 0 | Q40: 0 | R40: =(1+$C$40)*Q40 -> 0 | S40: =(1+$C$40)*R40 -> 0 | T40: 0 | U40: 0 | V40: 0 | W40: 0 | X40: 0 | Y40: 0 | Z40: 0 | AA40: 0 | AB40: 0 | AC40: 0 | AD40: 0 | AE40: 0 | AF40: 0 | AG40: 0 | AH40: 0 | AI40: 0 | AJ40: 0 | AK40: 0 | AL40: 0 | AM40: 0 | AN40: 0 | AO40: 0 | AP40: 0 | AQ40: 0
A41: Total Expenses & Reserves | D41: =SUM(D34:D40) -> 0 | E41: 0 | F41: 0 | G41: 0 | H41: 0 | I41: 0 | J41: 0 | K41: 0 | L41: 0 | M41: 0 | N41: 0 | O41: 0 | P41: 0 | Q41: 0 | R41: 0 | S41: 0 | T41: 0 | U41: 0 | V41: 0 | W41: 0 | X41: 0 | Y41: 0 | Z41: 0 | AA41: 0 | AB41: 0 | AC41: 0 | AD41: 0 | AE41: 0 | AF41: 0 | AG41: 0 | AH41: 0 | AI41: 0 | AJ41: 0 | AK41: 0 | AL41: 0 | AM41: 0 | AN41: 0 | AO41: 0 | AP41: 0 | AQ41: 0
A43: Net Operating Income | D43: =D31-D41 -> 0 | E43: 0 | F43: 0 | G43: 0 | H43: 0 | I43: 0 | J43: 0 | K43: 0 | L43: 0 | M43: 0 | N43: 0 | O43: 0 | P43: 0 | Q43: 0 | R43: 0 | S43: 0 | T43: 0 | U43: 0 | V43: 0 | W43: 0 | X43: 0 | Y43: 0 | Z43: 0 | AA43: 0 | AB43: 0 | AC43: 0 | AD43: 0 | AE43: 0 | AF43: 0 | AG43: 0 | AH43: 0 | AI43: 0 | AJ43: 0 | AK43: 0 | AL43: 0 | AM43: 0 | AN43: 0 | AO43: 0 | AP43: 0 | AQ43: 0
A45: Debt Service
A46: 1st Mortgage | D46: =Operating!D123+Operating!E123 -> 0 | E46: =$D$46 -> 0 | F46: 0 | G46: 0 | H46: 0 | I46: 0 | J46: 0 | K46: 0 | L46: 0 | M46: 0 | N46: 0 | O46: 0 | P46: 0 | Q46: 0 | R46: 0 | S46: 0 | T46: 0 | U46: 0 | V46: 0 | W46: 0 | X46: 0 | Y46: 0 | Z46: 0 | AA46: 0 | AB46: 0 | AC46: 0 | AD46: 0 | AE46: 0 | AF46: 0 | AG46: 0 | AH46: 0 | AI46: 0 | AJ46: 0 | AK46: 0 | AL46: 0 | AM46: 0 | AN46: 0 | AO46: 0 | AP46: 0 | AQ46: 0
A47: Bridge Loan (repaid from Investor equity) | D47: 0 | E47: 0 | F47: 0 | G47: 0 | H47: 0
A48: 2nd Mortgage | D48: =Operating!D124+Operating!E124 -> 0 | E48: =$D$48 -> 0 | F48: 0 | G48: 0 | H48: 0 | I48: 0 | J48: 0 | K48: 0 | L48: 0 | M48: 0 | N48: 0 | O48: 0 | P48: 0 | Q48: 0 | R48: 0 | S48: 0 | T48: 0 | U48: 0 | V48: 0 | W48: 0 | X48: 0 | Y48: 0 | Z48: 0 | AA48: 0 | AB48: 0 | AC48: 0 | AD48: 0 | AE48: 0 | AF48: 0 | AG48: 0 | AH48: 0 | AI48: 0 | AJ48: 0 | AK48: 0 | AL48: 0 | AM48: 0 | AN48: 0 | AO48: 0 | AP48: 0 | AQ48: 0
A49: 3rd Mortgage Debt Service | D49: =Operating!D125+Operating!E125 -> 0 | E49: =$D$49 -> 0 | F49: 0 | G49: 0 | H49: 0 | I49: 0 | J49: 0 | K49: 0 | L49: 0 | M49: 0 | N49: 0 | O49: 0 | P49: 0 | Q49: 0 | R49: 0 | S49: 0 | T49: 0 | U49: 0 | V49: 0 | W49: 0 | X49: 0 | Y49: 0 | Z49: 0 | AA49: 0 | AB49: 0 | AC49: 0 | AD49: 0 | AE49: 0 | AF49: 0 | AG49: 0 | AH49: 0 | AI49: 0 | AJ49: 0 | AK49: 0 | AL49: 0 | AM49: 0 | AN49: 0 | AO49: 0 | AP49: 0 | AQ49: 0
A50: Misc. Financial Expenses: (specify) | D50: =Operating!D126+Operating!E126+Operating!D127+Operating!E127+Operating!D128+Operating!E128+Operating!D129+Operating!E129 -> 0 | E50: =$D$50 -> 0 | F50: =$D$50 -> 0 | G50: 0 | H50: 0 | I50: 0 | J50: 0 | K50: 0 | L50: 0 | M50: 0 | N50: 0 | O50: 0 | P50: 0 | Q50: 0 | R50: 0 | S50: =R50 -> 0 | T50: 0 | U50: 0 | V50: 0 | W50: 0 | X50: 0 | Y50: 0 | Z50: 0 | AA50: 0 | AB50: 0 | AC50: 0 | AD50: 0 | AE50: 0 | AF50: 0 | AG50: 0 | AH50: 0 | AI50: 0 | AJ50: 0 | AK50: 0 | AL50: 0 | AM50: 0 | AN50: 0 | AO50: 0 | AP50: 0 | AQ50: 0
A51: Total Required Debt Service | D51: =SUM(D46,D48,D49,D50) -> 0 | E51: 0 | F51: 0 | G51: 0 | H51: 0 | I51: 0 | J51: 0 | K51: 0 | L51: 0 | M51: 0 | N51: 0 | O51: 0 | P51: 0 | Q51: 0 | R51: 0 | S51: 0 | T51: 0 | U51: 0 | V51: 0 | W51: 0 | X51: 0 | Y51: 0 | Z51: 0 | AA51: 0 | AB51: 0 | AC51: 0 | AD51: 0 | AE51: 0 | AF51: 0 | AG51: 0 | AH51: 0 | AI51: 0 | AJ51: 0 | AK51: 0 | AL51: 0 | AM51: 0 | AN51: 0 | AO51: 0 | AP51: 0 | AQ51: 0
A54: Cash Flow after all debt service | D54: =D43-D51 -> 0 | E54: 0 | F54: 0 | G54: 0 | H54: 0 | I54: 0 | J54: 0 | K54: 0 | L54: 0 | M54: 0 | N54: 0 | O54: 0 | P54: 0 | Q54: 0 | R54: 0 | S54: 0 | T54: 0 | U54: 0 | V54: 0 | W54: 0 | X54: 0 | Y54: 0 | Z54: 0 | AA54: 0 | AB54: 0 | AC54: 0 | AD54: 0 | AE54: 0 | AF54: 0 | AG54: 0 | AH54: 0 | AI54: 0 | AJ54: 0 | AK54: 0 | AL54: 0 | AM54: 0 | AN54: 0 | AO54: 0 | AP54: 0 | AQ54: 0
A56: Debt Service Coverage Ratio (DSCR) | D56: =IF(D51<=0,0,((D43/D51))) -> 0 | E56: =IF(E51<=0,0,((E43/E51))) -> 0 | F56: 0 | G56: 0 | H56: 0 | I56: 0 | J56: 0 | K56: 0 | L56: 0 | M56: 0 | N56: 0 | O56: 0 | P56: 0 | Q56: 0 | R56: 0 | S56: 0 | T56: 0 | U56: 0 | V56: 0 | W56: 0 | X56: 0 | Y56: 0 | Z56: 0 | AA56: 0 | AB56: 0 | AC56: 0 | AD56: 0 | AE56: 0 | AF56: 0 | AG56: 0 | AH56: 0 | AI56: 0 | AJ56: 0 | AK56: 0 | AL56: 0 | AM56: 0 | AN56: 0 | AO56: 0 | AP56: 0 | AQ56: 0
A57: Use of Cash Flow After Debt Service - HCD Projects
A58: Asset Mgmt./ Similar Fees | D58: =IF(D54>=D70,D70,MAX(0,D54)) -> 0 | E58: =IF(E54>=E70,E70,MAX(0,E54)) -> 0 | F58: =IF(F54>=F70,F70,MAX(0,F54)) -> 0 | G58: 0 | H58: 0 | I58: 0 | J58: 0 | K58: 0 | L58: 0 | M58: 0 | N58: 0 | O58: 0 | P58: 0 | Q58: 0 | R58: 0 | S58: 0 | T58: 0 | U58: 0 | V58: 0 | W58: 0 | X58: 0 | Y58: 0 | Z58: 0 | AA58: 0 | AB58: 0 | AC58: 0 | AD58: 0 | AE58: 0 | AF58: 0 | AG58: 0 | AH58: 0 | AI58: 0 | AJ58: 0 | AK58: 0 | AL58: 0 | AM58: 0 | AN58: 0 | AO58: 0 | AP58: 0 | AQ58: 0
A59: Deferred Developer Fee prior to
A60: Distributions & residual receipt payments | D60: =IF(D54-D58<=$D$73,MAX(0,D54-D58),$D$73) -> 0 | E60: =IF(D71+E54-E58<=$D$73,MAX(0,E54-E58),$D$73-D71) -> 0 | F60: =IF(E71+F54-F58<=$D$73,MAX(0,F54-F58),$D$73-E71) -> 0 | G60: 0 | H60: 0 | I60: 0 | J60: 0 | K60: 0 | L60: 0 | M60: 0 | N60: 0 | O60: 0 | P60: 0 | Q60: 0 | R60: 0 | S60: 0 | T60: 0 | U60: 0 | V60: 0 | W60: 0 | X60: 0 | Y60: 0 | Z60: 0 | AA60: 0 | AB60: 0 | AC60: 0 | AD60: 0 | AE60: 0 | AF60: 0 | AG60: 0 | AH60: 0 | AI60: 0 | AJ60: 0 | AK60: 0 | AL60: 0 | AM60: 0 | AN60: 0 | AO60: 0 | AP60: 0 | AQ60: 0
A61: Cash Available for Residual Receipts Loans
A62: and Sponsor Distributions | D62: =MAX(0,D54-D58-D60) -> 0 | E62: =MAX(0,E54-E58-E60) -> 0 | F62: =MAX(0,F54-F58-F60) -> 0 | G62: 0 | H62: 0 | I62: 0 | J62: 0 | K62: 0 | L62: 0 | M62: 0 | N62: 0 | O62: 0 | P62: 0 | Q62: 0 | R62: 0 | S62: 0 | T62: 0 | U62: 0 | V62: 0 | W62: 0 | X62: 0 | Y62: 0 | Z62: 0 | AA62: 0 | AB62: 0 | AC62: 0 | AD62: 0 | AE62: 0 | AF62: 0 | AG62: 0 | AH62: 0 | AI62: 0 | AJ62: 0 | AK62: 0 | AL62: 0 | AM62: 0 | AN62: 0 | AO62: 0 | AP62: 0 | AQ62: 0
A63: Sponsor Distributions | C63: 0.5 | D63: =$C63*D62 -> 0 | E63: =+$C63*E62 -> 0 | F63: 0 | G63: 0 | H63: 0 | I63: 0 | J63: 0 | K63: 0 | L63: 0 | M63: 0 | N63: 0 | O63: 0 | P63: 0 | Q63: 0 | R63: 0 | S63: 0 | T63: 0 | U63: 0 | V63: 0 | W63: 0 | X63: 0 | Y63: 0 | Z63: 0 | AA63: 0 | AB63: 0 | AC63: 0 | AD63: 0 | AE63: 0 | AF63: 0 | AG63: 0 | AH63: 0 | AI63: 0 | AJ63: 0 | AK63: 0 | AL63: 0 | AM63: 0 | AN63: 0 | AO63: 0 | AP63: 0 | AQ63: 0
A64: HCD Residual Payment | C64: 0.5 | D64: =$C64*D62 -> 0 | E64: =+$C64*E62 -> 0 | F64: 0 | G64: 0 | H64: 0 | I64: 0 | J64: 0 | K64: 0 | L64: 0 | M64: 0 | N64: 0 | O64: 0 | P64: 0 | Q64: 0 | R64: 0 | S64: 0 | T64: 0 | U64: 0 | V64: 0 | W64: 0 | X64: 0 | Y64: 0 | Z64: 0 | AA64: 0 | AB64: 0 | AC64: 0 | AD64: 0 | AE64: 0 | AF64: 0 | AG64: 0 | AH64: 0 | AI64: 0 | AJ64: 0 | AK64: 0 | AL64: 0 | AM64: 0 | AN64: 0 | AO64: 0 | AP64: 0 | AQ64: 0
A65: Other Residual Payments | C65: 0 | D65: =$C65*D62 -> 0 | E65: =+$C65*E62 -> 0 | F65: 0 | G65: 0 | H65: 0 | I65: 0 | J65: 0 | K65: 0 | L65: 0 | M65: 0 | N65: 0 | O65: 0 | P65: 0 | Q65: 0 | R65: 0 | S65: 0 | T65: 0 | U65: 0 | V65: 0 | W65: 0 | X65: 0 | Y65: 0 | Z65: 0 | AA65: 0 | AB65: 0 | AC65: 0 | AD65: 0 | AE65: 0 | AF65: 0 | AG65: 0 | AH65: 0 | AI65: 0 | AJ65: 0 | AK65: 0 | AL65: 0 | AM65: 0 | AN65: 0 | AO65: 0 | AP65: 0 | AQ65: 0
A66: Other Residual Payments | C66: 0 | D66: =$C66*D62 -> 0 | E66: =+$C66*E62 -> 0 | F66: 0 | G66: 0 | H66: 0 | I66: 0 | J66: 0 | K66: 0 | L66: 0 | M66: 0 | N66: 0 | O66: 0 | P66: 0 | Q66: 0 | R66: 0 | S66: 0 | T66: 0 | U66: 0 | V66: 0 | W66: 0 | X66: 0 | Y66: 0 | Z66: 0 | AA66: 0 | AB66: 0 | AC66: 0 | AD66: 0 | AE66: 0 | AF66: 0 | AG66: 0 | AH66: 0 | AI66: 0 | AJ66: 0 | AK66: 0 | AL66: 0 | AM66: 0 | AN66: 0 | AO66: 0 | AP66: 0 | AQ66: 0
A67: Other Residual Payments | C67: 0 | D67: =$C67*D62 -> 0 | E67: =+$C67*E62 -> 0 | F67: 0 | G67: 0 | H67: 0 | I67: 0 | J67: 0 | K67: 0 | L67: 0 | M67: 0 | N67: 0 | O67: 0 | P67: 0 | Q67: 0 | R67: 0 | S67: 0 | T67: 0 | U67: 0 | V67: 0 | W67: 0 | X67: 0 | Y67: 0 | Z67: 0 | AA67: 0 | AB67: 0 | AC67: 0 | AD67: 0 | AE67: 0 | AF67: 0 | AG67: 0 | AH67: 0 | AI67: 0 | AJ67: 0 | AK67: 0 | AL67: 0 | AM67: 0 | AN67: 0 | AO67: 0 | AP67: 0 | AQ67: 0
A68: Other Residual Payments | C68: 0 | D68: =$C68*D62 -> 0 | E68: =+$C68*E62 -> 0 | F68: 0 | G68: 0 | H68: 0 | I68: 0 | J68: 0 | K68: 0 | L68: 0 | M68: 0 | N68: 0 | O68: 0 | P68: 0 | Q68: 0 | R68: 0 | S68: 0 | T68: 0 | U68: 0 | V68: 0 | W68: 0 | X68: 0 | Y68: 0 | Z68: 0 | AA68: 0 | AB68: 0 | AC68: 0 | AD68: 0 | AE68: 0 | AF68: 0 | AG68: 0 | AH68: 0 | AI68: 0 | AJ68: 0 | AK68: 0 | AL68: 0 | AM68: 0 | AN68: 0 | AO68: 0 | AP68: 0 | AQ68: 0
A70: Max Asset Mgmt/Similar Fees | C70: 0.035 | D70: =Operating!D133 -> 0 | E70: =(1+$C$70)*D70 -> 0 | F70: =(1+$C$70)*E70 -> 0 | G70: 0 | H70: 0 | I70: 0 | J70: 0 | K70: 0 | L70: 0 | M70: 0 | N70: 0 | O70: 0 | P70: 0 | Q70: 0 | R70: =(1+$C$70)*Q70 -> 0 | S70: 0 | T70: 0 | U70: 0 | V70: 0 | W70: 0 | X70: 0 | Y70: 0 | Z70: 0 | AA70: 0 | AB70: 0 | AC70: 0 | AD70: 0 | AE70: 0 | AF70: 0 | AG70: 0 | AH70: 0 | AI70: 0 | AJ70: 0 | AK70: 0 | AL70: 0 | AM70: 0 | AN70: 0 | AO70: 0 | AP70: 0 | AQ70: 0
A71: Cumulative paid Deferred Dev. Fee | D71: =+D60 -> 0 | E71: =+D71+E60 -> 0 | F71: 0 | G71: 0 | H71: 0 | I71: 0 | J71: 0 | K71: 0 | L71: 0 | M71: 0 | N71: 0 | O71: 0 | P71: 0 | Q71: 0 | R71: =+Q71+R60 -> 0 | S71: =+R71+S60 -> 0 | T71: 0 | U71: 0 | V71: 0 | W71: 0 | X71: 0 | Y71: 0 | Z71: 0 | AA71: 0 | AB71: 0 | AC71: 0 | AD71: 0 | AE71: 0 | AF71: 0 | AG71: 0 | AH71: 0 | AI71: 0 | AJ71: 0 | AK71: 0 | AL71: 0 | AM71: 0 | AN71: 0 | AO71: 0 | AP71: 0 | AQ71: 0
A72: Total Deferred Developer Fee budgeted for payment prior
A73: to distributions and residual receipt payments | D73: 0

Sheet Env & Land Use Verification
A1: =CONCATENATE(Overview!D5," Verification of Environmental Review & Land Use Entitlements") -> Verification of Environmental Review & Land Use Entitlements | AK1: ='IIG Coverpage'!B11 -> 2021-06-21
A2: File Name | D2: Auth to Use Grant Funds | L2: For NEPA only, provide a copy of the HUD 7015.16 "Authority To Use Grant Funds" or clarify the current status of the issuance of the HUD form. | AF2: Uploaded to HCD?
A3: File Name | D3: Environmental | L3: Provide a copy of all environmental clearances or Notice of Exemption. | AF3: Uploaded to HCD?
A4: TO THE APPLICANT: Submit this form to the agency or department of local government responsible for administration of the items listed. This form may be submitted to more than one agency or department, if necessary. QIP Applicants need only submit one completed form per Locality. If the NEPA Responsible Entity is not a local government, submit a copy of this form to the appropriate NEPA Responsible Entity. If an item is not required, include the reason why in the box provided.
A5: Applicant
A6: Entity Name | W6: Applicant Type
A7: Address | V7: City | AC7: State | AH7: Zip
B8: Project Name | H8: Brief Description | R8: Address | X8: City | AA8: Zip | AD8: County | AG8: Census Tracts | AJ8: APNs
A9: =IF(Overview!AJ4="QIP","QIP","Required QIP") -> Required QIP
A17: TO THE LOCAL JURISDICTION OR NEPA RESPONSIBLE ENTITY: The Applicant named above will submit an application to the State of California, Department of Housing and Community Development, requesting funding for the project named above under the Infill Infrastructure Grant Program (IIG). Projects will be evaluated based upon readiness. Please answer the following questions:
A18: Environmental Review
A19: Is this QIP approved "by right"?
A20: This form must be completed in its entirety regardless of the answer to the preceding question.
A21: All Environmental Clearances (CEQA/NEPA) necessary to begin construction are: | I21: Not Required for this Project | N21: Has a Negative Declaration been issued? | S21: Final Date of Public Comment Period | X21: Date(s) EIR Certified / Notice of Determination filed | AC21: Date Appeal Period Ends | AH21: Have any appeals been filed?
A22: CEQA
A23: NEPA*
A24: In the box below, explain why any items are not required and include documentation, if applicable:
A26: Signature Block for Environmental Review
A27: I certify that the information on this form is true and correct to the best of my knowledge.
A28: Date: | J28: Signature of party completing form:
A29: Printed name of party completing form:
A30: Title of party completing form: | T30: Agency and/or Dept. name:
A31: Agency/Dept. Address | V31: City | AC31: State | AH31: Zip
A32: Land Use Entitlements (indicate below the status of the following local approvals)
A33: All necessary and discretionary public land use approvals except building permits and other ministerial approvals are: | N33: Not Required for this Project | S33: QIP is consistent with local planning documents & zoning ordinances | AA33: An Application has been submitted, accepted and deemed complete for processing. | AJ33: Date Approved
A34: General Plan Amendment:
A35: Site Plan Review:
A36: Zoning Approval:
A37: Conditional Use Permits:
A38: Density Bonus:
A39: Other Variances:
A40: Other Variances:
A41: Other Variances:
A42: Other Variances:
A43: Other Variances:
A44: In the box below, explain why any items are not required and include documentation, if applicable:
A46: Signature Block for Land Use Entitlements
A47: I certify that the information on this form is true and correct to the best of my knowledge.
A48: Date: | J48: Signature of party completing form:
A49: Printed name of party completing form:
A50: Title of party completing form: | T50: Agency and/or Dept. name:
A51: Agency/Dept. Address | V51: City | AC51: State | AH51: Zip
A52: HCD requires an original, fully completed form with signatures.

Sheet QIP Scoring
A1: QIP Scoring | AK1: ='IIG Coverpage'!B11 -> 2021-06-21
A2: 250 Points Max (points in blue shaded cells) | AC2: Total QIP Self Score | AK2: =AK6+AK13+AK26+AK30+AK33+AK44+AK46+AK50+AK57+AK85 -> 0
A3: Project Readiness §309(a) - 100 Points Max
A4: File Name | D4: E&L Use | L4: Provide signed copies of Env & Land Use Verification worksheet. Identify name of Locality at beginning of document. | AF4: Uploaded to HCD?
A5: (1) Environmental Review Status - 30 points max (if environmental reviews and necessary entitlements have been completed for the QIP and submitted to HCD by the application due date, select "Yes").
A6: (A) For the QIP, we have completion and approval or adoption of all necessary environmental clearances including those required under the CEQA and if applicable, NEPA, and all applicable time periods for filing appeals or lawsuits have lapsed. If no, answer (B). - 30 points | AK6: =IF(AI6="Yes",30,IF(AI7="Yes",15,0)) -> 0
A7: (B) For the QIP, we have issued a public notice of the availability of a draft environmental impact report, negative declaration, or environmental assessment? - 15 points
A8: NEPA: | C8: Is Federal funding proposed that will trigger NEPA? Describe circumstances below. | X8: If Yes, enter date of "Authority to Use Grant Funds":
A10: CEQA: | C10: Project approved "by-right"? | J10: Is Project Categorically Exempt? | R10: Negative Declaration Date: | Z10: Final EIR Date: | AE10: Describe special circumstances below:
A12: (2) Land Use Entitlement Status - 30 points max (if necessary entitlements from the local jurisdiction can be secured and submitted to HCD by the application due date, select "Yes").
A13: (A) For the QIP, have all necessary local land use approvals have been granted for the QIP, as determined by a local land use authority (e.g., planning or community development director or zoning administrator)? identify in table below - 30 points. If no, answer (B) below: | AK13: =IF(AI13="Yes",30,IF(AI14="Yes",15,IF(AI15="Yes",10,0))) -> 0
A14: (B) The QIP is consistent with all relevant local planning documents and zoning ordinances and applications for all necessary discretionary local land use approvals have been submitted and deemed complete by the appropriate local agencies? identify in table below - 15 points
A15: (C) The QIP is eligible to receive all necessary local land use approvals pursuant to a Nondiscretionary Local Approval Process? identify in table below - 10 points
A16: Provide a listing and status of all discretionary local land use approvals, excluding design review, required to complete QIP that have been granted, submitted or to be applied for to the appropriate local agencies, or consistent with local planning documents. This information must match the info provided on the Verification of the Status of Environmental Review and Land Use Entitlements form.
A17: Agency / Issuer | M17: Land Use Approval Date | S17: Approval Type | X17: Type and Comments
X18: Site Plan Review
X19: Conditional Use Permits
X20: Zoning Approval
X21: Other (specify)
X22: Other (specify)
X23: Other (specify)
A24: (3) Leveraged Funding Commitments - 20 points max
A25: All funding sources on the Dev Sources worksheet rows 59 to 74 must include: "Rental" or "Homeowner" and "CIP" or "QIP #1".
A26: Rental funding commitments as a % of total development costs less private mortgage financing and deferred costs: | AB26: Permanent: | AE26: ='Dev Sources'!F76 -> 0 | AG26: Points: | AI26: =IF(AE26>=0.9,20,IF(AE26>=0.75,10,0)) -> 0 | AK26: =MIN(20,IF(AND(AI26>0,AI27>0),(AI26*('Max Funds and Unit Mix'!M33/'Max Funds and Unit Mix'!K33))+(AI27*('Max Funds and Unit Mix'!M33/'Max Funds and Unit Mix'!K33)),IF(AI26>0,AI26,AI27))) -> 0
A27: HO funding commitments as a % of total development costs less private mortgage financing & deferred costs: | AB27: Permanent: | AE27: ='Dev Sources'!F77 -> 0 | AG27: Points: | AI27: =IF(AE27>=0.9,20,IF(AE27>=0.75,10,0)) -> 0
A28: File Name | D28: Perm EFC #1, #2, etc | L28: Proof(s) of permanent financing, see §302(m) | AF28: Uploaded to HCD?
A29: (4) Local Support - 12 points max
A30: (A) Obtaining a funding commitment or commitments from a local public agency or agencies for the QIP or CIP - 12 points (All funding sources on Dev Sources worksheet rows 6 to 24 and 59 to 74 must include "Yes" or "No" regarding whether it is Local Support) | AK30: =IF(AJ31>=0.25,12,IF(AJ31>=0.15,3,0)) -> 0
A31: Total local public agencies funding commitment amount: | O31: =SUMPRODUCT(('Dev Sources'!B6:B24="Yes")*('Dev Sources'!I6:I24="Yes")*('Dev Sources'!M6:M24)) -> 0 | S31: CIP Grant amount | X31: ='Max Funds and Unit Mix'!AJ3 -> 0 | AA31: Commitments as % of Grant: | AJ31: =IF(X31=0,0,O31/X31) -> 0
A32: File Name | D32: Local EFC #1, #2, etc | L32: Proof(s) of local support, see §309(a)(4)(B) | AF32: Uploaded to HCD?
A33: (5)(A) Prohousing Policies - 8 points max | AK33: =MIN(8,AK34+AK35+AK36+AK37+AK38) -> 0
A34: (i) | B34: Projects located in jurisdictions that have implemented programs over the last five years, which are currently in effect, that finance infrastructure with accompanying increased housing capacity in areas of high segregation and poverty or low resource opportunity area (see TCAC/HCD Opportunity Area Maps) or disadvantaged community pursuant to Senate Bill 535 and Assembly Bill 1550 or provide local financial incentives for housing, including, but not limited to, a local housing trust fund or fee waivers. - 4 points | AK34: =IF(AI34="Yes",4,0) -> 0 | AN34: (i) Infrastructure and Financing
A35: (ii) | B35: Projects located in jurisdictions that have adopted a Nondiscretionary Local Approval Process for residential & mixed-use development in all zones permitting multifamily housing, established a Workforce Housing Opportunity Zone, as defined in Gov. Code §65620, or a housing sustainability district as defined in Gov. Code §66200. - 4 points | AK35: =IF(AI35="Yes",4,0) -> 0 | AN35: (ii) Non-discretionary Approval Processes
A36: (iii) | B36: Projects located in jurisdictions that zone more sites for residential development or zoning sites at higher densities than is required to accommodate 150 percent of the minimum regional housing need allocation for the Lower Income allocation in the current housing element cycle. - 4 points | AK36: 0 | AN36: (iii) Additional Sites Zoned Higher Density
A37: (iv) | B37: Projects in jurisdictions that have adopted accessory dwelling unit ordinances or other mechanisms that reduce barriers for property owners to create accessory dwelling units beyond the requirements outlined in Gov. Code §65852.2 as follows: - 4 points 1. Parking reductions to 0.75 or fewer spaces per accessory dwelling unit in areas not already exempt from parking per Gov. Code §65852.2; 2. Processing or impact fee waivers or reductions of 50% or more; 3. Ministerial approval in fewer than 45 days; 4. Reduction or modifications of development standards for side yard setbacks of five feet or less; 5. Reduction or modifications of development standards to two story heights; 6. Reduction or modifications of development standards to allow 60% or more lot coverage; 7. No minimum lot size requirement; 8. Provisions for affordability; or 9. Offering support programs such as a user-friendly website | AK37: 0 | AN37: (iv) Accessory Dwelling Units (ADU)
A38: (v) | B38: Projects located in jurisdictions that only use objective design standards for multifamily residential development or adopt fee transparency measures, inc. publicly available fee calculators. - 4 points | AK38: 0 | AN38: (v) Objective Design Standards
A39: Select Strategy Type (from above) | D39: Strategy Description | N39: Enter name of source document and the hyperlink to where the document can be accessed. | U39: Estimated Outcomes - Describe numerically in terms of increase in supply (number of units), timing (reduced number of days), development costs (reduced costs per unit), entitlement streamlining (reduced number of approvals), or funding (dollar value of incentives).
A43: Affordability §309(b) - 60 Points Max
A44: Points based on % of QIP units restricted to occupancy by various income groups. (see Max Funds and Unit Mix worksheet) | Y44: §309(b)(1) points= | AC44: ='Max Funds and Unit Mix'!AL96 -> 0 | AE44: §309(b)(2) points= | AI44: ='Max Funds and Unit Mix'!G50 -> 0 | AK44: =MIN(60,MAX(AC44,AI44)) -> 0
A45: Density §309(c) - 40 Points Max
A46: Points based on extent to which the average Net Density of QIP, adjusted by unit size, exceeds the required density §303(c)(4). (see Eligibility and Threshold worksheet) | V46: Minimum Net Density = | Z46: =MAX('Eligibility and Threshold'!AJ17,'Eligibility and Threshold'!U18) -> 0 | AB46: % QIP meets or exceeds required Net Density: | AI46: ='Eligibility and Threshold'!AI25 -> 0 | AK46: =IF(AI46>=1.5,40,IF(AI46>=1.4,30,IF(AI46>=1.3,20,IF(AI46>=1.2,15,IF(AI46>=1.1,10,0))))) -> 0
A47: Access to Transit §309(d) - 20 Points Max
A48: Points for proximity of QIP to a Transit Station or Major Transit Stop. Distance must be evidenced by a scaled map. Walkable Route is defined in §302(qq).
A49: Type | G49: Transit Name | R49: Contact | Z49: Phone | AF49: Planned Station Service Date
A50: (1) Is QIP within one-quarter mile of a Transit Station or Major Transit Stop measured by a Walkable Route from nearest boundary of QIP to the outer boundary of the site of the Transit Station or Major Transit Stop? - 20 points | AK50: =IF(AI50="Yes",20,IF(AI51="Yes",15,IF(AI52="Yes",10,0))) -> 0
A51: (2) Is QIP within one half mile of a within one-half mile of a Transit Station or a Major Transit Stop, measured by a Walkable Route from the nearest boundary of the Qualifying Infill Project to the outer boundary of the site of the Transit Station or Major Transit Stop and located in an area of high segregation and poverty or low resource opportunity area (see TCAC/HCD Opportunity Area Maps) or disadvantaged community pursuant to Senate Bill 535 and Assembly Bill 1550? - 15 points
A52: (3) Is QIP within one half mile of a Transit Station or Major Transit Stop measured by a Walkable Route from the nearest boundary of QIP to the outer boundary of the site of the Transit Station or Major Transit Stop? - 10 points
A53: File Name | D53: Transit Access | L53: Provide scaled map showing Transit Stations or Major Transit Stops and Walkable Routes. | AF53: Uploaded to HCD?
A54: File Name | D54: TCAC Opportunity Map | L54: Provide 'TCAC/HCD Opportunity Area Map' showing QIP is located in an area of high segregation and poverty or low resource opportunity area. | AF54: Uploaded to HCD?
A55: File Name | D55: Transit Schedule | L55: Transit service schedule publicly posted between January 2020 and date of application. | AF55: Uploaded to HCD?
A56: Access to Opportunity and Proximity to Amenities §309(e) - 20 Points Max
A57: Points based on the proximity or accessibility of QIP to the following amenities that exist or will be in service when the QIP is completed. | AF57: Rural Area Project? | AI57: =IF('Eligibility and Threshold'!W17="","",'Eligibility and Threshold'!W17) ->  | AK57: =MIN(20,AK58+AK59+AK64+AK72+AK74+AK79) -> 0
A58: (1) The QIP is located in a High or Highest Resource Area as specified on a TCAC/HCD Opportunity Area Map? - 20 points | AK58: =IF(AI58="Yes",20,0) -> 0
A59: (2) The QIP is within what distance from a Park §302(y) (not including school grounds unless there is a bona fide, formal joint use agreement between the jurisdiction responsible for the parks/recreational facilities and the school district providing availability to the general public of the school grounds and/or facilities)? - 3 or 5 points | AK59: =IF(AND($AI$57="Yes",OR(AG59="Within 1/2 mile",AG59="Within 1/4 mile")),5,IF(AND($AI$57="Yes",AG59="Within 1 mile"),3,IF(AND(OR($AI$57=0,$AI$57="No"),AG59="Within 1/4 mile"),5,IF(AND(OR($AI$57=0,$AI$57="No"),AG59="Within 1/2 mile"),3,0)))) -> 0
A60: Entity Name | U60: Responsible jurisdiction
A61: Site Address | V61: City | AC61: State | AH61: Zip
A62: Contact | M62: Title | T62: Phone | AC62: Date In Service
A63: File Name | D63: Park Access | L63: Provide scaled map showing distance to Park. | AF63: Uploaded to HCD?
A64: (3) The QIP is within what distance from a locally recognized Employment Center §302(l) with at least 50 full time employees? - 3 or 5 points. | AK64: =IF(AND($AI$57="Yes",OR(AG64="Within 1 mile",AG64="Within 2 miles")),5,IF(AND($AI$57="Yes",AG64="Within 4 miles"),3,IF(AND(OR($AI$57="",$AI$57="No"),AG64="Within 1 mile"),5,IF(AND(OR($AI$57="",$AI$57="No"),AG64="Within 2 miles"),3,0)))) -> 0
A65: Entity Name | U65: Responsible jurisdiction
A66: Site Address | V66: City | AC66: State | AH66: Zip
A67: Contact | M67: Title | T67: Phone | AC67: Date In Service
A68: File Name | D68: Employment Access | L68: Provide scaled map showing distance to Employment Center. | AF68: Uploaded to HCD?
A69: Entity Name | U69: Responsible jurisdiction
A70: Site Address | V70: City | AC70: State | AH70: Zip
A71: Contact | M71: Title | T71: Phone | AC71: Date In Service
A72: (4) The QIP is within what distance from a locally recognized Retail Center §302(dd) with at least 50 full-time employees - 3 or 5 points. | AK72: =IF(AND($AI$57="Yes",OR(AG72="Within 1 mile",AG72="Within 2 miles")),5,IF(AND($AI$57="Yes",AG72="Within 4 miles"),3,IF(AND(OR($AI$57="",$AI$57="No"),AG72="Within 1 mile"),5,IF(AND(OR($AI$57="",$AI$57="No"),AG72="Within 2 miles"),3,0)))) -> 0
A73: File Name | D73: Retail Access | L73: Provide scaled map certified showing distances to Retail Center. | AF73: Uploaded to HCD?
A74: (5) The QIP is within what distance from a public school or community college that residents of the QIP may attend - 3 or 5 points. | AK74: =IF(AND($AI$57="Yes",OR(AG74="Within 1/4 mile",AG74="Within 1/2 mile")),5,IF(AND($AI$57="Yes",AG74="Within 1 mile"),3,IF(AND(OR($AI$57="",$AI$57="No"),AG74="Within 1/4 mile"),5,IF(AND(OR($AI$57="",$AI$57="No"),AG74="Within 1/2 mile"),3,0)))) -> 0
A75: Entity name | U75: Responsible jurisdiction
A76: Site address | V76: City | AC76: State | AH76: Zip
A77: Contact | M77: Title | T77: Phone | AC77: Date in service
A78: File Name | D78: Education Access | L78: Provide scaled map showing distances to public school/college. | AF78: Uploaded to HCD?
A79: (6) The QIP is within what distance from a social service facility that operates to serve residents of the QIP? - 3 or 5 points | AK79: =IF(AG79="Within 1/2 mile",5,IF(AG79="Within 1 mile",3,0)) -> 0
A80: Entity name | U80: Responsible jurisdiction
A81: Site address | V81: City | AC81: State | AH81: Zip
A82: Contact | M82: Title | T82: Phone | AC82: Date in service
A83: File Name | D83: Social Service Access | L83: Provide scaled map showing distances to social service facility. | AF83: Uploaded to HCD?
A84: Consistency with Regional Plans §309(f) - 10 Points Max
A85: Points awarded for each of the following | AK85: =MIN(10,AK86+AK87+AK88) -> 0
A86: (A) | B86: Does QIP support the implementation of a sustainable communities strategy or alternative planning strategy that has been determined by the California Air Resources Board to achieve the region's greenhouse gas emissions target. Consistency with such plans must be demonstrated by a letter or resolution executed by an officer, or an equivalent representative from the metropolitan planning organization, regional transportation agency, planning, or local transportation commission - 5 points | AK86: =IF(AI86="Yes",5,0) -> 0
A87: (B) | B87: If a sustainable communities strategy is not required for a region by law, and if the QIP supports a regional plan that includes policies and programs to reduce greenhouse gas emissions. Evidence of consistency with such plans must be demonstrated by a letter or resolution executed by an officer of, or an equivalent representative from the metropolitan planning organization or regional transportation planning agency or local transportation commission - 5 points | AK87: =IF(AI87="Yes",5,0) -> 0
A88: (C) | B88: Not less than 50% of the land area is within a Transit Priority Area evidenced by a letter or resolution executed by an officer of, or an equivalent representative from the metropolitan planning organization, regional transportation planning agency, or local transportation commission - 5 points | AK88: =IF(AI88="Yes",5,0) -> 0
A89: File Name | D89: QIP Consistency | L89: Submit letters or resolutions from the local council of government, metropolitan planning organization or regional transportation planning agency confirming points above. | AF89: Uploaded to HCD?
A90: Tie Breaker §307(b)(3); NOFA
A91: In the event two or more applications have the same rating and ranking scores, HCD will apply tie breaking criteria outlined in the NOFA. | AF91: Application due date | AK91: 2021-07-12
A92: (1) 10 bonus points to the QIP having the lowest ratio between the requested grant amount to the total allowable maximum grant amount per §305. | AI92: Ratio= | AK92: =IF('Max Funds and Unit Mix'!AJ3=0,0,'Max Funds and Unit Mix'!AJ3/'Max Funds and Unit Mix'!AD3) -> 0
A93: (2) If tie still exists, 3 points to the QIP for each prior awarded QIP developed by the Applicant that has received a Certificate of Occupancy by the application deadline .
A94: Development name: | U94: IIG prior NOFA date | AB94: Cert. of Occup date: | AJ94: =IF(AND(AG94<>"",AG94<=$AK$91),1,0) -> 0 | AK94: =SUM(AJ94:AJ99)*3 -> 0
A95: Development name: | U95: IIG prior NOFA date | AB95: Cert. of Occup date: | AJ95: =IF(AND(AG95<>"",AG95<=$AK$91),1,0) -> 0
A96: Development name: | U96: IIG prior NOFA date | AB96: Cert. of Occup date: | AJ96: 0
A97: Development name: | U97: IIG prior NOFA date | AB97: Cert. of Occup date: | AJ97: =IF(AND(AG97<>"",AG97<=$AK$91),1,0) -> 0
A98: Development name: | U98: IIG prior NOFA date | AB98: Cert. of Occup date: | AJ98: 0
A99: Development name: | U99: IIG prior NOFA date | AB99: Cert. of Occup date: | AJ99: 0

Sheet QIA Scoring
A1: QIA Scoring | AK1: ='IIG Coverpage'!B11 -> 2021-06-21
A2: 250 Points Max (points in blue shaded cells) | AC2: Total QIA Self Score | AK2: =AK6+AK40+AK49+AK65+AK69+AK72+AK83+AK85+AK89+AK96+AK124 -> 0
A3: Area Readiness §310(a) - 100 Points Max
A4: File Name | D4: E&L Use | L4: Provide signed copies of Env & Land Use Verification worksheet. Identify name of Locality at beginning of document. | AF4: Uploaded to HCD?
A5: (1) Multiple QIPs - 10 points max (if the number of QIPs within the QIA is more than one and land use entitlements required for construction has been secured and submitted to HCD by the application due date, select "Yes" below) | AE5: Number of QIPs within the QIA? | AM5: 1
A6: (A) The QIA will have three or more QIPs that provide a minimum of 250 new or rehabilitated housing units and can secure all land use entitlements required for construction within a reasonable period of time following the submittal of the Program application or that all applications required for construction have been submitted under a Nondiscretionary Local Approval Process. - 10 points | AK6: =IF(AI6="Yes",10,IF(AI7="Yes",5,0)) -> 0 | AM6: Two QIPs
A7: (B) The QIA will have two QIPs that provide a minimum of 150 new or rehabilitated housing units and can secure all land use entitlements required for construction within a reasonable period of time following the submittal of the Program application or that all applications required for construction have been submitted under a Nondiscretionary Local Approval Process. - 5 points | AM7: Three or more QIPs
A8: Provide a listing and status of all discretionary local land use approvals, excluding design review, required to complete QIP that have been granted, submitted or to be applied for to the appropriate local agencies, or consistent with local planning documents. This information must match the information provided on the Verification of the Status of Environmental Review and Land Use Entitlements form.
A9: Required QIP #1 - Agency / Issuer | M9: Land Use Approval Date | S9: Approval Type | X9: Type and Comments
X10: Site Plan Review
X11: Conditional Use Permits
X12: Zoning Approval
X13: Other (specify)
X14: Other (specify)
X15: Other (specify)
X16: Other (specify)
X17: Other (specify)
X18: Other (specify)
A19: QIP #2 - Agency / Issuer | M19: Land Use Approval Date | S19: Approval Type | X19: Type and Comments
X20: Site Plan Review
X21: Conditional Use Permits
X22: Zoning Approval
X23: Other (specify)
X24: Other (specify)
X25: Other (specify)
X26: Other (specify)
X27: Other (specify)
X28: Other (specify)
A29: QIP #3 - Agency / Issuer | M29: Land Use Approval Date | S29: Approval Type | X29: Type and Comments
X30: Site Plan Review
X31: Conditional Use Permits
X32: Zoning Approval
X33: Other (specify)
X34: Other (specify)
X35: Other (specify)
X36: Other (specify)
X37: Other (specify)
X38: Other (specify)
A39: (2) Environmental review status - 25 points max (if environmental reviews and necessary entitlements have been secured and submitted to HCD by the application due date, select "Yes" below)
A40: (A) For the QIA, we have completion and approval or adoption of all necessary environmental clearances including those required under the CEQA and NEPA, if applicable and all applicable time periods for filing appeals or lawsuits have lapsed. If no, answer (B). - 25 points | AK40: =IF(AI40="Yes",25,IF(AI41="Yes",15,IF(AI42="Yes",10,IF(AI43="Yes",5,0)))) -> 0
A41: (B) For the QIA, we have a draft of a program, master or tiered environmental impact report that has been certified by the appropriate agency and the developments included in the application will constitute subsequent projects subject to environmental review as such pursuant to CEQA Guidelines, Chapter 3, Title 14, CCR, commencing with §15000? If no, answer (C). - 15 points
A42: (C) For the QIA, we have a draft of a program, master or tiered environmental impact report has been completed and filed with the appropriate agency and the developments included in the application will constitute subsequent projects subject to environmental review as such pursuant to CEQA Guidelines, Chapter 3, Title 14, CCR, commencing with §15000? If no, answer (D). - 10 points
A43: (D) For the QIA, not less than 50% of the land area is on sites that have been subject to a Phase 1 Site Assessment within one year prior to the application due date. - 5 points
A44: NEPA: | C44: Federal funding proposed that will trigger NEPA? Describe circumstances below: | X44: If Yes, enter date of "Authority to Use Grant Funds":
A46: CEQA: | C46: Project approved "by-right"? | J46: Is Project Categorically Exempt? | R46: Negative Declaration Date: | Z46: Final EIR Date: | AE46: Describe special circumstances below:
A48: (3) Land use entitlement status - 25 points max (if necessary entitlements from the local jurisdiction have been secured and submitted to HCD by the application due date, select "Yes" below)
A49: (A) All necessary local land use approvals for developments within the QIA, have been granted, as determined by a local land use authority (e.g., planning or community development director or zoning administrator)? identify in table below - 25 points. | AK49: =IF(AI49="Yes",25,IF(AI50="Yes",15,IF(AI51="Yes",10,0))) -> 0
A50: (B) The developments within the QIA are consistent with all relevant local planning documents and zoning ordinances and applications for all necessary discretionary local land use approvals have been submitted and deemed complete by the appropriate local agencies? identify in table below - 15 points.
A51: (C) The QIP within the QIA is eligible to receive all necessary local land use approvals per a Nondiscretionary Local Approval Process? identify in table below - 10 points
A52: Provide a listing and status of all discretionary local land use approvals, excluding design review, required to complete QIP that have been granted, submitted or to be applied for to the appropriate local agencies, or consistent with local planning documents. This information must match the information provided on the Verification of the Status of Environmental Review and Land Use Entitlements form.
A53: Agency / Issuer | M53: Land Use Approval Date | S53: Approval Type | X53: Type and Comments
X54: Site Plan Review
X55: Conditional Use Permits
X56: Zoning Approval
X57: Other (specify)
X58: Other (specify)
X59: Other (specify)
X60: Other (specify)
X61: Other (specify)
X62: Other (specify)
A63: (4) Leveraged funding commitments - 20 points max
A64: All funding sources on the Dev Sources worksheet rows 59 to 74 must include: "Rental" or "Homeowner" and "CIP" or "QIP #1".
A65: Rental funding commitments as a % of total development costs less private mortgage financing and deferred costs: | AB65: Permanent: | AE65: ='Dev Sources'!F76 -> 0 | AG65: Points: | AI65: =IF(AE65>=0.9,20,IF(AE65>=0.75,10,0)) -> 0 | AK65: =MIN(20,IF(AND(AI65>0,AI66>0),(AI65*('Max Funds and Unit Mix'!M42/'Max Funds and Unit Mix'!K42))+(AI66*('Max Funds and Unit Mix'!M42/'Max Funds and Unit Mix'!K42)),IF(AI65>0,AI65,AI66))) -> 0
A66: HO funding commitments as a % of total development costs less private mortgage financing & deferred costs: | AB66: Permanent: | AE66: ='Dev Sources'!F77 -> 0 | AG66: Points: | AI66: =IF(AE66>=0.9,20,IF(AE66>=0.75,10,0)) -> 0
A67: File Name | D67: Perm EFC #1, #2, etc | L67: Proof(s) of permanent financing, see §302(m) | AF67: Uploaded to HCD?
A68: (5) Local support - 12 points max
A69: (A) Obtaining a funding commitment(s) from a local public agency(ies) for the QIP or CIP - 12 points (All funding sources on Dev Sources worksheet rows 6 to 24 must include "Yes" or "No" regarding whether it is Local Support) | AK69: =IF(AJ70>=0.25,12,IF(AJ70>=0.15,3,0)) -> 0
A70: Total Local Public Agencies Funding Commitment Amount: | O70: =SUMPRODUCT(('Dev Sources'!B6:B24="Yes")*('Dev Sources'!I6:I24="Yes")*('Dev Sources'!M6:M24)) -> 0 | S70: CIP Grant Amount | X70: ='Max Funds and Unit Mix'!AJ3 -> 0 | AA70: Commitments as % of Grant: | AJ70: =IF(X70=0,0,O70/X70) -> 0
A71: File Name | D71: Local EFC #1, #2, etc | L71: Proof(s) of local support, see §309(a)(4)(B) | AF71: Uploaded to HCD?
A72: (6)(A) Prohousing Policies - 8 points max | AK72: =MIN(8,AK73+AK74+AK75+AK76+AK77) -> 0
A73: (i) | B73: Projects located in jurisdictions that have implemented programs over the last five years, which are currently in effect, that finance infrastructure with accompanying increased housing capacity in areas of high segregation and poverty or low resource opportunity area (see TCAC/HCD Opportunity Area Maps) or disadvantaged community pursuant to Senate Bill 535 and Assembly Bill 1550 or provide local financial incentives for housing, including, but not limited to, a local housing trust fund or fee waivers. - 4 points | AK73: =IF(AI73="Yes",4,0) -> 0 | AN73: (i) Infrastructure and Financing
A74: (ii) | B74: Projects located in jurisdictions that have adopted a Nondiscretionary Local Approval Process for residential & mixed-use development in all zones permitting multifamily housing, established a Workforce Housing Opportunity Zone, as defined in Gov. Code §65620, or a housing sustainability district as defined in Gov. Code §66200. - 4 points | AK74: =IF(AI74="Yes",4,0) -> 0 | AN74: (ii) Non-discretionary Approval Processes
A75: (iii) | B75: Projects located in jurisdictions that zone more sites for residential development or zoning sites at higher densities than is required to accommodate 150 percent of the minimum regional housing need allocation for the Lower Income allocation in the current housing element cycle. - 4 points | AK75: 0 | AN75: (iii) Additional Sites Zoned Higher Density
A76: (iv) | B76: Projects in jurisdictions that have adopted accessory dwelling unit ordinances or other mechanisms that reduce barriers for property owners to create accessory dwelling units beyond the requirements outlined in Gov. Code §65852.2 as follows: - 4 points 1. Parking reductions to 0.75 or fewer spaces per accessory dwelling unit in areas not already exempt from parking pursuant to Gov. Code §65852.2; 2. Processing or impact fee waivers or reductions of 50% or more; 3. Ministerial approval in fewer than 45 days; 4. Reduction or modifications of development standards for side yard setbacks of five feet or less; 5. Reduction or modifications of development standards to two story heights; 6. Reduction or modifications of development standards to allow 60% or more lot coverage; 7. No minimum lot size requirement; 8. Provisions for affordability; or 9. Offering support programs such as a user-friendly website | AK76: 0 | AN76: (iv) Accessory Dwelling Units (ADU)
A77: (v) | B77: Projects located in jurisdictions that only use objective design standards for multifamily residential development or adopt fee transparency measures, inc. publicly available fee calculators. - 4 points | AK77: 0 | AN77: (v) Objective Design Standards
A78: Select Strategy Type (from above) | D78: Strategy Description | N78: Enter name of source document and the hyperlink to where the document can be accessed. | U78: Estimated Outcomes - Describe numerically in terms of increase in supply (number of units), timing (reduced number of days), development costs (reduced costs per unit), entitlement streamlining (reduced number of approvals), or funding (dollar value of incentives).
A82: Affordability §310(b) - 60 Points Max
A83: Points based on % of QIA units restricted to occupancy by various income groups. (see Max Funds and Unit Mix worksheet) | Y83: §310(b)(1) points= | AC83: ='Max Funds and Unit Mix'!AL96 -> 0 | AE83: §310(b)(2) points= | AI83: ='Max Funds and Unit Mix'!G95 -> 0 | AK83: =MIN(60,MAX(AC83,AI83)) -> 0
A84: Density §310(c) - 40 Points Max
A85: Points based on extent to which the Net Density of QIA, adjusted by unit size, exceeds the required Net Density §303(c)(4). see Eligibility and Threshold worksheet AJ114 & U15 | V85: Minimum Net Density = | Z85: =MAX('Eligibility and Threshold'!AJ17,'Eligibility and Threshold'!U18) -> 0 | AB85: % QIA meets or exceeds required Net Density: | AH85: ='Eligibility and Threshold'!AI25 -> 0 | AK85: =IF(AH85>=1.5,40,IF(AH85>=1.4,30,IF(AH85>=1.3,20,IF(AH85>=1.2,15,IF(AH85>=1.1,10,0))))) -> 0
A86: Access to Transit §310(d) - 20 Points Max
A87: Points for proximity of QIP to a Transit Station or Major Transit Stop. Distance must be evidenced by a scaled map. Walkable Route is defined in §302(qq).
A88: Type | G88: Transit Name | R88: Contact | Z88: Phone | AF88: Planned Station Service Date
A89: (1) Is QIP within one-quarter mile of a Transit Station or Major Transit Stop measured by a Walkable Route from nearest boundary of QIP to the outer boundary of the site of the Transit Station or Major Transit Stop? - 20 points | AK89: =IF(AI89="Yes",20,IF(AI90="Yes",15,IF(AI91="Yes",10,0))) -> 0
A90: (2) Is QIP within one half mile of a Transit Station or a Major Transit Stop, measured by a Walkable Route from the nearest boundary of the QIP to the outer boundary of the site of the Transit Station or Major Transit Stop and located in an area of high segregation and poverty or low resource opportunity area (see TCAC/HCD Opportunity Area Maps) or disadvantaged community pursuant to Senate Bill 535 and Assembly Bill 1550? - 15 points
A91: (3) Is QIP within one half mile of a Transit Station or Major Transit Stop measured by a Walkable Route from the nearest boundary of QIP to the outer boundary of the site of the Transit Station or Major Transit Stop? - 10 points
A92: File Name | D92: Transit Access | L92: Provide scaled map showing Transit Stations or Major Transit Stops and Walkable Routes. | AF92: Uploaded to HCD?
A93: File Name | D93: TCAC Opportunity Map | L93: Provide 'TCAC/HCD Opportunity Area Map' showing QIP is located in an area of high segregation and poverty or low resource opportunity area. | AF93: Uploaded to HCD?
A94: File Name | D94: Transit Schedule | L94: Transit service schedule publicly posted between January 2020 and date of application. | AF94: Uploaded to HCD?
A95: Access to Opportunity and Proximity to Amenities §310(e) - 20 Points Max
A96: Points based on the proximity or accessibility of QIP to the following existing amenities or amenities that will be in service when the construction of the QIP is completed. Distance to amenities shall be evidenced by a certified date stamped scaled map. | AF96: Rural Area Project? | AI96: =IF('Eligibility and Threshold'!W17="","",'Eligibility and Threshold'!W17) ->  | AK96: =MIN(20,AK97+AK98+AK103+AK111+AK113+AK118) -> 0
A97: (1) The QIP is located in a High or Highest Resource Area as specified on a TCAC/HCD Opportunity Area Map? - 20 points | AK97: =IF(AI97="Yes",20,0) -> 0
A98: (2) The QIP is within what distance from a Park §302(y) (not including school grounds unless there is a bona fide, formal joint use agreement between the jurisdiction responsible for the parks/recreational facilities and the school district providing availability to the general public of the school grounds and/or facilities)? - 3 or 5 points | AK98: =IF(AND($AI$96="Yes",OR(AG98="Within 1/2 mile",AG98="Within 1/4 mile")),5,IF(AND($AI$96="Yes",AG98="Within 1 mile"),3,IF(AND(OR($AI$96=0,$AI$96="No"),AG98="Within 1/4 mile"),5,IF(AND(OR($AI$96=0,$AI$96="No"),AG98="Within 1/2 mile"),3,0)))) -> 0
A99: Entity Name | U99: Responsible jurisdiction
A100: Site Address | V100: City | AC100: State | AH100: Zip
A101: Contact | M101: Title | T101: Phone | AC101: Date In Service
A102: File Name | D102: Park Access | L102: Provide scaled map showing distance to Park. | AF102: Uploaded to HCD?
A103: (3) The QIP is within what distance from a locally recognized Employment Center §302(l) with at least 50 full time employees? - 3 or 5 points. | AK103: =IF(AND($AI$96="Yes",OR(AG103="Within 1 mile",AG103="Within 2 miles")),5,IF(AND($AI$96="Yes",AG103="Within 4 miles"),3,IF(AND(OR($AI$96="",$AI$96="No"),AG103="Within 1 mile"),5,IF(AND(OR($AI$96="",$AI$96="No"),AG103="Within 2 miles"),3,0)))) -> 0
A104: Entity Name | U104: Responsible jurisdiction
A105: Site Address | V105: City | AC105: State | AH105: Zip
A106: Contact | M106: Title | T106: Phone | AC106: Date In Service
A107: File Name | D107: Employment Access | L107: Provide scaled map showing distance to Employment Center. | AF107: Uploaded to HCD?
A108: Entity Name | U108: Responsible jurisdiction
A109: Site Address | V109: City | AC109: State | AH109: Zip
A110: Contact | M110: Title | T110: Phone | AC110: Date In Service
A111: (4) The QIP is within what distance from a locally recognized Retail Center §302(dd) with at least 50 full-time employees - 3 or 5 points. | AK111: =IF(AND($AI$96="Yes",OR(AG111="Within 1 mile",AG111="Within 2 miles")),5,IF(AND($AI$96="Yes",AG111="Within 4 miles"),3,IF(AND(OR($AI$96="",$AI$96="No"),AG111="Within 1 mile"),5,IF(AND(OR($AI$96="",$AI$96="No"),AG111="Within 2 miles"),3,0)))) -> 0
A112: File Name | D112: Retail Access | L112: Provide scaled map certified showing distances to Retail Center. | AF112: Uploaded to HCD?
A113: (5) The QIP is within what distance from a public school or community college that residents of the QIP may attend - 3 or 5 points. | AK113: =IF(AND($AI$96="Yes",OR(AG113="Within 1/4 mile",AG113="Within 1/2 mile")),5,IF(AND($AI$96="Yes",AG113="Within 1 mile"),3,IF(AND(OR($AI$96="",$AI$96="No"),AG113="Within 1/4 mile"),5,IF(AND(OR($AI$96="",$AI$96="No"),AG113="Within 1/2 mile"),3,0)))) -> 0
A114: Entity name | U114: Responsible jurisdiction
A115: Site address | V115: City | AC115: State | AH115: Zip
A116: Contact | M116: Title | T116: Phone | AC116: Date in service
A117: File Name | D117: Education Access | L117: Provide scaled map showing distances to public school/college. | AF117: Uploaded to HCD?
A118: (6) The QIP is within what distance from a social service facility that operates to serve residents of the QIP? - 3 or 5 points | AK118: =IF(AG118="Within 1/2 mile",5,IF(AG118="Within 1 mile",3,0)) -> 0
A119: Entity name | U119: Responsible jurisdiction
A120: Site address | V120: City | AC120: State | AH120: Zip
A121: Contact | M121: Title | T121: Phone | AC121: Date in service
A122: File Name | D122: Social Service Access | L122: Provide scaled map showing distances to social service facility. | AF122: Uploaded to HCD?
A123: Consistency with Regional Plans §310(f) - 10 Points Max
A124: Points awarded for each of the following | AK124: =MIN(10,AK125+AK126+AK127) -> 0
A125: (A) | B125: Does QIA support the implementation of a sustainable communities strategy or alternative planning strategy that has been determined by the California Air Resources Board to achieve the region's greenhouse gas emissions target. Consistency with such plans must be demonstrated by a letter or resolution executed by an officer, or an equivalent representative from the metropolitan planning organization, regional transportation agency, planning, or local transportation commission - 5 points | AK125: =IF(AI125="Yes",5,0) -> 0
A126: (B) | B126: If a sustainable communities strategy is not required for a region by law, and if the QIA supports a regional plan that includes policies and programs to reduce greenhouse gas emissions. Evidence of consistency with such plans must be demonstrated by a letter or resolution executed by an officer of, or an equivalent representative from the metropolitan planning organization or regional transportation planning agency or local transportation commission. - 5 points | AK126: =IF(AI126="Yes",5,0) -> 0
A127: (C) | B127: Not less than 50% of land area is within a Transit Priority Area evidenced by a letter or resolution executed by an officer of, or an equivalent representative from the metropolitan planning organization, regional transportation planning agency, or local transportation commission - 5 points | AK127: =IF(AI127="Yes",5,0) -> 0
A128: File Name | D128: QIA Consistency | L128: Letters or resolutions from the local council of government, metropolitan planning organization or regional transportation planning agency confirming points above. | AF128: Uploaded to HCD?
A129: Tie Breaker §307(b)(3); NOFA
A130: In the event two or more applications have the same rating and ranking scores, HCD will apply tie breaking criteria outlined in the NOFA. | AF130: Application due date | AK130: 2021-07-12
A131: (1) 10 bonus points to the QIA having the lowest ratio between the requested grant amount to the total allowable maximum grant amount per the NOFA. | AI131: Ratio= | AK131: =IF('Max Funds and Unit Mix'!AJ3=0,0,'Max Funds and Unit Mix'!AJ3/'Max Funds and Unit Mix'!AD3) -> 0
A132: (2) If tie still exists, 3 points to the QIA for each prior awarded QIP developed by the Applicant that has received a Certificate of Occupancy by the application deadline.
A133: Development Name: | U133: IIG prior NOFA Date | AB133: Cert. of Occup Date: | AJ133: =IF(AND(AG133<>"",AG133<=$AK$130),1,0) -> 0 | AK133: =SUM(AJ133:AJ138)*3 -> 0
A134: Development Name: | U134: IIG prior NOFA Date | AB134: Cert. of Occup Date: | AJ134: =IF(AND(AG134<>"",AG134<=$AK$130),1,0) -> 0
A135: Development Name: | U135: IIG prior NOFA Date | AB135: Cert. of Occup Date: | AJ135: 0
A136: Development Name: | U136: IIG prior NOFA Date | AB136: Cert. of Occup Date: | AJ136: =IF(AND(AG136<>"",AG136<=$AK$130),1,0) -> 0
A137: Development Name: | U137: IIG prior NOFA Date | AB137: Cert. of Occup Date: | AJ137: 0
A138: Development Name: | U138: IIG prior NOFA Date | AB138: Cert. of Occup Date: | AJ138: 0

Sheet Certification & Legal
A1: Certification & Legal Disclosure | AK1: ='IIG Coverpage'!B11 -> 2021-06-21
A2: On behalf of the entity identified in the signature block below, I certify that:
A3: 1. The information, statements and attachments included in this application are, to the best of my knowledge and belief, true and correct.
A4: 2. I possess the legal authority to submit this application on behalf of the entity identified in the signature block.
A5: 3. The following is a complete disclosure of all identities of interest - of all persons or entities, including affiliates, that will provide goods or services to the Project either (a) in one or more capacity or (b) that qualify as a "Related Party" to any person or entity that will provide goods or services to the Project. "Related Party" is defined in Section 10302 of the California Code of Regulations (CTCAC Regulations):
A7: 4. As of the date of application, the Project, or the real property on which the Project is proposed (Property) is not party to or the subject of any claim or action at the State or Federal appellate level.
A8: 5. I have disclosed and described below any claim or action undertaken which affects or potentially affects the feasibility of the Project.
A9: In addition, I acknowledge that all information in this application and attachments is public, and may be disclosed by the State.
A12: Printed Name | K12: Title of Signatory | U12: Signature | AJ12: Date
A13: Legal Disclosure
A14: For purposes of the following questions, and with the exceptions noted below, the term “applicant” shall include the applicant and joint applicant, and any subsidiary of the applicant or joint applicant if the subsidiary is involved in (for example, as a guarantor) or will be benefited by the application or the project.
A15: In addition to each of these entities themselves, the term “applicant” shall also include the direct and indirect holders of more than ten percent (10%) of the ownership interests in the entity, as well as the officers, directors, principals and senior executives of the entity if the entity is a corporation, the general and limited partners of the entity if the entity is a partnership, and the members or managers of the entity if the entity is a limited liability company. For projects using tax-exempt bonds, it shall also include the individual who will be executing the bond purchase agreement.
A16: The following questions must be responded to for each entity and person qualifying as an "applicant," or "joint applicant" as defined above.
A17: Explain all positive responses on a separate sheet and include with this questionnaire in the application.
A18: Exceptions:
A19: Public entity applicants without an ownership interest in the proposed project, including but not limited to cities, counties, and joint powers authorities with 100 or more members, are not required to respond to this questionnaire.
A20: Members of the boards of directors of non-profit corporations, including officers of the boards, are also not required to respond. However, chief executive officers (Executive Directors, Chief Executive Officers, Presidents or their equivalent) must respond, as must chief financial officers (Treasurers, Chief Financial Officers, or their equivalent).
A21: Civil Matters
A22: 1. Has the applicant filed a bankruptcy or receivership case or had a bankruptcy or receivership action commenced against it, defaulted on a loan or been foreclosed against in past ten years?
A23: 2. Is the applicant currently a party to, or been notified that it may become a party to, any civil litigation that may materially and adversely affect (a) the financial condition of the applicant’s business, or (b) the project that is the subject of the application?
A24: 3. Have there been any administrative or civil settlements, decisions, or judgments against the applicant within the past ten years that materially and adversely affected (a) the financial condition of the applicant’s business, or (b) the project that is the subject of the application?
A25: 4. Is the applicant currently subject to, or been notified that it may become subject to, any civil or administrative proceeding, examination, or investigation by a local, state or federal licensing or accreditation agency, a local, state or federal taxing authority, or a local, state or federal regulatory or enforcement agency?
A26: 5. In the past ten years, has the applicant been subject to any civil or administrative proceeding, examination, or investigation by a local, state or federal licensing or accreditation agency, a local, state or federal taxing authority, or a local, state or federal regulatory or enforcement agency that resulted in a settlement, decision, or judgment?
A27: Criminal Matters
A28: 6. Is the applicant currently a party to, or the subject of, or been notified that it may become a party to or the subject of, any criminal litigation, proceeding, charge, complaint, examination or investigation, of any kind, involving, or that could result in, felony charges against the applicant?
A29: 7. Is the applicant currently a party to, or the subject of, or been notified that it may become a party to or the subject of, any criminal litigation, proceeding, charge, complaint, examination or investigation, of any kind, involving, or that could result in, misdemeanor charges against the applicant for matters relating to the conduct of the applicant’s business?
A30: 8. Is the applicant currently a party to, or the subject of, or been notified that it may become a party to or the subject of, any criminal litigation, proceeding, charge, complaint, examination or investigation, of any kind, involving, or that could result in, criminal charges (whether felony or misdemeanor) against the applicant for any financial or fraud related crime?
A31: 9. Is the applicant currently a party to, or the subject of, or been notified that it may become a party to or the subject of, any criminal litigation, proceeding, charge, complaint, examination or investigation, of any kind, that could materially affect the financial condition of the applicant’s business?
A32: 10. Within the past ten years, has the applicant been convicted of any felony?
A33: 11. Within the past ten years, has the applicant been convicted of any misdemeanor related to the conduct of the applicant’s business?
A34: 12. Within the past ten years, has the applicant been convicted of any misdemeanor for any financial or fraud related crime?
A35: Please provide a letter of explanation if you responded "Yes" to any of the questions above.
A36: File Name: | D36: Cert & Legal Explanation | L36: Letter of explanation for any "Yes" answers or red shaded items above. | AF36: Uploaded to HCD?
A39: Printed Name | K39: Title of Signatory | U39: Signature | AJ39: Date

Sheet Application Support
A1: Application Development Team (ADT) Support Form | AW1: IIG Coverpage
A2: Please complete the "yellow" cells in the form below and email a copy to: AppSupport@hcd.ca.gov. A member of the Application Development Team will respond to your request within ASAP. | AW2: Overview
A3: Full Name: | W3: Date Requested: | AE3: Application Version Date: | AW3: Narrative
A4: Organization: | P4: Email: | AC4: Contact Phone: | AW4: Max Funds and Unit Mix
A5: Justification: | AW5: Eligibility and Threshold
A6: Issue # | C6: Program Name & Round | F6: Tab | J6: Section | P6: Cell# | R6: Update/Comment | AD6: Urgency | AG6: ADT Status | AJ6: Status Date | AM6: Requestor | AN6: Email | AO6: Phone | AP6: App Version | AW6: Dev Sources
A7: 1 | C7: IIG | AM7: =IF(C7="","",$D$3) -> 0 | AN7: =IF(C7="","",$R$4) -> 0 | AO7: =IF(C7="","",$AG$4) -> 0 | AP7: =IF(C7="","",$AI$3) -> 00:00:00 | AW7: Dev Budget
A8: 2 | C8: IIG | AM8: 0 | AN8: 0 | AO8: =IF(C8="","",$AG$4) -> 0 | AP8: =IF(C8="","",$AI$3) -> 00:00:00 | AW8: Operating
A9: 3 | C9: IIG | AM9: 0 | AN9: 0 | AO9: =IF(C9="","",$AG$4) -> 0 | AP9: =IF(C9="","",$AI$3) -> 00:00:00 | AW9: Cash Flow
A10: 4 | C10: IIG | AM10: 0 | AN10: 0 | AO10: =IF(C10="","",$AG$4) -> 0 | AP10: =IF(C10="","",$AI$3) -> 00:00:00 | AW10: Env & Land Use Verification
A11: 5 | C11: IIG | AM11: 0 | AN11: 0 | AO11: =IF(C11="","",$AG$4) -> 0 | AP11: =IF(C11="","",$AI$3) -> 00:00:00 | AW11: QIP Scoring
A12: 6 | C12: IIG | AM12: 0 | AN12: 0 | AO12: 0 | AP12: 00:00:00 | AW12: QIA Scoring
A13: 7 | C13: IIG | AM13: 0 | AN13: 0 | AO13: 0 | AP13: 00:00:00
A14: 8 | C14: IIG | AM14: 0 | AN14: 0 | AO14: 0 | AP14: 00:00:00
A15: 9 | C15: IIG | AM15: 0 | AN15: 0 | AO15: 0 | AP15: 00:00:00
A16: 10 | C16: IIG | AM16: 0 | AN16: 0 | AO16: 0 | AP16: 00:00:00
A17: 11 | C17: IIG | AM17: 0 | AN17: 0 | AO17: 0 | AP17: 00:00:00
A18: 12 | C18: IIG | AM18: 0 | AN18: 0 | AO18: 0 | AP18: 00:00:00
A19: 13 | C19: IIG | AM19: 0 | AN19: 0 | AO19: 0 | AP19: 00:00:00
A20: 14 | C20: IIG | AM20: 0 | AN20: 0 | AO20: 0 | AP20: 00:00:00
A21: 15 | C21: IIG | AM21: 0 | AN21: 0 | AO21: 0 | AP21: 00:00:00
A22: 16 | C22: IIG | AM22: 0 | AN22: 0 | AO22: 0 | AP22: 00:00:00
A23: 17 | C23: IIG | AM23: 0 | AN23: 0 | AO23: 0 | AP23: 00:00:00
A24: 18 | C24: IIG | AM24: 0 | AN24: 0 | AO24: 0 | AP24: 00:00:00
A25: 19 | C25: IIG | AM25: 0 | AN25: 0 | AO25: 0 | AP25: 00:00:00
A26: 20 | C26: IIG | AM26: 0 | AN26: 0 | AO26: 0 | AP26: 00:00:00
A27: 21 | C27: IIG | AM27: 0 | AN27: 0 | AO27: 0 | AP27: 00:00:00
A28: 22 | C28: IIG | AM28: 0 | AN28: 0 | AO28: 0 | AP28: 00:00:00
A29: 23 | C29: IIG | AM29: 0 | AN29: 0 | AO29: 0 | AP29: 00:00:00
A30: 24 | C30: IIG | AM30: 0 | AN30: 0 | AO30: 0 | AP30: 00:00:00
A31: 25 | C31: IIG | AM31: 0 | AN31: 0 | AO31: 0 | AP31: 00:00:00

Sheet Upload Checklists
A1: =CONCATENATE(Overview!D5," IIG 2021 Upload Document Checklist") -> IIG 2021 Upload Document Checklist | AK1: ='IIG Coverpage'!B11 -> 2021-06-21
A2: File Name: | E2: Site Plan | L2: =Overview!L14 -> §308(a)(1) Provide documentation of compliance with certified by a California State-licensed professional such as an engineer, surveyor, or landscape architect. | AG2: File uploaded? | AK2: =Overview!AK14 -> 0
A3: File Name: | E3: App1 Cert of BIPOC | L3: See Applicant Documents worksheet. | AG3: File uploaded? | AK3: =Overview!AK78 -> 0
A4: File Name: | E4: App2 Cert of BIPOC | L4: See Applicant Documents worksheet. | AG4: File uploaded? | AK4: =Overview!AK94 -> 0
A5: File Name: | E5: App1 Cert & Legal | L5: Certification & Legal Disclosure | AG5: File uploaded? | AK5: =Overview!AK79 -> 0
A6: File Name: | E6: App2 Cert & Legal | L6: Certification & Legal Disclosure | AG6: File uploaded? | AK6: =Overview!AK95 -> 0
A7: File Name: | E7: App1 Reso | L7: Resolution | AG7: File uploaded? | AK7: =Overview!AK80 -> 0
A8: File Name: | E8: App2 Reso | L8: Resolution | AG8: File uploaded? | AK8: =Overview!AK96 -> 0
A9: File Name: | E9: App1 OrgChart | L9: Organizational Chart | AG9: File uploaded? | AK9: =Overview!AK82 -> 0
A10: File Name: | E10: App2 OrgChart | L10: Organizational Chart | AG10: File uploaded? | AK10: =Overview!AK98 -> 0
A11: File Name: | E11: App1 Org1, App1 Org2, etc. | L11: Organizational Documents | AG11: File uploaded? | AK11: =Overview!AK81 -> 0
A12: File Name: | E12: App2 Org1, App2 Org2, etc. | L12: Organizational Documents | AG12: File uploaded? | AK12: =Overview!AK98 -> 0
A13: File Name: | E13: App1 Signature | L13: Signature Block (Upload in Microsoft Word Document) | AG13: File uploaded? | AK13: =Overview!AK83 -> 0
A14: File Name: | E14: App2 Signature | L14: Signature Block (Upload in Microsoft Word Document) | AG14: File uploaded? | AK14: =Overview!AK99 -> 0
A15: File Name: | E15: App1 Payee Data or TIN | L15: Payee Data Record STD-204 or Taxpayer Identification Number (TIN) | AG15: File uploaded? | AK15: =Overview!AK84 -> 0
A16: File Name: | E16: App2 Payee Data or TIN | L16: Payee Data Record STD-204 or Taxpayer Identification Number (TIN) | AG16: File uploaded? | AK16: =Overview!AK100 -> 0
A17: File Name: | E17: Utility Allowance | L17: Local housing authority document showing current utility allowance chart, with relevant components circled. | AG17: File uploaded? | AK17: ='Max Funds and Unit Mix'!AL34 -> 0
A18: File Name: | E18: Rural Status | L18: TCAC Method for determining Rural status. | AG18: File uploaded? | AK18: ='Max Funds and Unit Mix'!AL99 -> 0
A19: File Name: | E19: CIP Integral to QIP | L19: Applicant narrative and documentation evidencing the Locality requiring the CIP. | AG19: File uploaded? | AK19: ='Eligibility and Threshold'!AK4 -> 0
A20: File Name: | E20: Urban Area | L20: Provide documentation of location in an Urbanized Area. | AG20: File uploaded? | AK20: ='Eligibility and Threshold'!AK6 -> 0
A21: File Name: | E21: Replacement Housing Plan | L21: Provide the Replacement Housing Plan if there will be replacement units | AG21: File uploaded? | AK21: ='Eligibility and Threshold'!AK13 -> 0
A22: File Name: | E22: Development Agreement | L22: Agreement executed prior to August 24, 2007 that contains affordability covenants. | AG22: File uploaded? | AK22: ='Eligibility and Threshold'!AK15 -> 0
A23: File Name: | E23: Relevant Development Plan | L23: Provide, label and attach a copy of the relevant plan showing area designation. | AG23: File uploaded? | AK23: ='Eligibility and Threshold'!AK27 -> 0
A24: File Name: | E24: Net Density Verification | L24: Provide a minimum density ordinance, recorded binding covenant or date stamped map and letter certified by a California State-licensed professional such as an engineer, surveyor or landscape architect confirming the Net Density. | AG24: File uploaded? | AK24: ='Eligibility and Threshold'!AK29 -> 0
A25: File Name: | E25: Construction exception | L25: If applicable, label and attach agreement requiring AUs be built as a local approval condition. | AG25: File uploaded? | AK25: ='Eligibility and Threshold'!AK33 -> 0
A26: File Name: | E26: CIP Site Control | L26: Appropriate documentation to demonstrate the form of Site Control indicated above. | AG26: Files uploaded? | AK26: ='Eligibility and Threshold'!AK49 -> 0
A27: File Name: | E27: QIP Relocation Plan | L27: Applicants must provide a Relocation Plan or documentation supporting no relocation. | AG27: File uploaded? | AK27: ='Eligibility and Threshold'!AK52 -> 0
A28: File Name: | E28: Fair Housing Self-Certification | L28: Must provide a self-certification document that is acceptable to HCD certifying that the Occupancy restrictions will be carried out in a manner that is consistent with federal fair housing laws. | AG28: File uploaded? | AK28: ='Eligibility and Threshold'!AK54 -> 0
A29: File Name: | E29: Market Study | L29: Applicants must provide a completed market study prepared within one year of the application due date. | AG29: File uploaded? | AK29: ='Eligibility and Threshold'!AK57 -> 0
A30: File Name: | E30: Tax Credit Reservation | L30: If Project has already received a tax credit reservation, attach documentation. | AG30: File uploaded? | AK30: ='Eligibility and Threshold'!AK65 -> 0
A31: File Name: | E31: Auth to Use Grant Funds | L31: For NEPA only, provide a copy of the HUD 7015.16 "Authority To Use Grant Funds" or clarify the current status of the issuance of the HUD form. | AG31: File uploaded? | AK31: ='Env & Land Use Verification'!AK2 -> 0
A32: File Name: | E32: Environmental | L32: Provide a copy of all environmental clearances or Notice of Exemption. | AG32: File uploaded? | AK32: ='Env & Land Use Verification'!AK3 -> 0
A33: QIP Scoring Docs
A34: File Name: | E34: E&L Use | L34: Provide signed copies of Verification of Environmental Review & Land Use Entitlements (Env & Land Use Verification worksheet). Identify name of Locality at beginning of document. | AG34: File uploaded? | AK34: ='QIP Scoring'!AK4 -> 0
A35: File Name: | E35: Perm EFC #1, #2, etc | L35: Proof(s) of permanent financing, see §302(l) | AG35: File uploaded? | AK35: ='QIP Scoring'!AK28 -> 0
A36: File Name: | E36: Local EFC #1, #2, etc | L36: Proof(s) of local support, see §309(a)(4)(B) | AG36: File uploaded? | AK36: ='QIP Scoring'!AK32 -> 0
A37: File Name: | E37: Transit Access | L37: Provide scaled map showing Transit Stations or Major Transit Stops and Walkable Routes. | AG37: File uploaded? | AK37: ='QIP Scoring'!AK53 -> 0
A38: File Name: | E38: TCAC Opportunity Map | L38: Provide 'TCAC/HCD Opportunity Area Map' showing QIP is located in an area of high segregation and poverty or low resource opportunity area. | AG38: File uploaded? | AK38: ='QIP Scoring'!AK54 -> 0
A39: File Name: | E39: Transit Schedule | L39: Transit service schedule publicly posted between January 2020 and date of application. | AG39: File uploaded? | AK39: ='QIP Scoring'!AK55 -> 0
A40: File Name: | E40: Park Access | L40: Provide scaled map showing distance to Park. | AG40: File uploaded? | AK40: ='QIP Scoring'!AK63 -> 0
A41: File Name: | E41: Employment Access | L41: Provide scaled map showing distance to Employment Center. | AG41: File uploaded? | AK41: ='QIP Scoring'!AK68 -> 0
A42: File Name: | E42: Retail Access | L42: Provide scaled map certified showing distances to Retail Center. | AG42: File uploaded? | AK42: ='QIP Scoring'!AK73 -> 0
A43: File Name: | E43: Education | L43: Provide scaled map showing distances to public school/college. | AG43: File uploaded? | AK43: ='QIP Scoring'!AK78 -> 0
A44: File Name: | E44: SPN or SH | L44: Provide scaled map showing distances to social service facility. | AG44: File uploaded? | AK44: ='QIP Scoring'!AK83 -> 0
A45: File Name: | E45: QIP Consistency | L45: Submit letters or resolutions from the local council of government, metropolitan planning organization or regional transportation planning agency confirming points above. | AG45: File uploaded? | AK45: ='QIP Scoring'!AK89 -> 0
A46: QIA Scoring Docs
A47: File Name: | E47: E&L Use | L47: Provide signed copies of Verification of Environmental Review & Land Use Entitlements (Env & Land Use Verification worksheet). Identify name of Locality at beginning of document. | AG47: File uploaded? | AK47: ='QIA Scoring'!AK4 -> 0
A48: File Name: | E48: Perm EFC #1, #2, etc | L48: Proof(s) of permanent financing, see §302(l) | AG48: File uploaded? | AK48: ='QIA Scoring'!AK67 -> 0
A49: File Name: | E49: Local EFC #1, #2, etc | L49: Proof(s) of local support, see §310(a)(5)(B) | AG49: File uploaded? | AK49: ='QIA Scoring'!AK71 -> 0
A50: File Name: | E50: Transit Access | L50: Provide scaled map showing Transit Stations or Major Transit Stops and Walkable Routes. | AG50: File uploaded? | AK50: ='QIA Scoring'!AK92 -> 0
A51: File Name: | E51: TCAC Opportunity Map | L51: Provide 'TCAC/HCD Opportunity Area Map' showing QIP is located in an area of high segregation and poverty or low resource opportunity area. | AG51: File uploaded? | AK51: ='QIA Scoring'!AK93 -> 0
A52: File Name: | E52: Transit Schedule | L52: Transit service schedule publicly posted between January 2020 and date of application. | AG52: File uploaded? | AK52: ='QIA Scoring'!AK94 -> 0
A53: File Name: | E53: Park Access | L53: Provide scaled map showing distance to Park. | AG53: File uploaded? | AK53: ='QIA Scoring'!AK102 -> 0
A54: File Name: | E54: Employment Access | L54: Provide scaled map showing distance to Employment Center. | AG54: File uploaded? | AK54: ='QIA Scoring'!AK107 -> 0
A55: File Name: | E55: Retail Access | L55: Provide scaled map certified showing distances to Retail Center. | AG55: File uploaded? | AK55: ='QIA Scoring'!AK112 -> 0
A56: File Name: | E56: Education | L56: Provide scaled map showing distances to public school/college. | AG56: File uploaded? | AK56: ='QIA Scoring'!AK117 -> 0
A57: File Name: | E57: SPN or SH | L57: Provide scaled map showing distances to social service facility. | AG57: File uploaded? | AK57: ='QIA Scoring'!AK122 -> 0
A58: File Name: | E58: QIA Consistency | L58: Letters or resolutions from the local council of government, metropolitan planning organization or regional transportation planning agency confirming points above. | AG58: File uploaded? | AK58: ='QIA Scoring'!AK128 -> 0

Sheet Unit Des Table (hidden)
A1: Rental | B1: Homeowner
A2: none | B2: none
A3: 60% AMI | B3: 200%+ FMR
A4: 55% AMI | B4: > CalHFA Sales Price
A5: 50% AMI | B5: HO Moderate
A6: 45% AMI | B6: HO Lower
A7: 40% AMI
A8: 35% AMI
A9: 30% AMI
A10: 25% AMI
A11: 20% AMI
A12: 15% AMI
A13: 70% AMI
A14: 80% AMI
A15: 90% AMI
A16: 100% AMI
A17: 110% AMI
A18: 120% AMI

Sheet Rent Limits (hidden)
A1: County | B1: County | C1: 1 Person | D1: 2 Person | E1: 3 Person | F1: 4 Person | G1: 5 Person | H1: 6 Person | I1: 7 Person | J1: 8 Person | K1: 0 | L1: 1 | M1: 2 | N1: 3 | O1: 4 | P1: 5 | S1: county_name | T1: lim50_21p1 | U1: lim50_21p2 | V1: lim50_21p3 | W1: lim50_21p4 | X1: lim50_21p5 | Y1: lim50_21p6 | Z1: lim50_21p7 | AA1: lim50_21p8
A2: Alameda | B2: Alameda15% AMI | C2: =C9*2*0.15 -> 14385 | D2: =D9*2*0.15 -> 16440 | E2: =E9*2*0.15 -> 18495 | F2: =F9*2*0.15 -> 20550 | G2: =G9*2*0.15 -> 22200 | H2: =H9*2*0.15 -> 23850 | I2: 25485 | J2: 27135 | K2: =TRUNC(C2/12*0.3) -> 359 | L2: =TRUNC((C2+D2)/2/12*0.3) -> 385 | M2: =TRUNC((E2)/12*0.3) -> 462 | N2: =TRUNC(((F2+G2)/2)/12*0.3) -> 534 | O2: =TRUNC(H2/12*0.3) -> 596 | P2: =TRUNC(((I2+J2)/2)/12*0.3) -> 657 | S2: Alameda | T2: 47950 | U2: 54800 | V2: 61650 | W2: 68500 | X2: 74000 | Y2: 79500 | Z2: 84950 | AA2: 90450
A3: Alameda | B3: Alameda20% AMI | C3: =C9*2*0.2 -> 19180 | D3: =D9*2*0.2 -> 21920 | E3: 24660 | F3: 27400 | G3: 29600 | H3: 31800 | I3: 33980 | J3: 36180 | K3: 479 | L3: 513 | M3: 616 | N3: 712 | O3: 795 | P3: 877 | S3: Alpine | T3: 28450 | U3: 32500 | V3: 36550 | W3: 40600 | X3: 43850 | Y3: 47100 | Z3: 50350 | AA3: 53600
A4: Alameda | B4: Alameda25% AMI | C4: =C9*2*0.25 -> 23975 | D4: =D9*2*0.25 -> 27400 | E4: 30825 | F4: 34250 | G4: 37000 | H4: 39750 | I4: 42475 | J4: 45225 | K4: 599 | L4: 642 | M4: 770 | N4: 890 | O4: 993 | P4: 1096 | S4: Amador | T4: 27300 | U4: 31200 | V4: 35100 | W4: 38950 | X4: 42100 | Y4: 45200 | Z4: 48300 | AA4: 51450
A5: Alameda | B5: Alameda30% AMI | C5: =C9*2*0.3 -> 28770 | D5: =D9*2*0.3 -> 32880 | E5: 36990 | F5: 41100 | G5: 44400 | H5: 47700 | I5: 50970 | J5: 54270 | K5: 719 | L5: 770 | M5: 924 | N5: 1068 | O5: 1192 | P5: 1315 | S5: Butte | T5: 24400 | U5: 27900 | V5: 31400 | W5: 34850 | X5: 37650 | Y5: 40450 | Z5: 43250 | AA5: 46050
A6: Alameda | B6: Alameda35% AMI | C6: =C9*2*0.35 -> 33565 | D6: =D9*2*0.35 -> 38360 | E6: 43155 | F6: 47950 | G6: 51800 | H6: 55650 | I6: 59465 | J6: 63315 | K6: 839 | L6: 899 | M6: 1078 | N6: 1246 | O6: 1391 | P6: 1534 | S6: Calaveras | T6: 28600 | U6: 32700 | V6: 36800 | W6: 40850 | X6: 44150 | Y6: 47400 | Z6: 50700 | AA6: 53950
A7: Alameda | B7: Alameda40% AMI | C7: =C9*2*0.4 -> 38360 | D7: =D9*2*0.4 -> 43840 | E7: 49320 | F7: 54800 | G7: 59200 | H7: 63600 | I7: 67960 | J7: 72360 | K7: 959 | L7: 1027 | M7: 1233 | N7: 1425 | O7: 1590 | P7: 1754 | S7: Colusa | T7: 24400 | U7: 27900 | V7: 31400 | W7: 34850 | X7: 37650 | Y7: 40450 | Z7: 43250 | AA7: 46050
A8: Alameda | B8: Alameda45% AMI | C8: =C9*2*0.45 -> 43155 | D8: =D9*2*0.45 -> 49320 | E8: 55485 | F8: 61650 | G8: 66600 | H8: 71550 | I8: 76455 | J8: 81405 | K8: 1078 | L8: 1155 | M8: 1387 | N8: 1603 | O8: 1788 | P8: 1973 | S8: Contra Costa | T8: 47950 | U8: 54800 | V8: 61650 | W8: 68500 | X8: 74000 | Y8: 79500 | Z8: 84950 | AA8: 90450
A9: Alameda | B9: Alameda50% AMI | C9: =VLOOKUP($A:$A,$S$1:$AA$59,2,FALSE) -> 47950 | D9: =VLOOKUP($A:$A,$S$1:$AA$59,3,FALSE) -> 54800 | E9: =VLOOKUP($A:$A,$S$1:$AA$59,4,FALSE) -> 61650 | F9: =VLOOKUP($A:$A,$S$1:$AA$59,5,FALSE) -> 68500 | G9: =VLOOKUP($A:$A,$S$1:$AA$59,6,FALSE) -> 74000 | H9: =VLOOKUP($A:$A,$S$1:$AA$59,7,FALSE) -> 79500 | I9: =VLOOKUP($A:$A,$S$1:$AA$59,8,FALSE) -> 84950 | J9: =VLOOKUP($A:$A,$S$1:$AA$59,9,FALSE) -> 90450 | K9: =TRUNC(C9/12*0.3) -> 1198 | L9: =TRUNC((C9+D9)/2/12*0.3) -> 1284 | M9: =TRUNC((E9)/12*0.3) -> 1541 | N9: =TRUNC(((F9+G9)/2)/12*0.3) -> 1781 | O9: =TRUNC(H9/12*0.3) -> 1987 | P9: =TRUNC(((I9+J9)/2)/12*0.3) -> 2192 | S9: Del Norte | T9: 24400 | U9: 27900 | V9: 31400 | W9: 34850 | X9: 37650 | Y9: 40450 | Z9: 43250 | AA9: 46050
A10: Alameda | B10: Alameda55% AMI | C10: =C9*2*0.55 -> 52745 | D10: =D9*2*0.55 -> 60280 | E10: 67815 | F10: 75350 | G10: 81400 | H10: 87450 | I10: 93445 | J10: 99495 | K10: =TRUNC(C10/12*0.3) -> 1318 | L10: =TRUNC((C10+D10)/2/12*0.3) -> 1412 | M10: =TRUNC((E10)/12*0.3) -> 1695 | N10: =TRUNC(((F10+G10)/2)/12*0.3) -> 1959 | O10: =TRUNC(H10/12*0.3) -> 2186 | P10: =TRUNC(((I10+J10)/2)/12*0.3) -> 2411 | S10: El Dorado | T10: 31750 | U10: 36250 | V10: 40800 | W10: 45300 | X10: 48950 | Y10: 52550 | Z10: 56200 | AA10: 59800
A11: Alameda | B11: Alameda60% AMI | C11: =C9*2*0.6 -> 57540 | D11: =D9*2*0.6 -> 65760 | E11: 73980 | F11: 82200 | G11: 88800 | H11: 95400 | I11: 101940 | J11: 108540 | K11: 1438 | L11: 1541 | M11: 1849 | N11: 2137 | O11: 2385 | P11: 2631 | S11: Fresno | T11: 24400 | U11: 27900 | V11: 31400 | W11: 34850 | X11: 37650 | Y11: 40450 | Z11: 43250 | AA11: 46050
A12: Alameda | B12: Alameda65% AMI | C12: =C9*2*0.65 -> 62335 | D12: =D9*2*0.65 -> 71240 | E12: 80145 | F12: 89050 | G12: 96200 | H12: 103350 | I12: 110435 | J12: 117585 | K12: 1558 | L12: 1669 | M12: 2003 | N12: 2315 | O12: 2583 | P12: 2850 | S12: Glenn | T12: 24400 | U12: 27900 | V12: 31400 | W12: 34850 | X12: 37650 | Y12: 40450 | Z12: 43250 | AA12: 46050
A13: Alameda | B13: Alameda70% AMI | C13: =C9*2*0.7 -> 67130 | D13: =D9*2*0.7 -> 76720 | E13: 86310 | F13: 95900 | G13: 103600 | H13: 111300 | I13: 118930 | J13: 126630 | K13: 1678 | L13: 1798 | M13: 2157 | N13: 2493 | O13: 2782 | P13: 3069 | S13: Humboldt | T13: 24400 | U13: 27900 | V13: 31400 | W13: 34850 | X13: 37650 | Y13: 40450 | Z13: 43250 | AA13: 46050
A14: Alameda | B14: Alameda75% AMI | C14: =C9*2*0.75 -> 71925 | D14: =D9*2*0.75 -> 82200 | E14: 92475 | F14: 102750 | G14: 111000 | H14: 119250 | I14: 127425 | J14: 135675 | K14: 1798 | L14: 1926 | M14: 2311 | N14: 2671 | O14: 2981 | P14: 3288 | S14: Imperial | T14: 24400 | U14: 27900 | V14: 31400 | W14: 34850 | X14: 37650 | Y14: 40450 | Z14: 43250 | AA14: 46050
A15: Alameda | B15: Alameda80% AMI | C15: =C9*2*0.8 -> 76720 | D15: =D9*2*0.8 -> 87680 | E15: 98640 | F15: 109600 | G15: 118400 | H15: 127200 | I15: 135920 | J15: 144720 | K15: 1918 | L15: 2055 | M15: 2466 | N15: 2850 | O15: 3180 | P15: 3508 | S15: Inyo | T15: 25950 | U15: 29650 | V15: 33350 | W15: 37050 | X15: 40050 | Y15: 43000 | Z15: 45950 | AA15: 48950
A16: Alameda | B16: Alameda90% AMI | C16: =C9*2*0.9 -> 86310 | D16: =D9*2*0.9 -> 98640 | E16: 110970 | F16: 123300 | G16: 133200 | H16: 143100 | I16: 152910 | J16: 162810 | K16: 2157 | L16: 2311 | M16: 2774 | N16: 3206 | O16: 3577 | P16: 3946 | S16: Kern | T16: 24400 | U16: 27900 | V16: 31400 | W16: 34850 | X16: 37650 | Y16: 40450 | Z16: 43250 | AA16: 46050
A17: Alameda | B17: Alameda100% AMI | C17: =C9*2 -> 95900 | D17: =D9*2 -> 109600 | E17: 123300 | F17: 137000 | G17: 148000 | H17: 159000 | I17: 169900 | J17: 180900 | K17: =K9*2 -> 2396 | L17: =L9*2 -> 2568 | M17: 3082 | N17: 3562 | O17: 3974 | P17: 4384 | S17: Kings | T17: 24400 | U17: 27900 | V17: 31400 | W17: 34850 | X17: 37650 | Y17: 40450 | Z17: 43250 | AA17: 46050
A18: Alameda | B18: Alameda110% AMI | C18: =C9*2*1.1 -> 105490 | D18: =D9*2*1.1 -> 120560 | E18: 135630 | F18: 150700 | G18: 162800 | H18: 174900 | I18: 186890 | J18: 198990 | K18: 2637 | L18: 2825 | M18: 3390 | N18: 3918 | O18: 4372 | P18: 4823 | S18: Lake | T18: 24400 | U18: 27900 | V18: 31400 | W18: 34850 | X18: 37650 | Y18: 40450 | Z18: 43250 | AA18: 46050
A19: Alameda | B19: Alameda120% AMI | C19: =C9*2*1.2 -> 115080 | D19: =D9*2*1.2 -> 131520 | E19: 147960 | F19: 164400 | G19: 177600 | H19: 190800 | I19: 203880 | J19: 217080 | K19: 2877 | L19: 3082 | M19: 3699 | N19: 4275 | O19: 4770 | P19: 5262 | S19: Lassen | T19: 25300 | U19: 28900 | V19: 32500 | W19: 36100 | X19: 39000 | Y19: 41900 | Z19: 44800 | AA19: 47700
A20: Alpine | B20: Alpine15% AMI | C20: =C27*2*0.15 -> 8535 | D20: =D27*2*0.15 -> 9750 | E20: =E27*2*0.15 -> 10965 | F20: =F27*2*0.15 -> 12180 | G20: =G27*2*0.15 -> 13155 | H20: =H27*2*0.15 -> 14130 | I20: 15105 | J20: 16080 | K20: 213 | L20: 228 | M20: 274 | N20: 316 | O20: 353 | P20: 389 | S20: Los Angeles | T20: 41400 | U20: 47300 | V20: 53200 | W20: 59100 | X20: 63850 | Y20: 68600 | Z20: 73300 | AA20: 78050
A21: Alpine | B21: Alpine20% AMI | C21: =C27*2*0.2 -> 11380 | D21: =D27*2*0.2 -> 13000 | E21: 14620 | F21: 16240 | G21: 17540 | H21: 18840 | I21: 20140 | J21: 21440 | K21: 284 | L21: 304 | M21: 365 | N21: 422 | O21: 471 | P21: 519 | S21: Madera | T21: 24400 | U21: 27900 | V21: 31400 | W21: 34850 | X21: 37650 | Y21: 40450 | Z21: 43250 | AA21: 46050
A22: Alpine | B22: Alpine25% AMI | C22: =C27*2*0.25 -> 14225 | D22: =D27*2*0.25 -> 16250 | E22: 18275 | F22: 20300 | G22: 21925 | H22: 23550 | I22: 25175 | J22: 26800 | K22: 355 | L22: 380 | M22: 456 | N22: 527 | O22: 588 | P22: 649 | S22: Marin | T22: 63950 | U22: 73100 | V22: 82250 | W22: 91350 | X22: 98700 | Y22: 106000 | Z22: 113300 | AA22: 120600
A23: Alpine | B23: Alpine30% AMI | C23: =C27*2*0.3 -> 17070 | D23: =D27*2*0.3 -> 19500 | E23: 21930 | F23: 24360 | G23: 26310 | H23: 28260 | I23: 30210 | J23: 32160 | K23: 426 | L23: 457 | M23: 548 | N23: 633 | O23: 706 | P23: 779 | S23: Mariposa | T23: 24400 | U23: 27900 | V23: 31400 | W23: 34850 | X23: 37650 | Y23: 40450 | Z23: 43250 | AA23: 46050
A24: Alpine | B24: Alpine35% AMI | C24: =C27*2*0.35 -> 19915 | D24: =D27*2*0.35 -> 22750 | E24: 25585 | F24: 28420 | G24: 30695 | H24: 32970 | I24: 35245 | J24: 37520 | K24: 497 | L24: 533 | M24: 639 | N24: 738 | O24: 824 | P24: 909 | S24: Mendocino | T24: 25350 | U24: 28950 | V24: 32550 | W24: 36150 | X24: 39050 | Y24: 41950 | Z24: 44850 | AA24: 47750
A25: Alpine | B25: Alpine40% AMI | C25: =C27*2*0.4 -> 22760 | D25: =D27*2*0.4 -> 26000 | E25: 29240 | F25: 32480 | G25: 35080 | H25: 37680 | I25: 40280 | J25: 42880 | K25: 569 | L25: 609 | M25: 731 | N25: 844 | O25: 942 | P25: 1039 | S25: Merced | T25: 24400 | U25: 27900 | V25: 31400 | W25: 34850 | X25: 37650 | Y25: 40450 | Z25: 43250 | AA25: 46050
A26: Alpine | B26: Alpine45% AMI | C26: =C27*2*0.45 -> 25605 | D26: =D27*2*0.45 -> 29250 | E26: 32895 | F26: 36540 | G26: 39465 | H26: 42390 | I26: 45315 | J26: 48240 | K26: 640 | L26: 685 | M26: 822 | N26: 950 | O26: 1059 | P26: 1169 | S26: Modoc | T26: 24400 | U26: 27900 | V26: 31400 | W26: 34850 | X26: 37650 | Y26: 40450 | Z26: 43250 | AA26: 46050
A27: Alpine | B27: Alpine50% AMI | C27: =VLOOKUP($A:$A,$S$1:$AA$59,2,FALSE) -> 28450 | D27: =VLOOKUP($A:$A,$S$1:$AA$59,3,FALSE) -> 32500 | E27: =VLOOKUP($A:$A,$S$1:$AA$59,4,FALSE) -> 36550 | F27: =VLOOKUP($A:$A,$S$1:$AA$59,5,FALSE) -> 40600 | G27: =VLOOKUP($A:$A,$S$1:$AA$59,6,FALSE) -> 43850 | H27: =VLOOKUP($A:$A,$S$1:$AA$59,7,FALSE) -> 47100 | I27: =VLOOKUP($A:$A,$S$1:$AA$59,8,FALSE) -> 50350 | J27: =VLOOKUP($A:$A,$S$1:$AA$59,9,FALSE) -> 53600 | K27: =TRUNC(C27/12*0.3) -> 711 | L27: =TRUNC((C27+D27)/2/12*0.3) -> 761 | M27: =TRUNC((E27)/12*0.3) -> 913 | N27: =TRUNC(((F27+G27)/2)/12*0.3) -> 1055 | O27: =TRUNC(H27/12*0.3) -> 1177 | P27: =TRUNC(((I27+J27)/2)/12*0.3) -> 1299 | S27: Mono | T27: 27650 | U27: 31600 | V27: 35550 | W27: 39450 | X27: 42650 | Y27: 45800 | Z27: 48950 | AA27: 52100
A28: Alpine | B28: Alpine55% AMI | C28: =C27*2*0.55 -> 31295 | D28: =D27*2*0.55 -> 35750 | E28: 40205 | F28: 44660 | G28: 48235 | H28: 51810 | I28: 55385 | J28: 58960 | K28: =TRUNC(C28/12*0.3) -> 782 | L28: =TRUNC((C28+D28)/2/12*0.3) -> 838 | M28: =TRUNC((E28)/12*0.3) -> 1005 | N28: =TRUNC(((F28+G28)/2)/12*0.3) -> 1161 | O28: =TRUNC(H28/12*0.3) -> 1295 | P28: =TRUNC(((I28+J28)/2)/12*0.3) -> 1429 | S28: Monterey | T28: 35600 | U28: 40700 | V28: 45800 | W28: 50850 | X28: 54950 | Y28: 59000 | Z28: 63100 | AA28: 67150
A29: Alpine | B29: Alpine60% AMI | C29: =C27*2*0.6 -> 34140 | D29: =D27*2*0.6 -> 39000 | E29: 43860 | F29: 48720 | G29: 52620 | H29: 56520 | I29: 60420 | J29: 64320 | K29: 853 | L29: 914 | M29: 1096 | N29: 1266 | O29: 1413 | P29: 1559 | S29: Napa | T29: 39800 | U29: 45500 | V29: 51200 | W29: 56850 | X29: 61400 | Y29: 65950 | Z29: 70500 | AA29: 75050
A30: Alpine | B30: Alpine65% AMI | C30: =C27*2*0.65 -> 36985 | D30: =D27*2*0.65 -> 42250 | E30: 47515 | F30: 52780 | G30: 57005 | H30: 61230 | I30: 65455 | J30: 69680 | K30: 924 | L30: 990 | M30: 1187 | N30: 1372 | O30: 1530 | P30: 1689 | S30: Nevada | T30: 31450 | U30: 35950 | V30: 40450 | W30: 44900 | X30: 48500 | Y30: 52100 | Z30: 55700 | AA30: 59300
A31: Alpine | B31: Alpine70% AMI | C31: =C27*2*0.7 -> 39830 | D31: =D27*2*0.7 -> 45500 | E31: 51170 | F31: 56840 | G31: 61390 | H31: 65940 | I31: 70490 | J31: 75040 | K31: 995 | L31: 1066 | M31: 1279 | N31: 1477 | O31: 1648 | P31: 1819 | S31: Orange | T31: 47100 | U31: 53800 | V31: 60550 | W31: 67250 | X31: 72650 | Y31: 78050 | Z31: 83400 | AA31: 88800
A32: Alpine | B32: Alpine75% AMI | C32: =C27*2*0.75 -> 42675 | D32: =D27*2*0.75 -> 48750 | E32: 54825 | F32: 60900 | G32: 65775 | H32: 70650 | I32: 75525 | J32: 80400 | K32: 1066 | L32: 1142 | M32: 1370 | N32: 1583 | O32: 1766 | P32: 1949 | S32: Placer | T32: 31750 | U32: 36250 | V32: 40800 | W32: 45300 | X32: 48950 | Y32: 52550 | Z32: 56200 | AA32: 59800
A33: Alpine | B33: Alpine80% AMI | C33: =C27*2*0.8 -> 45520 | D33: =D27*2*0.8 -> 52000 | E33: 58480 | F33: 64960 | G33: 70160 | H33: 75360 | I33: 80560 | J33: 85760 | K33: 1138 | L33: 1219 | M33: 1462 | N33: 1689 | O33: 1884 | P33: 2079 | S33: Plumas | T33: 25600 | U33: 29250 | V33: 32900 | W33: 36550 | X33: 39500 | Y33: 42400 | Z33: 45350 | AA33: 48250
A34: Alpine | B34: Alpine90% AMI | C34: =C27*2*0.9 -> 51210 | D34: =D27*2*0.9 -> 58500 | E34: 65790 | F34: 73080 | G34: 78930 | H34: 84780 | I34: 90630 | J34: 96480 | K34: 1280 | L34: 1371 | M34: 1644 | N34: 1900 | O34: 2119 | P34: 2338 | S34: Riverside | T34: 27650 | U34: 31600 | V34: 35550 | W34: 39500 | X34: 42700 | Y34: 45850 | Z34: 49000 | AA34: 52150
A35: Alpine | B35: Alpine100% AMI | C35: =C27*2 -> 56900 | D35: =D27*2 -> 65000 | E35: 73100 | F35: 81200 | G35: 87700 | H35: 94200 | I35: 100700 | J35: 107200 | K35: =K27*2 -> 1422 | L35: =L27*2 -> 1522 | M35: 1826 | N35: 2110 | O35: 2354 | P35: 2598 | S35: Sacramento | T35: 31750 | U35: 36250 | V35: 40800 | W35: 45300 | X35: 48950 | Y35: 52550 | Z35: 56200 | AA35: 59800
A36: Alpine | B36: Alpine110% AMI | C36: =C27*2*1.1 -> 62590 | D36: =D27*2*1.1 -> 71500 | E36: 80410 | F36: 89320 | G36: 96470 | H36: 103620 | I36: 110770 | J36: 117920 | K36: =TRUNC(C36/12*0.3) -> 1564 | L36: =TRUNC((C36+D36)/2/12*0.3) -> 1676 | M36: =TRUNC((E36)/12*0.3) -> 2010 | N36: =TRUNC(((F36+G36)/2)/12*0.3) -> 2322 | O36: =TRUNC(H36/12*0.3) -> 2590 | P36: =TRUNC(((I36+J36)/2)/12*0.3) -> 2858 | S36: San Benito | T36: 34200 | U36: 39050 | V36: 43950 | W36: 48800 | X36: 52750 | Y36: 56650 | Z36: 60550 | AA36: 64450
A37: Alpine | B37: Alpine120% AMI | C37: =C27*2*1.2 -> 68280 | D37: =D27*2*1.2 -> 78000 | E37: 87720 | F37: 97440 | G37: 105240 | H37: 113040 | I37: 120840 | J37: 128640 | K37: 1707 | L37: 1828 | M37: 2193 | N37: 2533 | O37: 2826 | P37: 3118 | S37: San Bernardino | T37: 27650 | U37: 31600 | V37: 35550 | W37: 39500 | X37: 42700 | Y37: 45850 | Z37: 49000 | AA37: 52150
A38: Amador | B38: Amador15% AMI | C38: =C45*2*0.15 -> 8190 | D38: =D45*2*0.15 -> 9360 | E38: =E45*2*0.15 -> 10530 | F38: =F45*2*0.15 -> 11685 | G38: =G45*2*0.15 -> 12630 | H38: =H45*2*0.15 -> 13560 | I38: 14490 | J38: 15435 | K38: 204 | L38: 219 | M38: 263 | N38: 303 | O38: 339 | P38: 374 | S38: San Diego | T38: 42450 | U38: 48500 | V38: 54550 | W38: 60600 | X38: 65450 | Y38: 70300 | Z38: 75150 | AA38: 80000
A39: Amador | B39: Amador20% AMI | C39: =C45*2*0.2 -> 10920 | D39: =D45*2*0.2 -> 12480 | E39: 14040 | F39: 15580 | G39: 16840 | H39: 18080 | I39: 19320 | J39: 20580 | K39: 273 | L39: 292 | M39: 351 | N39: 405 | O39: 452 | P39: 498 | S39: San Francisco | T39: 63950 | U39: 73100 | V39: 82250 | W39: 91350 | X39: 98700 | Y39: 106000 | Z39: 113300 | AA39: 120600
A40: Amador | B40: Amador25% AMI | C40: =C45*2*0.25 -> 13650 | D40: =D45*2*0.25 -> 15600 | E40: 17550 | F40: 19475 | G40: 21050 | H40: 22600 | I40: 24150 | J40: 25725 | K40: 341 | L40: 365 | M40: 438 | N40: 506 | O40: 565 | P40: 623 | S40: San Joaquin | T40: 25900 | U40: 29600 | V40: 33300 | W40: 37000 | X40: 40000 | Y40: 42950 | Z40: 45900 | AA40: 48850
A41: Amador | B41: Amador30% AMI | C41: =C45*2*0.3 -> 16380 | D41: =D45*2*0.3 -> 18720 | E41: 21060 | F41: 23370 | G41: 25260 | H41: 27120 | I41: 28980 | J41: 30870 | K41: 409 | L41: 438 | M41: 526 | N41: 607 | O41: 678 | P41: 748 | S41: San Luis Obispo | T41: 34250 | U41: 39150 | V41: 44050 | W41: 48900 | X41: 52850 | Y41: 56750 | Z41: 60650 | AA41: 64550
A42: Amador | B42: Amador35% AMI | C42: =C45*2*0.35 -> 19110 | D42: =D45*2*0.35 -> 21840 | E42: 24570 | F42: 27265 | G42: 29470 | H42: 31640 | I42: 33810 | J42: 36015 | K42: 477 | L42: 511 | M42: 614 | N42: 709 | O42: 791 | P42: 872 | S42: San Mateo | T42: 63950 | U42: 73100 | V42: 82250 | W42: 91350 | X42: 98700 | Y42: 106000 | Z42: 113300 | AA42: 120600
A43: Amador | B43: Amador40% AMI | C43: =C45*2*0.4 -> 21840 | D43: =D45*2*0.4 -> 24960 | E43: 28080 | F43: 31160 | G43: 33680 | H43: 36160 | I43: 38640 | J43: 41160 | K43: 546 | L43: 585 | M43: 702 | N43: 810 | O43: 904 | P43: 997 | S43: Santa Barbara | T43: 43750 | U43: 50000 | V43: 56250 | W43: 62450 | X43: 67450 | Y43: 72450 | Z43: 77450 | AA43: 82450
A44: Amador | B44: Amador45% AMI | C44: =C45*2*0.45 -> 24570 | D44: =D45*2*0.45 -> 28080 | E44: 31590 | F44: 35055 | G44: 37890 | H44: 40680 | I44: 43470 | J44: 46305 | K44: 614 | L44: 658 | M44: 789 | N44: 911 | O44: 1017 | P44: 1122 | S44: Santa Clara | T44: 58000 | U44: 66300 | V44: 74600 | W44: 82850 | X44: 89500 | Y44: 96150 | Z44: 102750 | AA44: 109400
A45: Amador | B45: Amador50% AMI | C45: =VLOOKUP($A:$A,$S$1:$AA$59,2,FALSE) -> 27300 | D45: =VLOOKUP($A:$A,$S$1:$AA$59,3,FALSE) -> 31200 | E45: =VLOOKUP($A:$A,$S$1:$AA$59,4,FALSE) -> 35100 | F45: =VLOOKUP($A:$A,$S$1:$AA$59,5,FALSE) -> 38950 | G45: =VLOOKUP($A:$A,$S$1:$AA$59,6,FALSE) -> 42100 | H45: =VLOOKUP($A:$A,$S$1:$AA$59,7,FALSE) -> 45200 | I45: =VLOOKUP($A:$A,$S$1:$AA$59,8,FALSE) -> 48300 | J45: =VLOOKUP($A:$A,$S$1:$AA$59,9,FALSE) -> 51450 | K45: =TRUNC(C45/12*0.3) -> 682 | L45: =TRUNC((C45+D45)/2/12*0.3) -> 731 | M45: =TRUNC((E45)/12*0.3) -> 877 | N45: =TRUNC(((F45+G45)/2)/12*0.3) -> 1013 | O45: =TRUNC(H45/12*0.3) -> 1130 | P45: =TRUNC(((I45+J45)/2)/12*0.3) -> 1246 | S45: Santa Cruz | T45: 48650 | U45: 55600 | V45: 62550 | W45: 69500 | X45: 75100 | Y45: 80650 | Z45: 86200 | AA45: 91750
A46: Amador | B46: Amador55% AMI | C46: =C45*2*0.55 -> 30030 | D46: =D45*2*0.55 -> 34320 | E46: 38610 | F46: 42845 | G46: 46310 | H46: 49720 | I46: 53130 | J46: 56595 | K46: =TRUNC(C46/12*0.3) -> 750 | L46: =TRUNC((C46+D46)/2/12*0.3) -> 804 | M46: =TRUNC((E46)/12*0.3) -> 965 | N46: =TRUNC(((F46+G46)/2)/12*0.3) -> 1114 | O46: =TRUNC(H46/12*0.3) -> 1243 | P46: =TRUNC(((I46+J46)/2)/12*0.3) -> 1371 | S46: Shasta | T46: 24850 | U46: 28400 | V46: 31950 | W46: 35500 | X46: 38350 | Y46: 41200 | Z46: 44050 | AA46: 46900
A47: Amador | B47: Amador60% AMI | C47: =C45*2*0.6 -> 32760 | D47: =D45*2*0.6 -> 37440 | E47: 42120 | F47: 46740 | G47: 50520 | H47: 54240 | I47: 57960 | J47: 61740 | K47: 819 | L47: 877 | M47: 1053 | N47: 1215 | O47: 1356 | P47: 1496 | S47: Sierra | T47: 29600 | U47: 33800 | V47: 38050 | W47: 42250 | X47: 45650 | Y47: 49050 | Z47: 52400 | AA47: 55800
A48: Amador | B48: Amador65% AMI | C48: =C45*2*0.65 -> 35490 | D48: =D45*2*0.65 -> 40560 | E48: 45630 | F48: 50635 | G48: 54730 | H48: 58760 | I48: 62790 | J48: 66885 | K48: 887 | L48: 950 | M48: 1140 | N48: 1317 | O48: 1469 | P48: 1620 | S48: Siskiyou | T48: 24400 | U48: 27900 | V48: 31400 | W48: 34850 | X48: 37650 | Y48: 40450 | Z48: 43250 | AA48: 46050
A49: Amador | B49: Amador70% AMI | C49: =C45*2*0.7 -> 38220 | D49: =D45*2*0.7 -> 43680 | E49: 49140 | F49: 54530 | G49: 58940 | H49: 63280 | I49: 67620 | J49: 72030 | K49: 955 | L49: 1023 | M49: 1228 | N49: 1418 | O49: 1582 | P49: 1745 | S49: Solano | T49: 34000 | U49: 38850 | V49: 43700 | W49: 48550 | X49: 52450 | Y49: 56350 | Z49: 60250 | AA49: 64100
A50: Amador | B50: Amador75% AMI | C50: =C45*2*0.75 -> 40950 | D50: =D45*2*0.75 -> 46800 | E50: 52650 | F50: 58425 | G50: 63150 | H50: 67800 | I50: 72450 | J50: 77175 | K50: 1023 | L50: 1096 | M50: 1316 | N50: 1519 | O50: 1695 | P50: 1870 | S50: Sonoma | T50: 40750 | U50: 46550 | V50: 52350 | W50: 58150 | X50: 62850 | Y50: 67500 | Z50: 72150 | AA50: 76800
A51: Amador | B51: Amador80% AMI | C51: =C45*2*0.8 -> 43680 | D51: =D45*2*0.8 -> 49920 | E51: 56160 | F51: 62320 | G51: 67360 | H51: 72320 | I51: 77280 | J51: 82320 | K51: 1092 | L51: 1170 | M51: 1404 | N51: 1621 | O51: 1808 | P51: 1995 | S51: Stanislaus | T51: 25000 | U51: 28550 | V51: 32100 | W51: 35650 | X51: 38550 | Y51: 41400 | Z51: 44250 | AA51: 47100
A52: Amador | B52: Amador90% AMI | C52: =C45*2*0.9 -> 49140 | D52: =D45*2*0.9 -> 56160 | E52: 63180 | F52: 70110 | G52: 75780 | H52: 81360 | I52: 86940 | J52: 92610 | K52: 1228 | L52: 1316 | M52: 1579 | N52: 1823 | O52: 2034 | P52: 2244 | S52: Sutter | T52: 24400 | U52: 27900 | V52: 31400 | W52: 34850 | X52: 37650 | Y52: 40450 | Z52: 43250 | AA52: 46050
A53: Amador | B53: Amador100% AMI | C53: =C45*2 -> 54600 | D53: =D45*2 -> 62400 | E53: 70200 | F53: 77900 | G53: 84200 | H53: 90400 | I53: 96600 | J53: 102900 | K53: =K45*2 -> 1364 | L53: =L45*2 -> 1462 | M53: 1754 | N53: 2026 | O53: 2260 | P53: 2492 | S53: Tehama | T53: 24400 | U53: 27900 | V53: 31400 | W53: 34850 | X53: 37650 | Y53: 40450 | Z53: 43250 | AA53: 46050
A54: Amador | B54: Amador110% AMI | C54: =C45*2*1.1 -> 60060 | D54: =D45*2*1.1 -> 68640 | E54: 77220 | F54: 85690 | G54: 92620 | H54: 99440 | I54: 106260 | J54: 113190 | K54: =TRUNC(C54/12*0.3) -> 1501 | L54: =TRUNC((C54+D54)/2/12*0.3) -> 1608 | M54: =TRUNC((E54)/12*0.3) -> 1930 | N54: =TRUNC(((F54+G54)/2)/12*0.3) -> 2228 | O54: =TRUNC(H54/12*0.3) -> 2486 | P54: =TRUNC(((I54+J54)/2)/12*0.3) -> 2743 | S54: Trinity | T54: 24400 | U54: 27900 | V54: 31400 | W54: 34850 | X54: 37650 | Y54: 40450 | Z54: 43250 | AA54: 46050
A55: Amador | B55: Amador120% AMI | C55: =C45*2*1.2 -> 65520 | D55: =D45*2*1.2 -> 74880 | E55: 84240 | F55: 93480 | G55: 101040 | H55: 108480 | I55: 115920 | J55: 123480 | K55: 1638 | L55: 1755 | M55: 2106 | N55: 2431 | O55: 2712 | P55: 2992 | S55: Tulare | T55: 24400 | U55: 27900 | V55: 31400 | W55: 34850 | X55: 37650 | Y55: 40450 | Z55: 43250 | AA55: 46050
A56: Butte | B56: Butte15% AMI | C56: =C63*2*0.15 -> 7320 | D56: =D63*2*0.15 -> 8370 | E56: =E63*2*0.15 -> 9420 | F56: =F63*2*0.15 -> 10455 | G56: =G63*2*0.15 -> 11295 | H56: =H63*2*0.15 -> 12135 | I56: 12975 | J56: 13815 | K56: 183 | L56: 196 | M56: 235 | N56: 271 | O56: 303 | P56: 334 | S56: Tuolumne | T56: 26050 | U56: 29800 | V56: 33500 | W56: 37200 | X56: 40200 | Y56: 43200 | Z56: 46150 | AA56: 49150
A57: Butte | B57: Butte20% AMI | C57: =C63*2*0.2 -> 9760 | D57: =D63*2*0.2 -> 11160 | E57: 12560 | F57: 13940 | G57: 15060 | H57: 16180 | I57: 17300 | J57: 18420 | K57: 244 | L57: 261 | M57: 314 | N57: 362 | O57: 404 | P57: 446 | S57: Ventura | T57: 39250 | U57: 44850 | V57: 50450 | W57: 56050 | X57: 60550 | Y57: 65050 | Z57: 69550 | AA57: 74000
A58: Butte | B58: Butte25% AMI | C58: =C63*2*0.25 -> 12200 | D58: =D63*2*0.25 -> 13950 | E58: 15700 | F58: 17425 | G58: 18825 | H58: 20225 | I58: 21625 | J58: 23025 | K58: 305 | L58: 326 | M58: 392 | N58: 453 | O58: 505 | P58: 558 | S58: Yolo | T58: 31050 | U58: 35450 | V58: 39900 | W58: 44300 | X58: 47850 | Y58: 51400 | Z58: 54950 | AA58: 58500
A59: Butte | B59: Butte30% AMI | C59: =C63*2*0.3 -> 14640 | D59: =D63*2*0.3 -> 16740 | E59: 18840 | F59: 20910 | G59: 22590 | H59: 24270 | I59: 25950 | J59: 27630 | K59: 366 | L59: 392 | M59: 471 | N59: 543 | O59: 606 | P59: 669 | S59: Yuba | T59: 24400 | U59: 27900 | V59: 31400 | W59: 34850 | X59: 37650 | Y59: 40450 | Z59: 43250 | AA59: 46050
A60: Butte | B60: Butte35% AMI | C60: =C63*2*0.35 -> 17080 | D60: =D63*2*0.35 -> 19530 | E60: 21980 | F60: 24395 | G60: 26355 | H60: 28315 | I60: 30275 | J60: 32235 | K60: 427 | L60: 457 | M60: 549 | N60: 634 | O60: 707 | P60: 781
A61: Butte | B61: Butte40% AMI | C61: =C63*2*0.4 -> 19520 | D61: =D63*2*0.4 -> 22320 | E61: 25120 | F61: 27880 | G61: 30120 | H61: 32360 | I61: 34600 | J61: 36840 | K61: 488 | L61: 523 | M61: 628 | N61: 725 | O61: 809 | P61: 893
A62: Butte | B62: Butte45% AMI | C62: =C63*2*0.45 -> 21960 | D62: =D63*2*0.45 -> 25110 | E62: 28260 | F62: 31365 | G62: 33885 | H62: 36405 | I62: 38925 | J62: 41445 | K62: 549 | L62: 588 | M62: 706 | N62: 815 | O62: 910 | P62: 1004
A63: Butte | B63: Butte50% AMI | C63: =VLOOKUP($A:$A,$S$1:$AA$59,2,FALSE) -> 24400 | D63: =VLOOKUP($A:$A,$S$1:$AA$59,3,FALSE) -> 27900 | E63: =VLOOKUP($A:$A,$S$1:$AA$59,4,FALSE) -> 31400 | F63: =VLOOKUP($A:$A,$S$1:$AA$59,5,FALSE) -> 34850 | G63: =VLOOKUP($A:$A,$S$1:$AA$59,6,FALSE) -> 37650 | H63: =VLOOKUP($A:$A,$S$1:$AA$59,7,FALSE) -> 40450 | I63: =VLOOKUP($A:$A,$S$1:$AA$59,8,FALSE) -> 43250 | J63: =VLOOKUP($A:$A,$S$1:$AA$59,9,FALSE) -> 46050 | K63: =TRUNC(C63/12*0.3) -> 610 | L63: =TRUNC((C63+D63)/2/12*0.3) -> 653 | M63: =TRUNC((E63)/12*0.3) -> 785 | N63: =TRUNC(((F63+G63)/2)/12*0.3) -> 906 | O63: =TRUNC(H63/12*0.3) -> 1011 | P63: =TRUNC(((I63+J63)/2)/12*0.3) -> 1116
A64: Butte | B64: Butte55% AMI | C64: =C63*2*0.55 -> 26840 | D64: =D63*2*0.55 -> 30690 | E64: 34540 | F64: 38335 | G64: 41415 | H64: 44495 | I64: 47575 | J64: 50655 | K64: =TRUNC(C64/12*0.3) -> 671 | L64: =TRUNC((C64+D64)/2/12*0.3) -> 719 | M64: =TRUNC((E64)/12*0.3) -> 863 | N64: =TRUNC(((F64+G64)/2)/12*0.3) -> 996 | O64: =TRUNC(H64/12*0.3) -> 1112 | P64: =TRUNC(((I64+J64)/2)/12*0.3) -> 1227
A65: Butte | B65: Butte60% AMI | C65: =C63*2*0.6 -> 29280 | D65: =D63*2*0.6 -> 33480 | E65: 37680 | F65: 41820 | G65: 45180 | H65: 48540 | I65: 51900 | J65: 55260 | K65: 732 | L65: 784 | M65: 942 | N65: 1087 | O65: 1213 | P65: 1339
A66: Butte | B66: Butte65% AMI | C66: =C63*2*0.65 -> 31720 | D66: =D63*2*0.65 -> 36270 | E66: 40820 | F66: 45305 | G66: 48945 | H66: 52585 | I66: 56225 | J66: 59865 | K66: 793 | L66: 849 | M66: 1020 | N66: 1178 | O66: 1314 | P66: 1451
A67: Butte | B67: Butte70% AMI | C67: =C63*2*0.7 -> 34160 | D67: =D63*2*0.7 -> 39060 | E67: 43960 | F67: 48790 | G67: 52710 | H67: 56630 | I67: 60550 | J67: 64470 | K67: 854 | L67: 915 | M67: 1099 | N67: 1268 | O67: 1415 | P67: 1562
A68: Butte | B68: Butte75% AMI | C68: =C63*2*0.75 -> 36600 | D68: =D63*2*0.75 -> 41850 | E68: 47100 | F68: 52275 | G68: 56475 | H68: 60675 | I68: 64875 | J68: 69075 | K68: 915 | L68: 980 | M68: 1177 | N68: 1359 | O68: 1516 | P68: 1674
A69: Butte | B69: Butte80% AMI | C69: =C63*2*0.8 -> 39040 | D69: =D63*2*0.8 -> 44640 | E69: 50240 | F69: 55760 | G69: 60240 | H69: 64720 | I69: 69200 | J69: 73680 | K69: 976 | L69: 1046 | M69: 1256 | N69: 1450 | O69: 1618 | P69: 1786
A70: Butte | B70: Butte90% AMI | C70: =C63*2*0.9 -> 43920 | D70: =D63*2*0.9 -> 50220 | E70: 56520 | F70: 62730 | G70: 67770 | H70: 72810 | I70: 77850 | J70: 82890 | K70: 1098 | L70: 1176 | M70: 1413 | N70: 1631 | O70: 1820 | P70: 2009
A71: Butte | B71: Butte100% AMI | C71: =C63*2 -> 48800 | D71: =D63*2 -> 55800 | E71: 62800 | F71: 69700 | G71: 75300 | H71: 80900 | I71: 86500 | J71: 92100 | K71: =K63*2 -> 1220 | L71: =L63*2 -> 1306 | M71: 1570 | N71: 1812 | O71: 2022 | P71: 2232
A72: Butte | B72: Butte110% AMI | C72: =C63*2*1.1 -> 53680 | D72: =D63*2*1.1 -> 61380 | E72: 69080 | F72: 76670 | G72: 82830 | H72: 88990 | I72: 95150 | J72: 101310 | K72: =TRUNC(C72/12*0.3) -> 1342 | L72: =TRUNC((C72+D72)/2/12*0.3) -> 1438 | M72: =TRUNC((E72)/12*0.3) -> 1727 | N72: =TRUNC(((F72+G72)/2)/12*0.3) -> 1993 | O72: =TRUNC(H72/12*0.3) -> 2224 | P72: =TRUNC(((I72+J72)/2)/12*0.3) -> 2455
A73: Butte | B73: Butte120% AMI | C73: =C63*2*1.2 -> 58560 | D73: =D63*2*1.2 -> 66960 | E73: 75360 | F73: 83640 | G73: 90360 | H73: 97080 | I73: 103800 | J73: 110520 | K73: 1464 | L73: 1569 | M73: 1884 | N73: 2175 | O73: 2427 | P73: 2679
A74: Calaveras | B74: Calaveras15% AMI | C74: =C81*2*0.15 -> 8580 | D74: =D81*2*0.15 -> 9810 | E74: =E81*2*0.15 -> 11040 | F74: =F81*2*0.15 -> 12255 | G74: =G81*2*0.15 -> 13245 | H74: =H81*2*0.15 -> 14220 | I74: 15210 | J74: 16185 | K74: 214 | L74: 229 | M74: 276 | N74: 318 | O74: 355 | P74: 392
A75: Calaveras | B75: Calaveras20% AMI | C75: =C81*2*0.2 -> 11440 | D75: =D81*2*0.2 -> 13080 | E75: 14720 | F75: 16340 | G75: 17660 | H75: 18960 | I75: 20280 | J75: 21580 | K75: 286 | L75: 306 | M75: 368 | N75: 425 | O75: 474 | P75: 523
A76: Calaveras | B76: Calaveras25% AMI | C76: =C81*2*0.25 -> 14300 | D76: =D81*2*0.25 -> 16350 | E76: 18400 | F76: 20425 | G76: 22075 | H76: 23700 | I76: 25350 | J76: 26975 | K76: 357 | L76: 383 | M76: 460 | N76: 531 | O76: 592 | P76: 654
A77: Calaveras | B77: Calaveras30% AMI | C77: =C81*2*0.3 -> 17160 | D77: =D81*2*0.3 -> 19620 | E77: 22080 | F77: 24510 | G77: 26490 | H77: 28440 | I77: 30420 | J77: 32370 | K77: 429 | L77: 459 | M77: 552 | N77: 637 | O77: 711 | P77: 784
A78: Calaveras | B78: Calaveras35% AMI | C78: =C81*2*0.35 -> 20020 | D78: =D81*2*0.35 -> 22890 | E78: 25760 | F78: 28595 | G78: 30905 | H78: 33180 | I78: 35490 | J78: 37765 | K78: 500 | L78: 536 | M78: 644 | N78: 743 | O78: 829 | P78: 915
A79: Calaveras | B79: Calaveras40% AMI | C79: =C81*2*0.4 -> 22880 | D79: =D81*2*0.4 -> 26160 | E79: 29440 | F79: 32680 | G79: 35320 | H79: 37920 | I79: 40560 | J79: 43160 | K79: 572 | L79: 613 | M79: 736 | N79: 850 | O79: 948 | P79: 1046
A80: Calaveras | B80: Calaveras45% AMI | C80: =C81*2*0.45 -> 25740 | D80: =D81*2*0.45 -> 29430 | E80: 33120 | F80: 36765 | G80: 39735 | H80: 42660 | I80: 45630 | J80: 48555 | K80: 643 | L80: 689 | M80: 828 | N80: 956 | O80: 1066 | P80: 1177
A81: Calaveras | B81: Calaveras50% AMI | C81: =VLOOKUP($A:$A,$S$1:$AA$59,2,FALSE) -> 28600 | D81: =VLOOKUP($A:$A,$S$1:$AA$59,3,FALSE) -> 32700 | E81: =VLOOKUP($A:$A,$S$1:$AA$59,4,FALSE) -> 36800 | F81: =VLOOKUP($A:$A,$S$1:$AA$59,5,FALSE) -> 40850 | G81: =VLOOKUP($A:$A,$S$1:$AA$59,6,FALSE) -> 44150 | H81: =VLOOKUP($A:$A,$S$1:$AA$59,7,FALSE) -> 47400 | I81: =VLOOKUP($A:$A,$S$1:$AA$59,8,FALSE) -> 50700 | J81: =VLOOKUP($A:$A,$S$1:$AA$59,9,FALSE) -> 53950 | K81: =TRUNC(C81/12*0.3) -> 715 | L81: =TRUNC((C81+D81)/2/12*0.3) -> 766 | M81: =TRUNC((E81)/12*0.3) -> 920 | N81: =TRUNC(((F81+G81)/2)/12*0.3) -> 1062 | O81: =TRUNC(H81/12*0.3) -> 1185 | P81: =TRUNC(((I81+J81)/2)/12*0.3) -> 1308
A82: Calaveras | B82: Calaveras55% AMI | C82: =C81*2*0.55 -> 31460 | D82: =D81*2*0.55 -> 35970 | E82: 40480 | F82: 44935 | G82: 48565 | H82: 52140 | I82: 55770 | J82: 59345 | K82: =TRUNC(C82/12*0.3) -> 786 | L82: =TRUNC((C82+D82)/2/12*0.3) -> 842 | M82: =TRUNC((E82)/12*0.3) -> 1012 | N82: =TRUNC(((F82+G82)/2)/12*0.3) -> 1168 | O82: =TRUNC(H82/12*0.3) -> 1303 | P82: =TRUNC(((I82+J82)/2)/12*0.3) -> 1438
A83: Calaveras | B83: Calaveras60% AMI | C83: =C81*2*0.6 -> 34320 | D83: =D81*2*0.6 -> 39240 | E83: 44160 | F83: 49020 | G83: 52980 | H83: 56880 | I83: 60840 | J83: 64740 | K83: 858 | L83: 919 | M83: 1104 | N83: 1275 | O83: 1422 | P83: 1569
A84: Calaveras | B84: Calaveras65% AMI | C84: =C81*2*0.65 -> 37180 | D84: =D81*2*0.65 -> 42510 | E84: 47840 | F84: 53105 | G84: 57395 | H84: 61620 | I84: 65910 | J84: 70135 | K84: 929 | L84: 996 | M84: 1196 | N84: 1381 | O84: 1540 | P84: 1700
A85: Calaveras | B85: Calaveras70% AMI | C85: =C81*2*0.7 -> 40040 | D85: =D81*2*0.7 -> 45780 | E85: 51520 | F85: 57190 | G85: 61810 | H85: 66360 | I85: 70980 | J85: 75530 | K85: 1001 | L85: 1072 | M85: 1288 | N85: 1487 | O85: 1659 | P85: 1831
A86: Calaveras | B86: Calaveras75% AMI | C86: =C81*2*0.75 -> 42900 | D86: =D81*2*0.75 -> 49050 | E86: 55200 | F86: 61275 | G86: 66225 | H86: 71100 | I86: 76050 | J86: 80925 | K86: 1072 | L86: 1149 | M86: 1380 | N86: 1593 | O86: 1777 | P86: 1962
A87: Calaveras | B87: Calaveras80% AMI | C87: =C81*2*0.8 -> 45760 | D87: =D81*2*0.8 -> 52320 | E87: 58880 | F87: 65360 | G87: 70640 | H87: 75840 | I87: 81120 | J87: 86320 | K87: 1144 | L87: 1226 | M87: 1472 | N87: 1700 | O87: 1896 | P87: 2093
A88: Calaveras | B88: Calaveras90% AMI | C88: =C81*2*0.9 -> 51480 | D88: =D81*2*0.9 -> 58860 | E88: 66240 | F88: 73530 | G88: 79470 | H88: 85320 | I88: 91260 | J88: 97110 | K88: 1287 | L88: 1379 | M88: 1656 | N88: 1912 | O88: 2133 | P88: 2354
A89: Calaveras | B89: Calaveras100% AMI | C89: =C81*2 -> 57200 | D89: =D81*2 -> 65400 | E89: 73600 | F89: 81700 | G89: 88300 | H89: 94800 | I89: 101400 | J89: 107900 | K89: =K81*2 -> 1430 | L89: =L81*2 -> 1532 | M89: 1840 | N89: 2124 | O89: 2370 | P89: 2616
A90: Calaveras | B90: Calaveras110% AMI | C90: =C81*2*1.1 -> 62920 | D90: =D81*2*1.1 -> 71940 | E90: 80960 | F90: 89870 | G90: 97130 | H90: 104280 | I90: 111540 | J90: 118690 | K90: =TRUNC(C90/12*0.3) -> 1573 | L90: =TRUNC((C90+D90)/2/12*0.3) -> 1685 | M90: =TRUNC((E90)/12*0.3) -> 2024 | N90: =TRUNC(((F90+G90)/2)/12*0.3) -> 2337 | O90: =TRUNC(H90/12*0.3) -> 2607 | P90: =TRUNC(((I90+J90)/2)/12*0.3) -> 2877
A91: Calaveras | B91: Calaveras120% AMI | C91: =C81*2*1.2 -> 68640 | D91: =D81*2*1.2 -> 78480 | E91: 88320 | F91: 98040 | G91: 105960 | H91: 113760 | I91: 121680 | J91: 129480 | K91: 1716 | L91: 1839 | M91: 2208 | N91: 2550 | O91: 2844 | P91: 3139
A92: Colusa | B92: Colusa15% AMI | C92: =C99*2*0.15 -> 7320 | D92: =D99*2*0.15 -> 8370 | E92: =E99*2*0.15 -> 9420 | F92: =F99*2*0.15 -> 10455 | G92: =G99*2*0.15 -> 11295 | H92: =H99*2*0.15 -> 12135 | I92: 12975 | J92: 13815 | K92: 183 | L92: 196 | M92: 235 | N92: 271 | O92: 303 | P92: 334
A93: Colusa | B93: Colusa20% AMI | C93: =C99*2*0.2 -> 9760 | D93: =D99*2*0.2 -> 11160 | E93: 12560 | F93: 13940 | G93: 15060 | H93: 16180 | I93: 17300 | J93: 18420 | K93: 244 | L93: 261 | M93: 314 | N93: 362 | O93: 404 | P93: 446
A94: Colusa | B94: Colusa25% AMI | C94: =C99*2*0.25 -> 12200 | D94: =D99*2*0.25 -> 13950 | E94: 15700 | F94: 17425 | G94: 18825 | H94: 20225 | I94: 21625 | J94: 23025 | K94: 305 | L94: 326 | M94: 392 | N94: 453 | O94: 505 | P94: 558
A95: Colusa | B95: Colusa30% AMI | C95: =C99*2*0.3 -> 14640 | D95: =D99*2*0.3 -> 16740 | E95: 18840 | F95: 20910 | G95: 22590 | H95: 24270 | I95: 25950 | J95: 27630 | K95: 366 | L95: 392 | M95: 471 | N95: 543 | O95: 606 | P95: 669
A96: Colusa | B96: Colusa35% AMI | C96: =C99*2*0.35 -> 17080 | D96: =D99*2*0.35 -> 19530 | E96: 21980 | F96: 24395 | G96: 26355 | H96: 28315 | I96: 30275 | J96: 32235 | K96: 427 | L96: 457 | M96: 549 | N96: 634 | O96: 707 | P96: 781
A97: Colusa | B97: Colusa40% AMI | C97: =C99*2*0.4 -> 19520 | D97: =D99*2*0.4 -> 22320 | E97: 25120 | F97: 27880 | G97: 30120 | H97: 32360 | I97: 34600 | J97: 36840 | K97: 488 | L97: 523 | M97: 628 | N97: 725 | O97: 809 | P97: 893
A98: Colusa | B98: Colusa45% AMI | C98: =C99*2*0.45 -> 21960 | D98: =D99*2*0.45 -> 25110 | E98: 28260 | F98: 31365 | G98: 33885 | H98: 36405 | I98: 38925 | J98: 41445 | K98: 549 | L98: 588 | M98: 706 | N98: 815 | O98: 910 | P98: 1004
A99: Colusa | B99: Colusa50% AMI | C99: =VLOOKUP($A:$A,$S$1:$AA$59,2,FALSE) -> 24400 | D99: =VLOOKUP($A:$A,$S$1:$AA$59,3,FALSE) -> 27900 | E99: =VLOOKUP($A:$A,$S$1:$AA$59,4,FALSE) -> 31400 | F99: =VLOOKUP($A:$A,$S$1:$AA$59,5,FALSE) -> 34850 | G99: =VLOOKUP($A:$A,$S$1:$AA$59,6,FALSE) -> 37650 | H99: =VLOOKUP($A:$A,$S$1:$AA$59,7,FALSE) -> 40450 | I99: =VLOOKUP($A:$A,$S$1:$AA$59,8,FALSE) -> 43250 | J99: =VLOOKUP($A:$A,$S$1:$AA$59,9,FALSE) -> 46050 | K99: =TRUNC(C99/12*0.3) -> 610 | L99: =TRUNC((C99+D99)/2/12*0.3) -> 653 | M99: =TRUNC((E99)/12*0.3) -> 785 | N99: =TRUNC(((F99+G99)/2)/12*0.3) -> 906 | O99: =TRUNC(H99/12*0.3) -> 1011 | P99: =TRUNC(((I99+J99)/2)/12*0.3) -> 1116
A100: Colusa | B100: Colusa55% AMI | C100: =C99*2*0.55 -> 26840 | D100: =D99*2*0.55 -> 30690 | E100: 34540 | F100: 38335 | G100: 41415 | H100: 44495 | I100: 47575 | J100: 50655 | K100: =TRUNC(C100/12*0.3) -> 671 | L100: =TRUNC((C100+D100)/2/12*0.3) -> 719 | M100: =TRUNC((E100)/12*0.3) -> 863 | N100: =TRUNC(((F100+G100)/2)/12*0.3) -> 996 | O100: =TRUNC(H100/12*0.3) -> 1112 | P100: =TRUNC(((I100+J100)/2)/12*0.3) -> 1227
A101: Colusa | B101: Colusa60% AMI | C101: =C99*2*0.6 -> 29280 | D101: =D99*2*0.6 -> 33480 | E101: 37680 | F101: 41820 | G101: 45180 | H101: 48540 | I101: 51900 | J101: 55260 | K101: 732 | L101: 784 | M101: 942 | N101: 1087 | O101: 1213 | P101: 1339
A102: Colusa | B102: Colusa65% AMI | C102: =C99*2*0.65 -> 31720 | D102: =D99*2*0.65 -> 36270 | E102: 40820 | F102: 45305 | G102: 48945 | H102: 52585 | I102: 56225 | J102: 59865 | K102: 793 | L102: 849 | M102: 1020 | N102: 1178 | O102: 1314 | P102: 1451
A103: Colusa | B103: Colusa70% AMI | C103: =C99*2*0.7 -> 34160 | D103: =D99*2*0.7 -> 39060 | E103: 43960 | F103: 48790 | G103: 52710 | H103: 56630 | I103: 60550 | J103: 64470 | K103: 854 | L103: 915 | M103: 1099 | N103: 1268 | O103: 1415 | P103: 1562
A104: Colusa | B104: Colusa75% AMI | C104: =C99*2*0.75 -> 36600 | D104: =D99*2*0.75 -> 41850 | E104: 47100 | F104: 52275 | G104: 56475 | H104: 60675 | I104: 64875 | J104: 69075 | K104: 915 | L104: 980 | M104: 1177 | N104: 1359 | O104: 1516 | P104: 1674
A105: Colusa | B105: Colusa80% AMI | C105: =C99*2*0.8 -> 39040 | D105: =D99*2*0.8 -> 44640 | E105: 50240 | F105: 55760 | G105: 60240 | H105: 64720 | I105: 69200 | J105: 73680 | K105: 976 | L105: 1046 | M105: 1256 | N105: 1450 | O105: 1618 | P105: 1786
A106: Colusa | B106: Colusa90% AMI | C106: =C99*2*0.9 -> 43920 | D106: =D99*2*0.9 -> 50220 | E106: 56520 | F106: 62730 | G106: 67770 | H106: 72810 | I106: 77850 | J106: 82890 | K106: 1098 | L106: 1176 | M106: 1413 | N106: 1631 | O106: 1820 | P106: 2009
A107: Colusa | B107: Colusa100% AMI | C107: =C99*2 -> 48800 | D107: =D99*2 -> 55800 | E107: 62800 | F107: 69700 | G107: 75300 | H107: 80900 | I107: 86500 | J107: 92100 | K107: =K99*2 -> 1220 | L107: =L99*2 -> 1306 | M107: 1570 | N107: 1812 | O107: 2022 | P107: 2232
A108: Colusa | B108: Colusa110% AMI | C108: =C99*2*1.1 -> 53680 | D108: =D99*2*1.1 -> 61380 | E108: 69080 | F108: 76670 | G108: 82830 | H108: 88990 | I108: 95150 | J108: 101310 | K108: =TRUNC(C108/12*0.3) -> 1342 | L108: =TRUNC((C108+D108)/2/12*0.3) -> 1438 | M108: =TRUNC((E108)/12*0.3) -> 1727 | N108: =TRUNC(((F108+G108)/2)/12*0.3) -> 1993 | O108: =TRUNC(H108/12*0.3) -> 2224 | P108: =TRUNC(((I108+J108)/2)/12*0.3) -> 2455
A109: Colusa | B109: Colusa120% AMI | C109: =C99*2*1.2 -> 58560 | D109: =D99*2*1.2 -> 66960 | E109: 75360 | F109: 83640 | G109: 90360 | H109: 97080 | I109: 103800 | J109: 110520 | K109: 1464 | L109: 1569 | M109: 1884 | N109: 2175 | O109: 2427 | P109: 2679
A110: Contra Costa | B110: Contra Costa15% AMI | C110: =C117*2*0.15 -> 14385 | D110: =D117*2*0.15 -> 16440 | E110: =E117*2*0.15 -> 18495 | F110: =F117*2*0.15 -> 20550 | G110: =G117*2*0.15 -> 22200 | H110: =H117*2*0.15 -> 23850 | I110: 25485 | J110: 27135 | K110: 359 | L110: 385 | M110: 462 | N110: 534 | O110: 596 | P110: 657
A111: Contra Costa | B111: Contra Costa20% AMI | C111: =C117*2*0.2 -> 19180 | D111: =D117*2*0.2 -> 21920 | E111: 24660 | F111: 27400 | G111: 29600 | H111: 31800 | I111: 33980 | J111: 36180 | K111: 479 | L111: 513 | M111: 616 | N111: 712 | O111: 795 | P111: 877
A112: Contra Costa | B112: Contra Costa25% AMI | C112: =C117*2*0.25 -> 23975 | D112: =D117*2*0.25 -> 27400 | E112: 30825 | F112: 34250 | G112: 37000 | H112: 39750 | I112: 42475 | J112: 45225 | K112: 599 | L112: 642 | M112: 770 | N112: 890 | O112: 993 | P112: 1096
A113: Contra Costa | B113: Contra Costa30% AMI | C113: =C117*2*0.3 -> 28770 | D113: =D117*2*0.3 -> 32880 | E113: 36990 | F113: 41100 | G113: 44400 | H113: 47700 | I113: 50970 | J113: 54270 | K113: 719 | L113: 770 | M113: 924 | N113: 1068 | O113: 1192 | P113: 1315
A114: Contra Costa | B114: Contra Costa35% AMI | C114: =C117*2*0.35 -> 33565 | D114: =D117*2*0.35 -> 38360 | E114: 43155 | F114: 47950 | G114: 51800 | H114: 55650 | I114: 59465 | J114: 63315 | K114: 839 | L114: 899 | M114: 1078 | N114: 1246 | O114: 1391 | P114: 1534
A115: Contra Costa | B115: Contra Costa40% AMI | C115: =C117*2*0.4 -> 38360 | D115: =D117*2*0.4 -> 43840 | E115: 49320 | F115: 54800 | G115: 59200 | H115: 63600 | I115: 67960 | J115: 72360 | K115: 959 | L115: 1027 | M115: 1233 | N115: 1425 | O115: 1590 | P115: 1754
A116: Contra Costa | B116: Contra Costa45% AMI | C116: =C117*2*0.45 -> 43155 | D116: =D117*2*0.45 -> 49320 | E116: 55485 | F116: 61650 | G116: 66600 | H116: 71550 | I116: 76455 | J116: 81405 | K116: 1078 | L116: 1155 | M116: 1387 | N116: 1603 | O116: 1788 | P116: 1973
A117: Contra Costa | B117: Contra Costa50% AMI | C117: =VLOOKUP($A:$A,$S$1:$AA$59,2,FALSE) -> 47950 | D117: =VLOOKUP($A:$A,$S$1:$AA$59,3,FALSE) -> 54800 | E117: =VLOOKUP($A:$A,$S$1:$AA$59,4,FALSE) -> 61650 | F117: =VLOOKUP($A:$A,$S$1:$AA$59,5,FALSE) -> 68500 | G117: =VLOOKUP($A:$A,$S$1:$AA$59,6,FALSE) -> 74000 | H117: =VLOOKUP($A:$A,$S$1:$AA$59,7,FALSE) -> 79500 | I117: =VLOOKUP($A:$A,$S$1:$AA$59,8,FALSE) -> 84950 | J117: =VLOOKUP($A:$A,$S$1:$AA$59,9,FALSE) -> 90450 | K117: =TRUNC(C117/12*0.3) -> 1198 | L117: =TRUNC((C117+D117)/2/12*0.3) -> 1284 | M117: =TRUNC((E117)/12*0.3) -> 1541 | N117: =TRUNC(((F117+G117)/2)/12*0.3) -> 1781 | O117: =TRUNC(H117/12*0.3) -> 1987 | P117: =TRUNC(((I117+J117)/2)/12*0.3) -> 2192
A118: Contra Costa | B118: Contra Costa55% AMI | C118: =C117*2*0.55 -> 52745 | D118: =D117*2*0.55 -> 60280 | E118: 67815 | F118: 75350 | G118: 81400 | H118: 87450 | I118: 93445 | J118: 99495 | K118: =TRUNC(C118/12*0.3) -> 1318 | L118: =TRUNC((C118+D118)/2/12*0.3) -> 1412 | M118: =TRUNC((E118)/12*0.3) -> 1695 | N118: =TRUNC(((F118+G118)/2)/12*0.3) -> 1959 | O118: =TRUNC(H118/12*0.3) -> 2186 | P118: =TRUNC(((I118+J118)/2)/12*0.3) -> 2411
A119: Contra Costa | B119: Contra Costa60% AMI | C119: =C117*2*0.6 -> 57540 | D119: =D117*2*0.6 -> 65760 | E119: 73980 | F119: 82200 | G119: 88800 | H119: 95400 | I119: 101940 | J119: 108540 | K119: 1438 | L119: 1541 | M119: 1849 | N119: 2137 | O119: 2385 | P119: 2631
A120: Contra Costa | B120: Contra Costa65% AMI | C120: =C117*2*0.65 -> 62335 | D120: =D117*2*0.65 -> 71240 | E120: 80145 | F120: 89050 | G120: 96200 | H120: 103350 | I120: 110435 | J120: 117585 | K120: 1558 | L120: 1669 | M120: 2003 | N120: 2315 | O120: 2583 | P120: 2850
A121: Contra Costa | B121: Contra Costa70% AMI | C121: =C117*2*0.7 -> 67130 | D121: =D117*2*0.7 -> 76720 | E121: 86310 | F121: 95900 | G121: 103600 | H121: 111300 | I121: 118930 | J121: 126630 | K121: 1678 | L121: 1798 | M121: 2157 | N121: 2493 | O121: 2782 | P121: 3069
A122: Contra Costa | B122: Contra Costa75% AMI | C122: =C117*2*0.75 -> 71925 | D122: =D117*2*0.75 -> 82200 | E122: 92475 | F122: 102750 | G122: 111000 | H122: 119250 | I122: 127425 | J122: 135675 | K122: 1798 | L122: 1926 | M122: 2311 | N122: 2671 | O122: 2981 | P122: 3288
A123: Contra Costa | B123: Contra Costa80% AMI | C123: =C117*2*0.8 -> 76720 | D123: =D117*2*0.8 -> 87680 | E123: 98640 | F123: 109600 | G123: 118400 | H123: 127200 | I123: 135920 | J123: 144720 | K123: 1918 | L123: 2055 | M123: 2466 | N123: 2850 | O123: 3180 | P123: 3508
A124: Contra Costa | B124: Contra Costa90% AMI | C124: =C117*2*0.9 -> 86310 | D124: =D117*2*0.9 -> 98640 | E124: 110970 | F124: 123300 | G124: 133200 | H124: 143100 | I124: 152910 | J124: 162810 | K124: 2157 | L124: 2311 | M124: 2774 | N124: 3206 | O124: 3577 | P124: 3946
A125: Contra Costa | B125: Contra Costa100% AMI | C125: =C117*2 -> 95900 | D125: =D117*2 -> 109600 | E125: 123300 | F125: 137000 | G125: 148000 | H125: 159000 | I125: 169900 | J125: 180900 | K125: =K117*2 -> 2396 | L125: =L117*2 -> 2568 | M125: 3082 | N125: 3562 | O125: 3974 | P125: 4384
A126: Contra Costa | B126: Contra Costa110% AMI | C126: =C117*2*1.1 -> 105490 | D126: =D117*2*1.1 -> 120560 | E126: 135630 | F126: 150700 | G126: 162800 | H126: 174900 | I126: 186890 | J126: 198990 | K126: =TRUNC(C126/12*0.3) -> 2637 | L126: =TRUNC((C126+D126)/2/12*0.3) -> 2825 | M126: =TRUNC((E126)/12*0.3) -> 3390 | N126: =TRUNC(((F126+G126)/2)/12*0.3) -> 3918 | O126: =TRUNC(H126/12*0.3) -> 4372 | P126: =TRUNC(((I126+J126)/2)/12*0.3) -> 4823
A127: Contra Costa | B127: Contra Costa120% AMI | C127: =C117*2*1.2 -> 115080 | D127: =D117*2*1.2 -> 131520 | E127: 147960 | F127: 164400 | G127: 177600 | H127: 190800 | I127: 203880 | J127: 217080 | K127: 2877 | L127: 3082 | M127: 3699 | N127: 4275 | O127: 4770 | P127: 5262
A128: Del Norte | B128: Del Norte15% AMI | C128: =C135*2*0.15 -> 7320 | D128: =D135*2*0.15 -> 8370 | E128: =E135*2*0.15 -> 9420 | F128: =F135*2*0.15 -> 10455 | G128: =G135*2*0.15 -> 11295 | H128: =H135*2*0.15 -> 12135 | I128: 12975 | J128: 13815 | K128: 183 | L128: 196 | M128: 235 | N128: 271 | O128: 303 | P128: 334
A129: Del Norte | B129: Del Norte20% AMI | C129: =C135*2*0.2 -> 9760 | D129: =D135*2*0.2 -> 11160 | E129: 12560 | F129: 13940 | G129: 15060 | H129: 16180 | I129: 17300 | J129: 18420 | K129: 244 | L129: 261 | M129: 314 | N129: 362 | O129: 404 | P129: 446
A130: Del Norte | B130: Del Norte25% AMI | C130: =C135*2*0.25 -> 12200 | D130: =D135*2*0.25 -> 13950 | E130: 15700 | F130: 17425 | G130: 18825 | H130: 20225 | I130: 21625 | J130: 23025 | K130: 305 | L130: 326 | M130: 392 | N130: 453 | O130: 505 | P130: 558
A131: Del Norte | B131: Del Norte30% AMI | C131: =C135*2*0.3 -> 14640 | D131: =D135*2*0.3 -> 16740 | E131: 18840 | F131: 20910 | G131: 22590 | H131: 24270 | I131: 25950 | J131: 27630 | K131: 366 | L131: 392 | M131: 471 | N131: 543 | O131: 606 | P131: 669
A132: Del Norte | B132: Del Norte35% AMI | C132: =C135*2*0.35 -> 17080 | D132: =D135*2*0.35 -> 19530 | E132: 21980 | F132: 24395 | G132: 26355 | H132: 28315 | I132: 30275 | J132: 32235 | K132: 427 | L132: 457 | M132: 549 | N132: 634 | O132: 707 | P132: 781
A133: Del Norte | B133: Del Norte40% AMI | C133: =C135*2*0.4 -> 19520 | D133: =D135*2*0.4 -> 22320 | E133: 25120 | F133: 27880 | G133: 30120 | H133: 32360 | I133: 34600 | J133: 36840 | K133: 488 | L133: 523 | M133: 628 | N133: 725 | O133: 809 | P133: 893
A134: Del Norte | B134: Del Norte45% AMI | C134: =C135*2*0.45 -> 21960 | D134: =D135*2*0.45 -> 25110 | E134: 28260 | F134: 31365 | G134: 33885 | H134: 36405 | I134: 38925 | J134: 41445 | K134: 549 | L134: 588 | M134: 706 | N134: 815 | O134: 910 | P134: 1004
A135: Del Norte | B135: Del Norte50% AMI | C135: =VLOOKUP($A:$A,$S$1:$AA$59,2,FALSE) -> 24400 | D135: =VLOOKUP($A:$A,$S$1:$AA$59,3,FALSE) -> 27900 | E135: =VLOOKUP($A:$A,$S$1:$AA$59,4,FALSE) -> 31400 | F135: =VLOOKUP($A:$A,$S$1:$AA$59,5,FALSE) -> 34850 | G135: =VLOOKUP($A:$A,$S$1:$AA$59,6,FALSE) -> 37650 | H135: =VLOOKUP($A:$A,$S$1:$AA$59,7,FALSE) -> 40450 | I135: =VLOOKUP($A:$A,$S$1:$AA$59,8,FALSE) -> 43250 | J135: =VLOOKUP($A:$A,$S$1:$AA$59,9,FALSE) -> 46050 | K135: =TRUNC(C135/12*0.3) -> 610 | L135: =TRUNC((C135+D135)/2/12*0.3) -> 653 | M135: =TRUNC((E135)/12*0.3) -> 785 | N135: =TRUNC(((F135+G135)/2)/12*0.3) -> 906 | O135: =TRUNC(H135/12*0.3) -> 1011 | P135: =TRUNC(((I135+J135)/2)/12*0.3) -> 1116
A136: Del Norte | B136: Del Norte55% AMI | C136: =C135*2*0.55 -> 26840 | D136: =D135*2*0.55 -> 30690 | E136: 34540 | F136: 38335 | G136: 41415 | H136: 44495 | I136: 47575 | J136: 50655 | K136: =TRUNC(C136/12*0.3) -> 671 | L136: =TRUNC((C136+D136)/2/12*0.3) -> 719 | M136: =TRUNC((E136)/12*0.3) -> 863 | N136: =TRUNC(((F136+G136)/2)/12*0.3) -> 996 | O136: =TRUNC(H136/12*0.3) -> 1112 | P136: =TRUNC(((I136+J136)/2)/12*0.3) -> 1227
A137: Del Norte | B137: Del Norte60% AMI | C137: =C135*2*0.6 -> 29280 | D137: =D135*2*0.6 -> 33480 | E137: 37680 | F137: 41820 | G137: 45180 | H137: 48540 | I137: 51900 | J137: 55260 | K137: 732 | L137: 784 | M137: 942 | N137: 1087 | O137: 1213 | P137: 1339
A138: Del Norte | B138: Del Norte65% AMI | C138: =C135*2*0.65 -> 31720 | D138: =D135*2*0.65 -> 36270 | E138: 40820 | F138: 45305 | G138: 48945 | H138: 52585 | I138: 56225 | J138: 59865 | K138: 793 | L138: 849 | M138: 1020 | N138: 1178 | O138: 1314 | P138: 1451
A139: Del Norte | B139: Del Norte70% AMI | C139: =C135*2*0.7 -> 34160 | D139: =D135*2*0.7 -> 39060 | E139: 43960 | F139: 48790 | G139: 52710 | H139: 56630 | I139: 60550 | J139: 64470 | K139: 854 | L139: 915 | M139: 1099 | N139: 1268 | O139: 1415 | P139: 1562
A140: Del Norte | B140: Del Norte75% AMI | C140: =C135*2*0.75 -> 36600 | D140: =D135*2*0.75 -> 41850 | E140: 47100 | F140: 52275 | G140: 56475 | H140: 60675 | I140: 64875 | J140: 69075 | K140: 915 | L140: 980 | M140: 1177 | N140: 1359 | O140: 1516 | P140: 1674
A141: Del Norte | B141: Del Norte80% AMI | C141: =C135*2*0.8 -> 39040 | D141: =D135*2*0.8 -> 44640 | E141: 50240 | F141: 55760 | G141: 60240 | H141: 64720 | I141: 69200 | J141: 73680 | K141: 976 | L141: 1046 | M141: 1256 | N141: 1450 | O141: 1618 | P141: 1786
A142: Del Norte | B142: Del Norte90% AMI | C142: =C135*2*0.9 -> 43920 | D142: =D135*2*0.9 -> 50220 | E142: 56520 | F142: 62730 | G142: 67770 | H142: 72810 | I142: 77850 | J142: 82890 | K142: 1098 | L142: 1176 | M142: 1413 | N142: 1631 | O142: 1820 | P142: 2009
A143: Del Norte | B143: Del Norte100% AMI | C143: =C135*2 -> 48800 | D143: =D135*2 -> 55800 | E143: 62800 | F143: 69700 | G143: 75300 | H143: 80900 | I143: 86500 | J143: 92100 | K143: =K135*2 -> 1220 | L143: =L135*2 -> 1306 | M143: 1570 | N143: 1812 | O143: 2022 | P143: 2232
A144: Del Norte | B144: Del Norte110% AMI | C144: =C135*2*1.1 -> 53680 | D144: =D135*2*1.1 -> 61380 | E144: 69080 | F144: 76670 | G144: 82830 | H144: 88990 | I144: 95150 | J144: 101310 | K144: =TRUNC(C144/12*0.3) -> 1342 | L144: =TRUNC((C144+D144)/2/12*0.3) -> 1438 | M144: =TRUNC((E144)/12*0.3) -> 1727 | N144: =TRUNC(((F144+G144)/2)/12*0.3) -> 1993 | O144: =TRUNC(H144/12*0.3) -> 2224 | P144: =TRUNC(((I144+J144)/2)/12*0.3) -> 2455
A145: Del Norte | B145: Del Norte120% AMI | C145: =C135*2*1.2 -> 58560 | D145: =D135*2*1.2 -> 66960 | E145: 75360 | F145: 83640 | G145: 90360 | H145: 97080 | I145: 103800 | J145: 110520 | K145: 1464 | L145: 1569 | M145: 1884 | N145: 2175 | O145: 2427 | P145: 2679
A146: El Dorado | B146: El Dorado15% AMI | C146: =C153*2*0.15 -> 9525 | D146: =D153*2*0.15 -> 10875 | E146: =E153*2*0.15 -> 12240 | F146: =F153*2*0.15 -> 13590 | G146: =G153*2*0.15 -> 14685 | H146: =H153*2*0.15 -> 15765 | I146: 16860 | J146: 17940 | K146: 238 | L146: 255 | M146: 306 | N146: 353 | O146: 394 | P146: 435
A147: El Dorado | B147: El Dorado20% AMI | C147: =C153*2*0.2 -> 12700 | D147: =D153*2*0.2 -> 14500 | E147: 16320 | F147: 18120 | G147: 19580 | H147: 21020 | I147: 22480 | J147: 23920 | K147: 317 | L147: 340 | M147: 408 | N147: 471 | O147: 525 | P147: 580
A148: El Dorado | B148: El Dorado25% AMI | C148: =C153*2*0.25 -> 15875 | D148: =D153*2*0.25 -> 18125 | E148: 20400 | F148: 22650 | G148: 24475 | H148: 26275 | I148: 28100 | J148: 29900 | K148: 396 | L148: 425 | M148: 510 | N148: 589 | O148: 656 | P148: 725
A149: El Dorado | B149: El Dorado30% AMI | C149: =C153*2*0.3 -> 19050 | D149: =D153*2*0.3 -> 21750 | E149: 24480 | F149: 27180 | G149: 29370 | H149: 31530 | I149: 33720 | J149: 35880 | K149: 476 | L149: 510 | M149: 612 | N149: 706 | O149: 788 | P149: 870
A150: El Dorado | B150: El Dorado35% AMI | C150: =C153*2*0.35 -> 22225 | D150: =D153*2*0.35 -> 25375 | E150: 28560 | F150: 31710 | G150: 34265 | H150: 36785 | I150: 39340 | J150: 41860 | K150: 555 | L150: 595 | M150: 714 | N150: 824 | O150: 919 | P150: 1015
A151: El Dorado | B151: El Dorado40% AMI | C151: =C153*2*0.4 -> 25400 | D151: =D153*2*0.4 -> 29000 | E151: 32640 | F151: 36240 | G151: 39160 | H151: 42040 | I151: 44960 | J151: 47840 | K151: 635 | L151: 680 | M151: 816 | N151: 942 | O151: 1051 | P151: 1160
A152: El Dorado | B152: El Dorado45% AMI | C152: =C153*2*0.45 -> 28575 | D152: =D153*2*0.45 -> 32625 | E152: 36720 | F152: 40770 | G152: 44055 | H152: 47295 | I152: 50580 | J152: 53820 | K152: 714 | L152: 765 | M152: 918 | N152: 1060 | O152: 1182 | P152: 1305
A153: El Dorado | B153: El Dorado50% AMI | C153: =VLOOKUP($A:$A,$S$1:$AA$59,2,FALSE) -> 31750 | D153: =VLOOKUP($A:$A,$S$1:$AA$59,3,FALSE) -> 36250 | E153: =VLOOKUP($A:$A,$S$1:$AA$59,4,FALSE) -> 40800 | F153: =VLOOKUP($A:$A,$S$1:$AA$59,5,FALSE) -> 45300 | G153: =VLOOKUP($A:$A,$S$1:$AA$59,6,FALSE) -> 48950 | H153: =VLOOKUP($A:$A,$S$1:$AA$59,7,FALSE) -> 52550 | I153: =VLOOKUP($A:$A,$S$1:$AA$59,8,FALSE) -> 56200 | J153: =VLOOKUP($A:$A,$S$1:$AA$59,9,FALSE) -> 59800 | K153: =TRUNC(C153/12*0.3) -> 793 | L153: =TRUNC((C153+D153)/2/12*0.3) -> 850 | M153: =TRUNC((E153)/12*0.3) -> 1020 | N153: =TRUNC(((F153+G153)/2)/12*0.3) -> 1178 | O153: =TRUNC(H153/12*0.3) -> 1313 | P153: =TRUNC(((I153+J153)/2)/12*0.3) -> 1450
A154: El Dorado | B154: El Dorado55% AMI | C154: =C153*2*0.55 -> 34925 | D154: =D153*2*0.55 -> 39875 | E154: 44880 | F154: 49830 | G154: 53845 | H154: 57805 | I154: 61820 | J154: 65780 | K154: =TRUNC(C154/12*0.3) -> 873 | L154: =TRUNC((C154+D154)/2/12*0.3) -> 935 | M154: =TRUNC((E154)/12*0.3) -> 1122 | N154: =TRUNC(((F154+G154)/2)/12*0.3) -> 1295 | O154: =TRUNC(H154/12*0.3) -> 1445 | P154: =TRUNC(((I154+J154)/2)/12*0.3) -> 1595
A155: El Dorado | B155: El Dorado60% AMI | C155: =C153*2*0.6 -> 38100 | D155: =D153*2*0.6 -> 43500 | E155: 48960 | F155: 54360 | G155: 58740 | H155: 63060 | I155: 67440 | J155: 71760 | K155: 952 | L155: 1020 | M155: 1224 | N155: 1413 | O155: 1576 | P155: 1740
A156: El Dorado | B156: El Dorado65% AMI | C156: =C153*2*0.65 -> 41275 | D156: =D153*2*0.65 -> 47125 | E156: 53040 | F156: 58890 | G156: 63635 | H156: 68315 | I156: 73060 | J156: 77740 | K156: 1031 | L156: 1105 | M156: 1326 | N156: 1531 | O156: 1707 | P156: 1885
A157: El Dorado | B157: El Dorado70% AMI | C157: =C153*2*0.7 -> 44450 | D157: =D153*2*0.7 -> 50750 | E157: 57120 | F157: 63420 | G157: 68530 | H157: 73570 | I157: 78680 | J157: 83720 | K157: 1111 | L157: 1190 | M157: 1428 | N157: 1649 | O157: 1839 | P157: 2030
A158: El Dorado | B158: El Dorado75% AMI | C158: =C153*2*0.75 -> 47625 | D158: =D153*2*0.75 -> 54375 | E158: 61200 | F158: 67950 | G158: 73425 | H158: 78825 | I158: 84300 | J158: 89700 | K158: 1190 | L158: 1275 | M158: 1530 | N158: 1767 | O158: 1970 | P158: 2175
A159: El Dorado | B159: El Dorado80% AMI | C159: =C153*2*0.8 -> 50800 | D159: =D153*2*0.8 -> 58000 | E159: 65280 | F159: 72480 | G159: 78320 | H159: 84080 | I159: 89920 | J159: 95680 | K159: 1270 | L159: 1360 | M159: 1632 | N159: 1885 | O159: 2102 | P159: 2320
A160: El Dorado | B160: El Dorado90% AMI | C160: =C153*2*0.9 -> 57150 | D160: =D153*2*0.9 -> 65250 | E160: 73440 | F160: 81540 | G160: 88110 | H160: 94590 | I160: 101160 | J160: 107640 | K160: 1428 | L160: 1530 | M160: 1836 | N160: 2120 | O160: 2364 | P160: 2610
A161: El Dorado | B161: El Dorado100% AMI | C161: =C153*2 -> 63500 | D161: =D153*2 -> 72500 | E161: 81600 | F161: 90600 | G161: 97900 | H161: 105100 | I161: 112400 | J161: 119600 | K161: =K153*2 -> 1586 | L161: =L153*2 -> 1700 | M161: 2040 | N161: 2356 | O161: 2626 | P161: 2900
A162: El Dorado | B162: El Dorado110% AMI | C162: =C153*2*1.1 -> 69850 | D162: =D153*2*1.1 -> 79750 | E162: 89760 | F162: 99660 | G162: 107690 | H162: 115610 | I162: 123640 | J162: 131560 | K162: =TRUNC(C162/12*0.3) -> 1746 | L162: =TRUNC((C162+D162)/2/12*0.3) -> 1870 | M162: =TRUNC((E162)/12*0.3) -> 2244 | N162: =TRUNC(((F162+G162)/2)/12*0.3) -> 2591 | O162: =TRUNC(H162/12*0.3) -> 2890 | P162: =TRUNC(((I162+J162)/2)/12*0.3) -> 3190
A163: El Dorado | B163: El Dorado120% AMI | C163: =C153*2*1.2 -> 76200 | D163: =D153*2*1.2 -> 87000 | E163: 97920 | F163: 108720 | G163: 117480 | H163: 126120 | I163: 134880 | J163: 143520 | K163: 1905 | L163: 2040 | M163: 2448 | N163: 2827 | O163: 3153 | P163: 3480
A164: Fresno | B164: Fresno15% AMI | C164: =C171*2*0.15 -> 7320 | D164: =D171*2*0.15 -> 8370 | E164: =E171*2*0.15 -> 9420 | F164: =F171*2*0.15 -> 10455 | G164: =G171*2*0.15 -> 11295 | H164: =H171*2*0.15 -> 12135 | I164: 12975 | J164: 13815 | K164: 183 | L164: 196 | M164: 235 | N164: 271 | O164: 303 | P164: 334
A165: Fresno | B165: Fresno20% AMI | C165: =C171*2*0.2 -> 9760 | D165: =D171*2*0.2 -> 11160 | E165: 12560 | F165: 13940 | G165: 15060 | H165: 16180 | I165: 17300 | J165: 18420 | K165: 244 | L165: 261 | M165: 314 | N165: 362 | O165: 404 | P165: 446
A166: Fresno | B166: Fresno25% AMI | C166: =C171*2*0.25 -> 12200 | D166: =D171*2*0.25 -> 13950 | E166: 15700 | F166: 17425 | G166: 18825 | H166: 20225 | I166: 21625 | J166: 23025 | K166: 305 | L166: 326 | M166: 392 | N166: 453 | O166: 505 | P166: 558
A167: Fresno | B167: Fresno30% AMI | C167: =C171*2*0.3 -> 14640 | D167: =D171*2*0.3 -> 16740 | E167: 18840 | F167: 20910 | G167: 22590 | H167: 24270 | I167: 25950 | J167: 27630 | K167: 366 | L167: 392 | M167: 471 | N167: 543 | O167: 606 | P167: 669
A168: Fresno | B168: Fresno35% AMI | C168: =C171*2*0.35 -> 17080 | D168: =D171*2*0.35 -> 19530 | E168: 21980 | F168: 24395 | G168: 26355 | H168: 28315 | I168: 30275 | J168: 32235 | K168: 427 | L168: 457 | M168: 549 | N168: 634 | O168: 707 | P168: 781
A169: Fresno | B169: Fresno40% AMI | C169: =C171*2*0.4 -> 19520 | D169: =D171*2*0.4 -> 22320 | E169: 25120 | F169: 27880 | G169: 30120 | H169: 32360 | I169: 34600 | J169: 36840 | K169: 488 | L169: 523 | M169: 628 | N169: 725 | O169: 809 | P169: 893
A170: Fresno | B170: Fresno45% AMI | C170: =C171*2*0.45 -> 21960 | D170: =D171*2*0.45 -> 25110 | E170: 28260 | F170: 31365 | G170: 33885 | H170: 36405 | I170: 38925 | J170: 41445 | K170: 549 | L170: 588 | M170: 706 | N170: 815 | O170: 910 | P170: 1004
A171: Fresno | B171: Fresno50% AMI | C171: =VLOOKUP($A:$A,$S$1:$AA$59,2,FALSE) -> 24400 | D171: =VLOOKUP($A:$A,$S$1:$AA$59,3,FALSE) -> 27900 | E171: =VLOOKUP($A:$A,$S$1:$AA$59,4,FALSE) -> 31400 | F171: =VLOOKUP($A:$A,$S$1:$AA$59,5,FALSE) -> 34850 | G171: =VLOOKUP($A:$A,$S$1:$AA$59,6,FALSE) -> 37650 | H171: =VLOOKUP($A:$A,$S$1:$AA$59,7,FALSE) -> 40450 | I171: =VLOOKUP($A:$A,$S$1:$AA$59,8,FALSE) -> 43250 | J171: =VLOOKUP($A:$A,$S$1:$AA$59,9,FALSE) -> 46050 | K171: =TRUNC(C171/12*0.3) -> 610 | L171: =TRUNC((C171+D171)/2/12*0.3) -> 653 | M171: =TRUNC((E171)/12*0.3) -> 785 | N171: =TRUNC(((F171+G171)/2)/12*0.3) -> 906 | O171: =TRUNC(H171/12*0.3) -> 1011 | P171: =TRUNC(((I171+J171)/2)/12*0.3) -> 1116
A172: Fresno | B172: Fresno55% AMI | C172: =C171*2*0.55 -> 26840 | D172: =D171*2*0.55 -> 30690 | E172: 34540 | F172: 38335 | G172: 41415 | H172: 44495 | I172: 47575 | J172: 50655 | K172: =TRUNC(C172/12*0.3) -> 671 | L172: =TRUNC((C172+D172)/2/12*0.3) -> 719 | M172: =TRUNC((E172)/12*0.3) -> 863 | N172: =TRUNC(((F172+G172)/2)/12*0.3) -> 996 | O172: =TRUNC(H172/12*0.3) -> 1112 | P172: =TRUNC(((I172+J172)/2)/12*0.3) -> 1227
A173: Fresno | B173: Fresno60% AMI | C173: =C171*2*0.6 -> 29280 | D173: =D171*2*0.6 -> 33480 | E173: 37680 | F173: 41820 | G173: 45180 | H173: 48540 | I173: 51900 | J173: 55260 | K173: 732 | L173: 784 | M173: 942 | N173: 1087 | O173: 1213 | P173: 1339
A174: Fresno | B174: Fresno65% AMI | C174: =C171*2*0.65 -> 31720 | D174: =D171*2*0.65 -> 36270 | E174: 40820 | F174: 45305 | G174: 48945 | H174: 52585 | I174: 56225 | J174: 59865 | K174: 793 | L174: 849 | M174: 1020 | N174: 1178 | O174: 1314 | P174: 1451
A175: Fresno | B175: Fresno70% AMI | C175: =C171*2*0.7 -> 34160 | D175: =D171*2*0.7 -> 39060 | E175: 43960 | F175: 48790 | G175: 52710 | H175: 56630 | I175: 60550 | J175: 64470 | K175: 854 | L175: 915 | M175: 1099 | N175: 1268 | O175: 1415 | P175: 1562
A176: Fresno | B176: Fresno75% AMI | C176: =C171*2*0.75 -> 36600 | D176: =D171*2*0.75 -> 41850 | E176: 47100 | F176: 52275 | G176: 56475 | H176: 60675 | I176: 64875 | J176: 69075 | K176: 915 | L176: 980 | M176: 1177 | N176: 1359 | O176: 1516 | P176: 1674
A177: Fresno | B177: Fresno80% AMI | C177: =C171*2*0.8 -> 39040 | D177: =D171*2*0.8 -> 44640 | E177: 50240 | F177: 55760 | G177: 60240 | H177: 64720 | I177: 69200 | J177: 73680 | K177: 976 | L177: 1046 | M177: 1256 | N177: 1450 | O177: 1618 | P177: 1786
A178: Fresno | B178: Fresno90% AMI | C178: =C171*2*0.9 -> 43920 | D178: =D171*2*0.9 -> 50220 | E178: 56520 | F178: 62730 | G178: 67770 | H178: 72810 | I178: 77850 | J178: 82890 | K178: 1098 | L178: 1176 | M178: 1413 | N178: 1631 | O178: 1820 | P178: 2009
A179: Fresno | B179: Fresno100% AMI | C179: =C171*2 -> 48800 | D179: =D171*2 -> 55800 | E179: 62800 | F179: 69700 | G179: 75300 | H179: 80900 | I179: 86500 | J179: 92100 | K179: =K171*2 -> 1220 | L179: =L171*2 -> 1306 | M179: 1570 | N179: 1812 | O179: 2022 | P179: 2232
A180: Fresno | B180: Fresno110% AMI | C180: =C171*2*1.1 -> 53680 | D180: =D171*2*1.1 -> 61380 | E180: 69080 | F180: 76670 | G180: 82830 | H180: 88990 | I180: 95150 | J180: 101310 | K180: =TRUNC(C180/12*0.3) -> 1342 | L180: =TRUNC((C180+D180)/2/12*0.3) -> 1438 | M180: =TRUNC((E180)/12*0.3) -> 1727 | N180: =TRUNC(((F180+G180)/2)/12*0.3) -> 1993 | O180: =TRUNC(H180/12*0.3) -> 2224 | P180: =TRUNC(((I180+J180)/2)/12*0.3) -> 2455
A181: Fresno | B181: Fresno120% AMI | C181: =C171*2*1.2 -> 58560 | D181: =D171*2*1.2 -> 66960 | E181: 75360 | F181: 83640 | G181: 90360 | H181: 97080 | I181: 103800 | J181: 110520 | K181: 1464 | L181: 1569 | M181: 1884 | N181: 2175 | O181: 2427 | P181: 2679
A182: Glenn | B182: Glenn15% AMI | C182: =C189*2*0.15 -> 7320 | D182: =D189*2*0.15 -> 8370 | E182: =E189*2*0.15 -> 9420 | F182: =F189*2*0.15 -> 10455 | G182: =G189*2*0.15 -> 11295 | H182: =H189*2*0.15 -> 12135 | I182: 12975 | J182: 13815 | K182: 183 | L182: 196 | M182: 235 | N182: 271 | O182: 303 | P182: 334
A183: Glenn | B183: Glenn20% AMI | C183: =C189*2*0.2 -> 9760 | D183: =D189*2*0.2 -> 11160 | E183: 12560 | F183: 13940 | G183: 15060 | H183: 16180 | I183: 17300 | J183: 18420 | K183: 244 | L183: 261 | M183: 314 | N183: 362 | O183: 404 | P183: 446
A184: Glenn | B184: Glenn25% AMI | C184: =C189*2*0.25 -> 12200 | D184: =D189*2*0.25 -> 13950 | E184: 15700 | F184: 17425 | G184: 18825 | H184: 20225 | I184: 21625 | J184: 23025 | K184: 305 | L184: 326 | M184: 392 | N184: 453 | O184: 505 | P184: 558
A185: Glenn | B185: Glenn30% AMI | C185: =C189*2*0.3 -> 14640 | D185: =D189*2*0.3 -> 16740 | E185: 18840 | F185: 20910 | G185: 22590 | H185: 24270 | I185: 25950 | J185: 27630 | K185: 366 | L185: 392 | M185: 471 | N185: 543 | O185: 606 | P185: 669
A186: Glenn | B186: Glenn35% AMI | C186: =C189*2*0.35 -> 17080 | D186: =D189*2*0.35 -> 19530 | E186: 21980 | F186: 24395 | G186: 26355 | H186: 28315 | I186: 30275 | J186: 32235 | K186: 427 | L186: 457 | M186: 549 | N186: 634 | O186: 707 | P186: 781
A187: Glenn | B187: Glenn40% AMI | C187: =C189*2*0.4 -> 19520 | D187: =D189*2*0.4 -> 22320 | E187: 25120 | F187: 27880 | G187: 30120 | H187: 32360 | I187: 34600 | J187: 36840 | K187: 488 | L187: 523 | M187: 628 | N187: 725 | O187: 809 | P187: 893
A188: Glenn | B188: Glenn45% AMI | C188: =C189*2*0.45 -> 21960 | D188: =D189*2*0.45 -> 25110 | E188: 28260 | F188: 31365 | G188: 33885 | H188: 36405 | I188: 38925 | J188: 41445 | K188: 549 | L188: 588 | M188: 706 | N188: 815 | O188: 910 | P188: 1004
A189: Glenn | B189: Glenn50% AMI | C189: =VLOOKUP($A:$A,$S$1:$AA$59,2,FALSE) -> 24400 | D189: =VLOOKUP($A:$A,$S$1:$AA$59,3,FALSE) -> 27900 | E189: =VLOOKUP($A:$A,$S$1:$AA$59,4,FALSE) -> 31400 | F189: =VLOOKUP($A:$A,$S$1:$AA$59,5,FALSE) -> 34850 | G189: =VLOOKUP($A:$A,$S$1:$AA$59,6,FALSE) -> 37650 | H189: =VLOOKUP($A:$A,$S$1:$AA$59,7,FALSE) -> 40450 | I189: =VLOOKUP($A:$A,$S$1:$AA$59,8,FALSE) -> 43250 | J189: =VLOOKUP($A:$A,$S$1:$AA$59,9,FALSE) -> 46050 | K189: =TRUNC(C189/12*0.3) -> 610 | L189: =TRUNC((C189+D189)/2/12*0.3) -> 653 | M189: =TRUNC((E189)/12*0.3) -> 785 | N189: =TRUNC(((F189+G189)/2)/12*0.3) -> 906 | O189: =TRUNC(H189/12*0.3) -> 1011 | P189: =TRUNC(((I189+J189)/2)/12*0.3) -> 1116
A190: Glenn | B190: Glenn55% AMI | C190: =C189*2*0.55 -> 26840 | D190: =D189*2*0.55 -> 30690 | E190: 34540 | F190: 38335 | G190: 41415 | H190: 44495 | I190: 47575 | J190: 50655 | K190: =TRUNC(C190/12*0.3) -> 671 | L190: =TRUNC((C190+D190)/2/12*0.3) -> 719 | M190: =TRUNC((E190)/12*0.3) -> 863 | N190: =TRUNC(((F190+G190)/2)/12*0.3) -> 996 | O190: =TRUNC(H190/12*0.3) -> 1112 | P190: =TRUNC(((I190+J190)/2)/12*0.3) -> 1227
A191: Glenn | B191: Glenn60% AMI | C191: =C189*2*0.6 -> 29280 | D191: =D189*2*0.6 -> 33480 | E191: 37680 | F191: 41820 | G191: 45180 | H191: 48540 | I191: 51900 | J191: 55260 | K191: 732 | L191: 784 | M191: 942 | N191: 1087 | O191: 1213 | P191: 1339
A192: Glenn | B192: Glenn65% AMI | C192: =C189*2*0.65 -> 31720 | D192: =D189*2*0.65 -> 36270 | E192: 40820 | F192: 45305 | G192: 48945 | H192: 52585 | I192: 56225 | J192: 59865 | K192: 793 | L192: 849 | M192: 1020 | N192: 1178 | O192: 1314 | P192: 1451
A193: Glenn | B193: Glenn70% AMI | C193: =C189*2*0.7 -> 34160 | D193: =D189*2*0.7 -> 39060 | E193: 43960 | F193: 48790 | G193: 52710 | H193: 56630 | I193: 60550 | J193: 64470 | K193: 854 | L193: 915 | M193: 1099 | N193: 1268 | O193: 1415 | P193: 1562
A194: Glenn | B194: Glenn75% AMI | C194: =C189*2*0.75 -> 36600 | D194: =D189*2*0.75 -> 41850 | E194: 47100 | F194: 52275 | G194: 56475 | H194: 60675 | I194: 64875 | J194: 69075 | K194: 915 | L194: 980 | M194: 1177 | N194: 1359 | O194: 1516 | P194: 1674
A195: Glenn | B195: Glenn80% AMI | C195: =C189*2*0.8 -> 39040 | D195: =D189*2*0.8 -> 44640 | E195: 50240 | F195: 55760 | G195: 60240 | H195: 64720 | I195: 69200 | J195: 73680 | K195: 976 | L195: 1046 | M195: 1256 | N195: 1450 | O195: 1618 | P195: 1786
A196: Glenn | B196: Glenn90% AMI | C196: =C189*2*0.9 -> 43920 | D196: =D189*2*0.9 -> 50220 | E196: 56520 | F196: 62730 | G196: 67770 | H196: 72810 | I196: 77850 | J196: 82890 | K196: 1098 | L196: 1176 | M196: 1413 | N196: 1631 | O196: 1820 | P196: 2009
A197: Glenn | B197: Glenn100% AMI | C197: =C189*2 -> 48800 | D197: =D189*2 -> 55800 | E197: 62800 | F197: 69700 | G197: 75300 | H197: 80900 | I197: 86500 | J197: 92100 | K197: =K189*2 -> 1220 | L197: =L189*2 -> 1306 | M197: 1570 | N197: 1812 | O197: 2022 | P197: 2232
A198: Glenn | B198: Glenn110% AMI | C198: =C189*2*1.1 -> 53680 | D198: =D189*2*1.1 -> 61380 | E198: 69080 | F198: 76670 | G198: 82830 | H198: 88990 | I198: 95150 | J198: 101310 | K198: =TRUNC(C198/12*0.3) -> 1342 | L198: =TRUNC((C198+D198)/2/12*0.3) -> 1438 | M198: =TRUNC((E198)/12*0.3) -> 1727 | N198: =TRUNC(((F198+G198)/2)/12*0.3) -> 1993 | O198: =TRUNC(H198/12*0.3) -> 2224 | P198: =TRUNC(((I198+J198)/2)/12*0.3) -> 2455
A199: Glenn | B199: Glenn120% AMI | C199: =C189*2*1.2 -> 58560 | D199: =D189*2*1.2 -> 66960 | E199: 75360 | F199: 83640 | G199: 90360 | H199: 97080 | I199: 103800 | J199: 110520 | K199: 1464 | L199: 1569 | M199: 1884 | N199: 2175 | O199: 2427 | P199: 2679
A200: Humboldt | B200: Humboldt15% AMI | C200: =C207*2*0.15 -> 7320 | D200: =D207*2*0.15 -> 8370 | E200: =E207*2*0.15 -> 9420 | F200: =F207*2*0.15 -> 10455 | G200: =G207*2*0.15 -> 11295 | H200: =H207*2*0.15 -> 12135 | I200: 12975 | J200: 13815 | K200: 183 | L200: 196 | M200: 235 | N200: 271 | O200: 303 | P200: 334
... 845 more rows

Sheet Dropdowns (hidden)
A1: No | B1: Non-profit Developer | C1: Locality | D1: Employment Centers | E1: City | F1: Alameda | G1: Northern | H1: single story | I1: Fixed for Term | J1: Interest Only | K1: Fully Amortized | L1: no | M1: An area designated in the Program application that is a contiguous area located within an Urbanized Area (i) that has been previously developed, or where at least 75 percent of the perimeter of the area adjoins parcels that are developed with Urban Uses, and (ii) in which at least one development application has been approved or is pending approval for a residential or mixed-use residential project that meets the definition and criteria in this section for a QIP. | N1: Fully Amortized
A2: Yes, at least 75% of the area included within QIP was previously improved or used for any use other than Open Space, agriculture, forestry or mining waste storage | B2: For-profit Developer | C2: Public Housing Authority | D2: Retail Center | E2: County | F2: Alpine | G2: Northern | H2: town-house | I2: Fixed with Reset | J2: Deferred | K2: Amortized with Call | L2: (A) A general plan, or general plan amendment, adopted per Gov. Code §65300. | M2: A residential or mixed-use residential development project designated in the Program application that is located within an Urbanized Area on a site that has been previously developed, or on a vacant site where at least 75 percent of the perimeter of the site adjoins parcels that are developed with Urban Uses. A property is adjoining the side of a project site if the property is separated from the project site only by an improved public right-of-way. | N2: Amortized with Call
A3: Yes, at least 75% of QIP perimeter adjoining parcels are developed with Urban Uses or QIP is separated from parcels that are developed with Urban Uses only by an improved public right-of-way | C3: Redevelopment Successory Agency | D3: Public Park | E3: City/County | F3: Amador | G3: Northern | H3: mid-rise buildings | I3: Fixed, then Variable | J3: None | K3: Residual Receipts | L3: (B) A project area redevelopment plan adopted pursuant to the Health and Safety Code §33330. | N3: Residual Receipts
A4: Yes, at least 50% of the perimeter adjoining parcels developed with Urban Uses AND at least 50% of the area within the QIP was previously developed | C4: Transit Agency or Transit Operator | D4: Public School/College | E4: Community Service District | F4: Butte | G4: Northern | H4: high-rise buildings | I4: Variable | J4: Other | K4: Deferred | L4: (C) A regional blueprint plan as defined in the California Regional Blueprint Planning Program administered by the Business, Transportation and Housing Agency, or a regional plan as defined in the Government Code section §65060.7. | N4: Deferred
C5: Regional Transportation Planning Agency (RTPA) | D5: Special Needs | E5: State | F5: Calaveras | G5: Northern | I5: Other | K5: Interest Only | N5: Not Yet Known
C6: Local Transportation Commissions | D6: Senior Services | E6: National | F6: Colusa | G6: Northern | K6: Fixed to Float | N6: None
C7: Congestion Management Agencies | E7: Private (full public access) | F7: Contra Costa | G7: Northern | K7: Partial Int. Only | N7: Interest Only
C8: Joint Powers Authority (JPA) | F8: Del Norte | G8: Northern | N8: Fixed to Float
C9: School District | F9: El Dorado | G9: Northern | N9: Partial Int. Only
C10: Facilites District | F10: Fresno | G10: Central | N10: Other
C11: University or Community College District | F11: Glenn | G11: Northern
C12: Developer | F12: Humboldt | G12: Northern
C13: Program Operator | F13: Imperial | G13: Northern
F14: Inyo | G14: Northern
F15: Kern | G15: Southern
F16: Kings | G16: Northern
F17: Lake | G17: Northern
F18: Lassen | G18: Northern
F19: Los Angeles | G19: Southern
F20: Madera | G20: Northern
F21: Marin | G21: Northern
F22: Mariposa | G22: Northern
F23: Mendocino | G23: Northern
F24: Merced | G24: Central
F25: Modoc | G25: Northern
F26: Mono | G26: Northern
F27: Monterey | G27: Northern
F28: Napa | G28: Northern
F29: Nevada | G29: Northern
F30: Orange | G30: Southern
F31: Placer | G31: Northern
F32: Plumas | G32: Northern
F33: Riverside | G33: Southern
F34: Sacramento | G34: Northern
F35: San Benito | G35: Northern
F36: San Bernardino | G36: Southern
F37: San Diego | G37: Southern
F38: San Francisco | G38: Northern
F39: San Joaquin | G39: Central
F40: San Luis Obispo | G40: Southern
F41: San Mateo | G41: Northern
F42: Santa Barbara | G42: Southern
F43: Santa Clara | G43: Northern
F44: Santa Cruz | G44: Northern
F45: Shasta | G45: Northern
F46: Sierra | G46: Northern
F47: Siskiyou | G47: Northern
F48: Solano | G48: Northern
F49: Sonoma | G49: Northern
F50: Stanislaus | G50: Central
F51: Sutter | G51: Northern
F52: Tehama | G52: Northern
F53: Trinity | G53: Northern
F54: Tulare | G54: Central
F55: Tuolumne | G55: Northern
F56: Ventura | G56: Southern
F57: Yolo | G57: Northern
F58: Yuba | G58: Northern
